Workbook

Sheet 总表-原表 (hidden)
A1: 2020年邯郸市事业单位公开招聘工作人员岗位条件申报表
A2: 单位名称（盖章）：魏县教育体育局 填报时间：2020 年3月23日
A3: 主管部门名称 | B3: 单位名称 | C3: 单位性质 | D3: 编制数 | E3: 实有人数 | F3: 空编数 | G3: 预计2020年度自然减员人数 | H3: 申报招聘计划数 | I3: 学历（学位）人数 | M3: 招聘岗位条件
I4: 博士 | J4: 硕士 | K4: 本科 | L4: 专科 | M4: 招聘岗位 | N4: 招聘学科 | O4: 专业 | P4: 其它条件 | V4: 招聘方式 | W4: 公开选聘院校范围 | X4: 备注
A5: 合计 | D5: =SUM(D6,D12,D24,D33,D42,D45,D54,D63,D75,D79,D82,D85,D86,D87,D88,D89,D102,D103,D109,D120,D121,D129,D138,D143,D151,D159) -> 3946 | E5: 3628 | F5: 318 | G5: 113 | H5: 300 | K5: =SUM(K6:K164) -> 185 | L5: =SUM(L6:L164) -> 115 | P5: 教师资格证条件要求 | Q5: 年龄 | R5: 户籍 | S5: 学历 | T5: 普通话等级 | U5: 服务年限
A6: 魏县教育体育局 | B6: 魏县第一中学 | C6: 全额事业 | D6: 470 | E6: 466 | F6: 4 | G6: 8 | H6: 12 | K6: 3 | M6: 高中教师 | N6: 语文 | O6: 不限 | P6: 具有高级中学、中等职业学校及以上教师资格证，教师资格证书任教学科与招聘岗位学科要一致。 | Q6: 18周岁以上，35周岁及以下。 | R6: 不限 | S6: 普通全日制本科及以上学历,并取得相应学位证书。 | T6: 普通话水平必须取得国家语言文字工作委员会颁发的二级乙等及其以上《普通话水平测试等级证书》，语文岗位应取得二级甲等及其以上《普通话水平测试等级证书》 | U6: 录用后须在魏县教育教学岗位服务满3年，服务不足3年的，视为失信，记录失信档案。 | V6: 公开选聘 统一招聘 | W6: 统招全日制普通高校硕士研究生及以上学历，并取得相应学位证书的毕业生；教育部直属的北京师范大学等六所师范院校全日制本科学历，并取得相应学位证书的毕业生；“名校英才入冀”计划引进范围的普通高等院校和科研院所的全日制本科及以上学历，并取得相应学位证书的毕业生；“985工程、211工程”高校统招全日制本科学历，并取得相应学位证书的毕业生；河北师范大学、河北大学统招全日制本科学历，并取得相应学位证书的毕业生。 以上院校均不含独立学院。
K7: 2 | M7: 高中教师 | N7: 数学
K8: 2 | M8: 高中教师 | N8: 英语
K9: 1 | M9: 高中教师 | N9: 物理
K10: 3 | M10: 高中教师 | N10: 生物
K11: 1 | M11: 高中教师 | N11: 地理
A12: 魏县教育体育局 | B12: 魏县第三中学 | C12: 全额事业 | D12: 180 | E12: 83 | F12: 97 | G12: 1 | H12: 42 | K12: 5 | M12: 高中教师 | N12: 语文
K13: 5 | M13: 高中教师 | N13: 数学
K14: 5 | M14: 高中教师 | N14: 英语
K15: 2 | M15: 高中教师 | N15: 物理
K16: 4 | M16: 高中教师 | N16: 化学
K17: 4 | M17: 高中教师 | N17: 生物
K18: 5 | M18: 高中教师 | N18: 历史
K19: 2 | M19: 高中教师 | N19: 地理
K20: 3 | M20: 高中教师 | N20: 政治
K21: 2 | M21: 高中教师 | N21: 信息技术
K22: 2 | M22: 高中教师 | N22: 体育
K23: 3 | M23: 高中教师 | N23: 美术
A24: 魏县教育体育局 | B24: 魏县第五中学 | C24: 全额事业 | D24: 240 | E24: 230 | F24: 10 | G24: 4 | H24: 14 | K24: 3 | M24: 高中教师 | N24: 语文 | O24: 不限 | P24: 具有高级中学、中等职业学校及以上教师资格证，教师资格证书任教学科与招聘岗位学科要一致。 | Q24: 18周岁以上，35周岁及以下。 | R24: 不限 | S24: 普通全日制本科及以上学历,并取得相应学位证书。 | T24: 普通话水平必须取得国家语言文字工作委员会颁发的二级乙等及其以上《普通话水平测试等级证书》，语文岗位应取得二级甲等及其以上《普通话水平测试等级证书》 | U24: 录用后须在魏县教育教学岗位服务满3年，服务不足3年的，视为失信，记录失信档案。 | V24: 公开选聘 统一招聘 | W24: 统招全日制普通高校硕士研究生及以上学历，并取得相应学位证书的毕业生；教育部直属的北京师范大学等六所师范院校全日制本科学历，并取得相应学位证书的毕业生；“名校英才入冀”计划引进范围的普通高等院校和科研院所的全日制本科及以上学历，并取得相应学位证书的毕业生；“985工程、211工程”高校统招全日制本科学历，并取得相应学位证书的毕业生；河北师范大学、河北大学统招全日制本科学历，并取得相应学位证书的毕业生。 以上院校均不含独立学院。
K25: 1 | M25: 高中教师 | N25: 数学
K26: 2 | M26: 高中教师 | N26: 英语
K27: 1 | M27: 高中教师 | N27: 物理
K28: 1 | M28: 高中教师 | N28: 化学
K29: 1 | M29: 高中教师 | N29: 生物
K30: 2 | M30: 高中教师 | N30: 历史
K31: 2 | M31: 高中教师 | N31: 地理
K32: 1 | M32: 高中教师 | N32: 政治
A33: 魏县教育体育局 | B33: 魏县第六中学 | C33: 全额事业 | D33: 220 | E33: 186 | F33: 34 | H33: 32 | K33: 1 | M33: 高中教师 | N33: 语文
K34: 2 | M34: 高中教师 | N34: 数学
K35: 3 | M35: 高中教师 | N35: 英语
K36: 6 | M36: 高中教师 | N36: 物理
K37: 2 | M37: 高中教师 | N37: 化学
K38: 5 | M38: 高中教师 | N38: 生物
K39: 5 | M39: 高中教师 | N39: 历史
K40: 6 | M40: 高中教师 | N40: 地理
K41: 2 | M41: 高中教师 | N41: 政治
A42: 魏县教育体育局 | B42: 魏县综合职业技术教育中心 | C42: 全额事业 | D42: 150 | E42: 320 | F42: -170 | G42: 4 | H42: 15 | K42: 1 | M42: 职教教师 | N42: 职教会计
K43: 5 | M43: 职教教师 | N43: 职教学前教育
K44: 9 | M44: 职教教师 | N44: 职教计算机科学与技术
A45: 魏县教育体育局 | B45: 魏县第八中学 | C45: 全额事业 | D45: 180 | E45: 155 | F45: 25 | H45: 20 | K45: 3 | M45: 初中教师 | N45: 语文 | O45: 不限 | P45: 具有初级中学及以上教师资格证，教师资格证书任教学科与招聘岗位学科要一致；教师资格证任教学科是初中教育的可以报考初中阶段所有学科。 | Q45: 18周岁以上，35周岁及以下。 | R45: 不限 | S45: 普通全日制本科及以上学历并取得相应学位证书。 | T45: 普通话水平必须取得国家语言文字工作委员会颁发的二级乙等及其以上《普通话水平测试等级证书》，语文岗位应取得二级甲等及其以上《普通话水平测试等级证书》 | U45: 录用后须在魏县教育教学岗位服务满3年，服务不足3年的，视为失信，记录失信档案。 | V45: 统一招聘
K46: 3 | M46: 初中教师 | N46: 数学
K47: 2 | M47: 初中教师 | N47: 英语
K48: 4 | M48: 初中教师 | N48: 物理
K49: 4 | M49: 初中教师 | N49: 化学
K50: 1 | M50: 初中教师 | N50: 生物
K51: 1 | M51: 初中教师 | N51: 历史
K52: 1 | M52: 初中教师 | N52: 地理
K53: 1 | M53: 初中教师 | N53: 政治
A54: 魏县教育体育局 | B54: 魏县大辛庄中学 | C54: 全额事业 | D54: 70 | E54: 53 | F54: 17 | G54: 2 | H54: 10 | K54: 2 | M54: 初中教师 | N54: 语文
K55: 1 | M55: 初中教师 | N55: 数学
K56: 1 | M56: 初中教师 | N56: 英语
K57: 1 | M57: 初中教师 | N57: 物理
K58: 1 | M58: 初中教师 | N58: 化学
K59: 1 | M59: 初中教师 | N59: 生物
K60: 1 | M60: 初中教师 | N60: 地理
K61: 1 | M61: 初中教师 | N61: 体育
K62: 1 | M62: 初中教师 | N62: 信息技术
A63: 魏县教育体育局 | B63: 魏县张二庄镇第一中学 | C63: 全额事业 | D63: 35 | E63: 20 | F63: 15 | H63: 12 | K63: 1 | M63: 初中教师 | N63: 语文 | O63: 不限 | P63: 具有初级中学及以上教师资格证，教师资格证书任教学科与招聘岗位学科要一致；教师资格证任教学科是初中教育的可以报考初中阶段所有学科。 | Q63: 18周岁以上，35周岁及以下。 | R63: 不限 | S63: 普通全日制本科及以上学历并取得相应学位证书。 | T63: 普通话水平必须取得国家语言文字工作委员会颁发的二级乙等及其以上《普通话水平测试等级证书》，语文岗位应取得二级甲等及其以上《普通话水平测试等级证书》 | U63: 录用后须在魏县教育教学岗位服务满3年，服务不足3年的，视为失信，记录失信档案。 | V63: 统一招聘
K64: 1 | M64: 初中教师 | N64: 数学
K65: 1 | M65: 初中教师 | N65: 英语
K66: 1 | M66: 初中教师 | N66: 物理
K67: 1 | M67: 初中教师 | N67: 化学
K68: 1 | M68: 初中教师 | N68: 生物
K69: 1 | M69: 初中教师 | N69: 历史
K70: 1 | M70: 初中教师 | N70: 地理
K71: 1 | M71: 初中教师 | N71: 政治
K72: 1 | M72: 初中教师 | N72: 信息技术
K73: 1 | M73: 初中教师 | N73: 音乐
K74: 1 | M74: 初中教师 | N74: 体育
A75: 魏县教育体育局 | B75: 魏县车往中学 | C75: 全额事业 | D75: 115 | E75: 107 | F75: 8 | G75: 1 | H75: 4 | K75: 1 | M75: 初中教师 | N75: 语文
K76: 1 | M76: 初中教师 | N76: 数学
K77: 1 | M77: 初中教师 | N77: 英语
K78: 1 | M78: 初中教师 | N78: 物理
A79: 魏县教育体育局 | B79: 魏县泊口乡中学 | C79: 全额事业 | D79: 29 | E79: 21 | F79: 8 | H79: 3 | K79: 1 | M79: 初中教师 | N79: 语文
K80: 1 | M80: 初中教师 | N80: 数学
K81: 1 | M81: 初中教师 | N81: 英语
A82: 魏县教育体育局 | B82: 魏县北皋联合中学 | C82: 全额事业 | D82: 78 | E82: 65 | F82: 13 | G82: 2 | H82: 3 | K82: 1 | M82: 初中教师 | N82: 语文
K83: 1 | M83: 初中教师 | N83: 数学
K84: 1 | M84: 初中教师 | N84: 物理
A85: 魏县教育体育局 | B85: 魏县教育局沙口集乡中心校 | C85: 全额事业 | D85: 150 | E85: 129 | F85: 21 | G85: 6 | H85: 1 | L85: 1 | M85: 幼儿教师 | N85: 幼儿园 | O85: 具有的教师资格证非幼儿教育或学前教育学科的，要求规定学历所学专业须是幼儿教育或学前教育专业。 | P85: 具有教师资格证且教师资格证任教学科非幼儿教育或学前教育的，规定学历所学专业须是幼儿教育或学前教育专业；具有幼儿教育或学前教育教师资格证的。 | Q85: 18周岁以上，35周岁及以下。 | R85: 本科及以上学历的不限户籍；专科学历的，必须是魏县户籍，或配偶或父母是魏县户籍；2020年应届毕业生不限户籍。 | S85: 普通全日制专科及以上学历。 | T85: 普通话水平必须取得国家语言文字工作委员会颁发的二级乙等及其以上《普通话水平测试等级证书》，语文岗位应取得二级甲等及其以上《普通话水平测试等级证书》 | U85: 录用后须在魏县教育教学岗位服务满3年，服务不足3年的，视为失信，记录失信档案。 | V85: 统一招聘
A86: 魏县教育体育局 | B86: 魏县教育局野胡拐中心校 | C86: 全额事业 | D86: 76 | E86: 76 | G86: 1 | H86: 1 | L86: 1 | M86: 幼儿教师 | N86: 幼儿园
A87: 魏县教育体育局 | B87: 魏县教育局前大磨中心校 | C87: 全额事业 | D87: 155 | E87: 151 | F87: 4 | G87: 5 | H87: 1 | L87: 1 | M87: 幼儿教师 | N87: 幼儿园
A88: 魏县教育体育局 | B88: 魏县教育局院堡乡中心校 | C88: 全额事业 | D88: 125 | E88: 123 | F88: 2 | G88: 3 | H88: 1 | L88: 1 | M88: 幼儿教师 | N88: 幼儿园
A89: 魏县教育体育局 | B89: 魏县教育局北皋镇中心校 | C89: 全额事业 | D89: 325 | E89: 265 | F89: 60 | G89: 14 | H89: 23 | L89: 1 | M89: 幼儿教师 | N89: 幼儿园
L90: 5 | M90: 小学教师 | N90: 语文 | O90: 不限 | P90: 具有小学及以上教师资格证，教师资格证书任教学科与招聘岗位学科要一致；教师资格证任教学科是小学教育或初中教育的，可以报考小学阶段所有学科。
L91: 5 | M91: 小学教师 | N91: 数学
L92: 3 | M92: 小学教师 | N92: 英语
L93: 1 | M93: 小学教师 | N93: 音乐
L94: 1 | M94: 小学教师 | N94: 体育
A95: 魏县教育体育局 | B95: 魏县教育局北皋镇中心校 | C95: 全额事业 | D95: 325 | E95: 265 | F95: 60 | G95: 14 | H95: 23 | K95: 1 | M95: 初中教师 | N95: 语文 | O95: 不限 | P95: 具有初级中学及以上教师资格证，教师资格证书任教学科与招聘岗位学科要一致；教师资格证任教学科是初中教育的可以报考初中阶段所有学科。 | Q95: 18周岁以上，35周岁及以下。 | R95: 不限 | S95: 普通全日制本科及以上学历并取得相应学位证书。 | T95: 普通话水平必须取得国家语言文字工作委员会颁发的二级乙等及其以上《普通话水平测试等级证书》，语文岗位应取得二级甲等及其以上《普通话水平测试等级证书》 | U95: 录用后须在魏县教育教学岗位服务满3年，服务不足3年的，视为失信，记录失信档案。 | V95: 统一招聘
K96: 1 | M96: 初中教师 | N96: 数学
K97: 1 | M97: 初中教师 | N97: 英语
K98: 1 | M98: 初中教师 | N98: 物理
K99: 1 | M99: 初中教师 | N99: 化学
K100: 1 | M100: 初中教师 | N100: 音乐
K101: 1 | M101: 初中教师 | N101: 体育
A102: 魏县教育体育局 | B102: 魏县教育局北台头乡中心校 | C102: 全额事业 | D102: 90 | E102: 77 | F102: 13 | G102: 5 | H102: 1 | L102: 1 | M102: 幼儿教师 | N102: 幼儿园 | O102: 具有的教师资格证非幼儿教育或学前教育学科的，要求规定学历所学专业须是幼儿教育或学前教育专业。 | P102: 具有教师资格证且教师资格证任教学科非幼儿教育或学前教育的，规定学历所学专业须是幼儿教育或学前教育专业；具有幼儿教育或学前教育教师资格证的。 | R102: 本科及以上学历的不限户籍；专科学历的，必须是魏县户籍，或配偶或父母是魏县户籍；2020年应届毕业生不限户籍。 | S102: 普通全日制专科及以上学历。
A103: 魏县教育体育局 | B103: 魏县教育局车往镇中心校 | C103: 全额事业 | D103: 185 | E103: 137 | F103: 48 | G103: 8 | H103: 7 | L103: 1 | M103: 幼儿教师 | N103: 幼儿园
A104: 魏县教育体育局 | B104: 魏县教育局车往镇中心校 | C104: 全额事业 | D104: 185 | E104: 137 | F104: 48 | G104: 8 | H104: 7 | L104: 2 | M104: 小学教师 | N104: 语文 | O104: 不限 | P104: 具有小学及以上教师资格证，教师资格证书任教学科与招聘岗位学科要一致；教师资格证任教学科是小学教育或初中教育的，可以报考小学阶段所有学科。 | Q104: 18周岁以上，35周岁及以下。 | R104: 本科及以上学历的不限户籍；专科学历的，必须是魏县户籍，或配偶或父母是魏县户籍；2020年应届毕业生不限户籍。 | S104: 普通全日制专科及以上学历。 | T104: 普通话水平必须取得国家语言文字工作委员会颁发的二级乙等及其以上《普通话水平测试等级证书》，语文岗位应取得二级甲等及其以上《普通话水平测试等级证书》 | U104: 录用后须在魏县教育教学岗位服务满3年，服务不足3年的，视为失信，记录失信档案。 | V104: 统一招聘
L105: 1 | M105: 小学教师 | N105: 数学
L106: 1 | M106: 小学教师 | N106: 英语
L107: 1 | M107: 小学教师 | N107: 音乐
L108: 1 | M108: 小学教师 | N108: 体育
A109: 魏县教育体育局 | B109: 魏县教育局回隆镇中心校 | C109: 全额事业 | D109: 164 | E109: 154 | F109: 10 | G109: 9 | H109: 13 | L109: 2 | M109: 小学教师 | N109: 语文
L110: 2 | M110: 小学教师 | N110: 数学
L111: 1 | M111: 小学教师 | N111: 英语
L112: 1 | M112: 小学教师 | N112: 音乐
L113: 1 | M113: 小学教师 | N113: 体育
K114: 1 | M114: 初中教师 | N114: 语文 | P114: 具有初级中学及以上教师资格证，教师资格证书任教学科与招聘岗位学科要一致；教师资格证任教学科是初中教育的可以报考初中阶段所有学科。 | R114: 不限 | S114: 普通全日制本科及以上学历并取得相应学位证书。
K115: 1 | M115: 初中教师 | N115: 物理
K116: 1 | M116: 初中教师 | N116: 生物
K117: 1 | M117: 初中教师 | N117: 历史
K118: 1 | M118: 初中教师 | N118: 地理
A119: 魏县教育体育局 | B119: 魏县教育局回隆镇中心校 | C119: 全额事业 | D119: 164 | E119: 154 | F119: 10 | G119: 9 | H119: 13 | L119: 1 | M119: 幼儿教师 | N119: 幼儿园 | O119: 具有的教师资格证非幼儿教育或学前教育学科的，要求规定学历所学专业须是幼儿教育或学前教育专业。 | P119: 具有教师资格证且教师资格证任教学科非幼儿教育或学前教育的，规定学历所学专业须是幼儿教育或学前教育专业；具有幼儿教育或学前教育教师资格证的。 | Q119: 18周岁以上，35周岁及以下。 | R119: 本科及以上学历的不限户籍；专科学历的，必须是魏县户籍，或配偶或父母是魏县户籍；2020年应届毕业生不限户籍。 | S119: 普通全日制专科及以上学历。 | T119: 普通话水平必须取得国家语言文字工作委员会颁发的二级乙等及其以上《普通话水平测试等级证书》，语文岗位应取得二级甲等及其以上《普通话水平测试等级证书》 | U119: 录用后须在魏县教育教学岗位服务满3年，服务不足3年的，视为失信，记录失信档案。 | V119: 统一招聘
A120: 魏县教育体育局 | B120: 魏县教育局双庙乡中心校 | C120: 全额事业 | D120: 110 | E120: 105 | F120: 5 | G120: 3 | H120: 1 | L120: 1 | M120: 幼儿教师 | N120: 幼儿园
A121: 魏县教育体育局 | B121: 魏县教育局泊口乡中心校 | C121: 全额事业 | D121: 99 | E121: 85 | F121: 14 | G121: 6 | H121: 11 | L121: 1 | M121: 幼儿教师 | N121: 幼儿园
L122: 2 | M122: 小学教师 | N122: 语文 | O122: 不限 | P122: 具有小学及以上教师资格证，教师资格证书任教学科与招聘岗位学科要一致；教师资格证任教学科是小学教育或初中教育的，可以报考小学阶段所有学科。
L123: 2 | M123: 小学教师 | N123: 数学
L124: 2 | M124: 小学教师 | N124: 英语
L125: 1 | M125: 小学教师 | N125: 音乐
L126: 1 | M126: 小学教师 | N126: 体育
L127: 1 | M127: 小学教师 | N127: 美术
L128: 1 | M128: 小学教师 | N128: 科学
A129: 魏县教育体育局 | B129: 魏县教育局边马乡中心校 | C129: 全额事业 | D129: 185 | E129: 152 | F129: 33 | G129: 7 | H129: 20 | K129: 1 | M129: 初中教师 | N129: 语文 | O129: 不限 | P129: 具有初级中学及以上教师资格证，教师资格证书任教学科与招聘岗位学科要一致；教师资格证任教学科是初中教育的可以报考初中阶段所有学科。 | Q129: 18周岁以上，35周岁及以下。 | R129: 不限 | S129: 普通全日制本科及以上学历,并取得相应学位证书。 | T129: 普通话水平必须取得国家语言文字工作委员会颁发的二级乙等及其以上《普通话水平测试等级证书》，语文岗位应取得二级甲等及其以上《普通话水平测试等级证书》 | U129: 录用后须在魏县教育教学岗位服务满3年，服务不足3年的，视为失信，记录失信档案。 | V129: 统一招聘
K130: 1 | M130: 初中教师 | N130: 数学
K131: 1 | M131: 初中教师 | N131: 英语
K132: 1 | M132: 初中教师 | N132: 物理
L133: 6 | M133: 小学教师 | N133: 语文 | P133: 具有小学及以上教师资格证，教师资格证书任教学科与招聘岗位学科要一致；教师资格证任教学科是小学教育或初中教育的，可以报考小学阶段所有学科。 | R133: 本科及以上学历的不限户籍；专科学历的，必须是魏县户籍，或配偶或父母是魏县户籍；2020年应届毕业生不限户籍。 | S133: 普通全日制专科及以上学历。
L134: 5 | M134: 小学教师 | N134: 数学
L135: 3 | M135: 小学教师 | N135: 英语
L136: 1 | M136: 小学教师 | N136: 音乐
L137: 1 | M137: 幼儿教师 | N137: 幼儿园 | O137: 具有的教师资格证非幼儿教育或学前教育学科的，要求规定学历所学专业须是幼儿教育或学前教育专业。 | P137: 具有教师资格证且教师资格证任教学科非幼儿教育或学前教育的，规定学历所学专业须是幼儿教育或学前教育专业；具有幼儿教育或学前教育教师资格证的。
A138: 魏县教育体育局 | B138: 魏县教育局大辛庄乡中心校 | C138: 全额事业 | D138: 120 | E138: 118 | F138: 2 | G138: 4 | H138: 8 | L138: 1 | M138: 幼儿教师 | N138: 幼儿园
A139: 魏县教育体育局 | B139: 魏县教育局大辛庄乡中心校 | C139: 全额事业 | D139: 120 | E139: 118 | F139: 2 | G139: 4 | H139: 8 | L139: 2 | M139: 小学教师 | N139: 语文 | O139: 不限 | P139: 具有小学及以上教师资格证，教师资格证书任教学科与招聘岗位学科要一致；教师资格证任教学科是小学教育或初中教育的，可以报考小学阶段所有学科。 | Q139: 18周岁以上，35周岁及以下。 | R139: 本科及以上学历的不限户籍；专科学历的，必须是魏县户籍，或配偶或父母是魏县户籍；2020年应届毕业生不限户籍。 | S139: 普通全日制专科及以上学历。 | T139: 普通话水平必须取得国家语言文字工作委员会颁发的二级乙等及其以上《普通话水平测试等级证书》，语文岗位应取得二级甲等及其以上《普通话水平测试等级证书》 | U139: 录用后须在魏县教育教学岗位服务满3年，服务不足3年的，视为失信，记录失信档案。 | V139: 统一招聘
L140: 2 | M140: 小学教师 | N140: 数学
L141: 2 | M141: 小学教师 | N141: 英语
L142: 1 | M142: 小学教师 | N142: 科学
A143: 魏县教育体育局 | B143: 魏县教育局大马村乡中心校 | C143: 全额事业 | D143: 75 | E143: 67 | F143: 8 | G143: 3 | H143: 11 | L143: 2 | M143: 小学教师 | N143: 语文
L144: 2 | M144: 小学教师 | N144: 数学
L145: 2 | M145: 小学教师 | N145: 英语
L146: 1 | M146: 小学教师 | N146: 体育
L147: 1 | M147: 小学教师 | N147: 美术
K148: 1 | M148: 初中教师 | N148: 数学 | P148: 具有初级中学及以上教师资格证，教师资格证书任教学科与招聘岗位学科要一致；教师资格证任教学科是初中教育的可以报考初中阶段所有学科。 | R148: 不限 | S148: 普通全日制本科及以上学历,并取得相应学位证书。
K149: 1 | M149: 初中教师 | N149: 英语
L150: 1 | M150: 幼儿教师 | N150: 幼儿园 | O150: 具有的教师资格证非幼儿教育或学前教育学科的，要求规定学历所学专业须是幼儿教育或学前教育专业。 | P150: 具有教师资格证且教师资格证任教学科非幼儿教育或学前教育的，规定学历所学专业须是幼儿教育或学前教育专业；具有幼儿教育或学前教育教师资格证的。 | R150: 本科及以上学历的不限户籍；专科学历的，必须是魏县户籍，或配偶或父母是魏县户籍；2020年应届毕业生不限户籍。 | S150: 普通全日制专科及以上学历。
A151: 魏县教育体育局 | B151: 魏县教育局牙里镇中心校 | C151: 全额事业 | D151: 145 | E151: 128 | F151: 17 | G151: 8 | H151: 16 | L151: 1 | M151: 幼儿教师 | N151: 幼儿园
A152: 魏县教育体育局 | B152: 魏县教育局牙里镇中心校 | C152: 全额事业 | D152: 145 | E152: 128 | F152: 17 | G152: 8 | H152: 16 | L152: 4 | M152: 小学教师 | N152: 语文 | O152: 不限 | P152: 具有小学及以上教师资格证，教师资格证书任教学科与招聘岗位学科要一致；教师资格证任教学科是小学教育或初中教育的，可以报考小学阶段所有学科。 | Q152: 18周岁以上，35周岁及以下。 | R152: 本科及以上学历的不限户籍；专科学历的，必须是魏县户籍，或配偶或父母是魏县户籍；2020年应届毕业生不限户籍。 | S152: 普通全日制专科及以上学历。 | T152: 普通话水平必须取得国家语言文字工作委员会颁发的二级乙等及其以上《普通话水平测试等级证书》，语文岗位应取得二级甲等及其以上《普通话水平测试等级证书》 | U152: 录用后须在魏县教育教学岗位服务满3年，服务不足3年的，视为失信，记录失信档案。 | V152: 统一招聘
L153: 4 | M153: 小学教师 | N153: 数学
L154: 3 | M154: 小学教师 | N154: 英语
L155: 1 | M155: 小学教师 | N155: 音乐
L156: 1 | M156: 小学教师 | N156: 体育
L157: 1 | M157: 小学教师 | N157: 美术
L158: 1 | M158: 小学教师 | N158: 科学
A159: 魏县教育体育局 | B159: 魏县教育局张二庄镇中心校 | C159: 全额事业 | D159: 175 | E159: 155 | F159: 20 | G159: 9 | H159: 18 | L159: 6 | M159: 小学教师 | N159: 语文
L160: 6 | M160: 小学教师 | N160: 数学
L161: 3 | M161: 小学教师 | N161: 英语
L162: 1 | M162: 小学教师 | N162: 音乐
L163: 1 | M163: 小学教师 | N163: 体育
L164: 1 | M164: 幼儿教师 | N164: 幼儿园 | O164: 具有的教师资格证非幼儿教育或学前教育学科的，要求规定学历所学专业须是幼儿教育或学前教育专业。 | P164: 具有教师资格证且教师资格证任教学科非幼儿教育或学前教育的，规定学历所学专业须是幼儿教育或学前教育专业；具有幼儿教育或学前教育教师资格证的。

Sheet 总表-1稿 (hidden)
A1: 2020年邯郸市事业单位公开招聘工作人员岗位条件申报表
A2: 单位名称（盖章）：魏县教育体育局 填报时间：2020年3月23日
A3: 主管部门名称 | B3: 单位名称 | C3: 单位性质 | D3: 编制数 | E3: 实有人数 | F3: 空编数 | G3: 预计2020年度自然减员人数 | H3: 申报招聘计划数 | I3: 学历（学位）人数 | M3: 招聘岗位条件
I4: 博士 | J4: 硕士 | K4: 本科 | L4: 专科 | M4: 招聘岗位 | N4: 招聘学科 | O4: 专业 | P4: 其它条件 | V4: 招聘方式 | W4: 公开选聘院校范围 | X4: 备注
A5: 合计 | D5: =SUM(D6,D12,D24,D33,D42,D45,D54,D63,D75,D79,D82,D85,D86,D87,D88,D89,D104,D105,D112,D123,D124,D133,D142,D147,D155,D164) -> 3946 | E5: =SUM(E6,E12,E24,E33,E42,E45,E54,E63,E75,E79,E82,E85,E86,E87,E88,E89,E104,E105,E112,E123,E124,E133,E142,E147,E155,E164) -> 3628 | F5: =SUM(F6,F12,F24,F33,F42,F45,F54,F63,F75,F79,F82,F85,F86,F87,F88,F89,F104,F105,F112,F123,F124,F133,F142,F147,F155,F164) -> 318 | G5: =SUM(G6,G12,G24,G33,G42,G45,G54,G63,G75,G79,G82,G85,G86,G87,G88,G89,G104,G105,G112,G123,G124,G133,G142,G147,G155,G164) -> 113 | H5: =SUM(H6,H12,H24,H33,H42,H45,H54,H63,H75,H79,H82,H85,H86,H87,H88,H89,H104,H105,H112,H123,H124,H133,H142,H147,H155,H164) -> 300 | K5: =SUM(K6:K169) -> 185 | L5: =SUM(L6:L169) -> 115 | P5: 教师资格证条件要求 | Q5: 年龄 | R5: 户籍 | S5: 学历 | T5: 普通话等级 | U5: 服务年限
A6: 魏县教育体育局 | B6: 魏县第一中学 | C6: 全额事业 | D6: 470 | E6: 466 | F6: 4 | G6: 8 | H6: 12 | K6: 3 | M6: 高中教师 | N6: 语文 | O6: 不限 | P6: 具有高级中学及以上教师资格证，教师资格证书任教学科与招聘岗位学科要一致。 | Q6: 18周岁以上，35周岁及以下。 | R6: 不限 | S6: 普通全日制本科及以上学历,并取得相应学位证书。 | T6: 普通话水平必须取得国家语言文字工作委员会颁发的二级乙等及其以上《普通话水平测试等级证书》，语文岗位应取得二级甲等及其以上《普通话水平测试等级证书》 | U6: 录用后须在魏县教育教学岗位服务满3年，服务不足3年的，视为失信，记录失信档案。 | V6: 公开选聘 统一招聘 | W6: 统招全日制普通高校硕士研究生及以上学历，并取得相应学位证书的毕业生；教育部直属的北京师范大学等六所师范院校全日制本科学历，并取得相应学位证书的毕业生；“名校英才入冀”计划引进范围的普通高等院校和科研院所的全日制本科及以上学历，并取得相应学位证书的毕业生；河北师范大学统招全日制本科学历，并取得相应学位证书的毕业生。 以上院校均不含独立学院。
K7: 2 | M7: 高中教师 | N7: 数学
K8: 2 | M8: 高中教师 | N8: 英语
K9: 1 | M9: 高中教师 | N9: 物理
K10: 3 | M10: 高中教师 | N10: 生物
K11: 1 | M11: 高中教师 | N11: 地理
A12: 魏县教育体育局 | B12: 魏县第三中学 | C12: 全额事业 | D12: 180 | E12: 83 | F12: 97 | G12: 1 | H12: 42 | K12: 5 | M12: 高中教师 | N12: 语文
K13: 5 | M13: 高中教师 | N13: 数学
K14: 5 | M14: 高中教师 | N14: 英语
K15: 2 | M15: 高中教师 | N15: 物理
K16: 4 | M16: 高中教师 | N16: 化学
K17: 4 | M17: 高中教师 | N17: 生物
K18: 5 | M18: 高中教师 | N18: 历史
K19: 2 | M19: 高中教师 | N19: 地理
K20: 3 | M20: 高中教师 | N20: 政治
K21: 2 | M21: 高中教师 | N21: 信息技术
K22: 2 | M22: 高中教师 | N22: 体育
K23: 3 | M23: 高中教师 | N23: 美术
A24: 魏县教育体育局 | B24: 魏县第五中学 | C24: 全额事业 | D24: 240 | E24: 230 | F24: 10 | G24: 4 | H24: 14 | K24: 3 | M24: 高中教师 | N24: 语文 | O24: 不限 | P24: 具有高级中学及以上教师资格证，教师资格证书任教学科与招聘岗位学科要一致。 | Q24: 18周岁以上，35周岁及以下。 | R24: 不限 | S24: 普通全日制本科及以上学历,并取得相应学位证书。 | T24: 普通话水平必须取得国家语言文字工作委员会颁发的二级乙等及其以上《普通话水平测试等级证书》，语文岗位应取得二级甲等及其以上《普通话水平测试等级证书》 | U24: 录用后须在魏县教育教学岗位服务满3年，服务不足3年的，视为失信，记录失信档案。 | V24: 公开选聘 统一招聘 | W24: 统招全日制普通高校硕士研究生及以上学历，并取得相应学位证书的毕业生；教育部直属的北京师范大学等六所师范院校全日制本科学历，并取得相应学位证书的毕业生；“名校英才入冀”计划引进范围的普通高等院校和科研院所的全日制本科及以上学历，并取得相应学位证书的毕业生；河北师范大学统招全日制本科学历，并取得相应学位证书的毕业生。 以上院校均不含独立学院。
K25: 1 | M25: 高中教师 | N25: 数学
K26: 2 | M26: 高中教师 | N26: 英语
K27: 1 | M27: 高中教师 | N27: 物理
K28: 1 | M28: 高中教师 | N28: 化学
K29: 1 | M29: 高中教师 | N29: 生物
K30: 2 | M30: 高中教师 | N30: 历史
K31: 2 | M31: 高中教师 | N31: 地理
K32: 1 | M32: 高中教师 | N32: 政治
A33: 魏县教育体育局 | B33: 魏县第六中学 | C33: 全额事业 | D33: 220 | E33: 186 | F33: 34 | H33: 32 | K33: 1 | M33: 高中教师 | N33: 语文
K34: 2 | M34: 高中教师 | N34: 数学
K35: 3 | M35: 高中教师 | N35: 英语
K36: 6 | M36: 高中教师 | N36: 物理
K37: 2 | M37: 高中教师 | N37: 化学
K38: 5 | M38: 高中教师 | N38: 生物
K39: 5 | M39: 高中教师 | N39: 历史
K40: 6 | M40: 高中教师 | N40: 地理
K41: 2 | M41: 高中教师 | N41: 政治
A42: 魏县教育体育局 | B42: 魏县综合职业技术教育中心 | C42: 全额事业 | D42: 150 | E42: 320 | F42: -170 | G42: 4 | H42: 15 | K42: 1 | M42: 职教教师 | N42: 职教会计 | P42: 具有中等职业学校及以上教师资格证，教师资格证书任教学科与招聘岗位学科要一致。
K43: 5 | M43: 职教教师 | N43: 职教学前教育
K44: 9 | M44: 职教教师 | N44: 职教计算机科学与技术
A45: 魏县教育体育局 | B45: 魏县第八中学 | C45: 全额事业 | D45: 180 | E45: 155 | F45: 25 | H45: 20 | K45: 3 | M45: 初中教师 | N45: 语文 | O45: 不限 | P45: 具有初级中学及以上教师资格证，教师资格证书任教学科与招聘岗位学科要一致；教师资格证任教学科是初中教育的可以报考初中阶段所有学科。 | Q45: 18周岁以上，35周岁及以下。 | R45: 不限 | S45: 普通全日制本科及以上学历并取得相应学位证书。 | T45: 普通话水平必须取得国家语言文字工作委员会颁发的二级乙等及其以上《普通话水平测试等级证书》，语文岗位应取得二级甲等及其以上《普通话水平测试等级证书》 | U45: 录用后须在魏县教育教学岗位服务满3年，服务不足3年的，视为失信，记录失信档案。 | V45: 统一招聘
K46: 3 | M46: 初中教师 | N46: 数学
K47: 2 | M47: 初中教师 | N47: 英语
K48: 4 | M48: 初中教师 | N48: 物理
K49: 4 | M49: 初中教师 | N49: 化学
K50: 1 | M50: 初中教师 | N50: 生物
K51: 1 | M51: 初中教师 | N51: 历史
K52: 1 | M52: 初中教师 | N52: 地理
K53: 1 | M53: 初中教师 | N53: 政治
A54: 魏县教育体育局 | B54: 魏县大辛庄中学 | C54: 全额事业 | D54: 70 | E54: 53 | F54: 17 | G54: 2 | H54: 10 | K54: 2 | M54: 初中教师 | N54: 语文
K55: 1 | M55: 初中教师 | N55: 数学
K56: 1 | M56: 初中教师 | N56: 英语
K57: 1 | M57: 初中教师 | N57: 物理
K58: 1 | M58: 初中教师 | N58: 化学
K59: 1 | M59: 初中教师 | N59: 生物
K60: 1 | M60: 初中教师 | N60: 地理
K61: 1 | M61: 初中教师 | N61: 体育
K62: 1 | M62: 初中教师 | N62: 信息技术
A63: 魏县教育体育局 | B63: 魏县张二庄镇第一中学 | C63: 全额事业 | D63: 35 | E63: 20 | F63: 15 | H63: 12 | K63: 1 | M63: 初中教师 | N63: 语文 | O63: 不限 | P63: 具有初级中学及以上教师资格证，教师资格证书任教学科与招聘岗位学科要一致；教师资格证任教学科是初中教育的可以报考初中阶段所有学科。 | Q63: 18周岁以上，35周岁及以下。 | R63: 不限 | S63: 普通全日制本科及以上学历并取得相应学位证书。 | T63: 普通话水平必须取得国家语言文字工作委员会颁发的二级乙等及其以上《普通话水平测试等级证书》，语文岗位应取得二级甲等及其以上《普通话水平测试等级证书》 | U63: 录用后须在魏县教育教学岗位服务满3年，服务不足3年的，视为失信，记录失信档案。 | V63: 统一招聘
K64: 1 | M64: 初中教师 | N64: 数学
K65: 1 | M65: 初中教师 | N65: 英语
K66: 1 | M66: 初中教师 | N66: 物理
K67: 1 | M67: 初中教师 | N67: 化学
K68: 1 | M68: 初中教师 | N68: 生物
K69: 1 | M69: 初中教师 | N69: 历史
K70: 1 | M70: 初中教师 | N70: 地理
K71: 1 | M71: 初中教师 | N71: 政治
K72: 1 | M72: 初中教师 | N72: 信息技术
K73: 1 | M73: 初中教师 | N73: 音乐
K74: 1 | M74: 初中教师 | N74: 体育
A75: 魏县教育体育局 | B75: 魏县车往中学 | C75: 全额事业 | D75: 115 | E75: 107 | F75: 8 | G75: 1 | H75: 4 | K75: 1 | M75: 初中教师 | N75: 语文
K76: 1 | M76: 初中教师 | N76: 数学
K77: 1 | M77: 初中教师 | N77: 英语
K78: 1 | M78: 初中教师 | N78: 物理
A79: 魏县教育体育局 | B79: 魏县泊口乡中学 | C79: 全额事业 | D79: 29 | E79: 21 | F79: 8 | H79: 3 | K79: 1 | M79: 初中教师 | N79: 语文
K80: 1 | M80: 初中教师 | N80: 数学
K81: 1 | M81: 初中教师 | N81: 英语
A82: 魏县教育体育局 | B82: 魏县北皋联合中学 | C82: 全额事业 | D82: 78 | E82: 65 | F82: 13 | G82: 2 | H82: 3 | K82: 1 | M82: 初中教师 | N82: 语文
K83: 1 | M83: 初中教师 | N83: 数学
K84: 1 | M84: 初中教师 | N84: 物理
A85: 魏县教育体育局 | B85: 魏县教育局沙口集乡中心校 | C85: 全额事业 | D85: 150 | E85: 129 | F85: 21 | G85: 6 | H85: 1 | L85: 1 | M85: 幼儿教师 | N85: 幼儿园 | O85: 具有的教师资格证非幼儿教育或学前教育学科的，要求规定学历所学专业须是幼儿教育或学前教育专业。 | P85: 具有教师资格证且教师资格证任教学科非幼儿教育或学前教育的，规定学历所学专业须是幼儿教育或学前教育专业；具有幼儿教育或学前教育教师资格证的。 | Q85: 18周岁以上，35周岁及以下。 | R85: 本科及以上学历的不限户籍；专科学历的，必须是魏县户籍，或配偶或父母是魏县户籍；2020年应届毕业生不限户籍。 | S85: 普通全日制专科及以上学历。 | T85: 普通话水平必须取得国家语言文字工作委员会颁发的二级乙等及其以上《普通话水平测试等级证书》，语文岗位应取得二级甲等及其以上《普通话水平测试等级证书》 | U85: 录用后须在魏县教育教学岗位服务满3年，服务不足3年的，视为失信，记录失信档案。 | V85: 统一招聘
A86: 魏县教育体育局 | B86: 魏县教育局野胡拐中心校 | C86: 全额事业 | D86: 76 | E86: 76 | G86: 1 | H86: 1 | L86: 1 | M86: 幼儿教师 | N86: 幼儿园
A87: 魏县教育体育局 | B87: 魏县教育局前大磨中心校 | C87: 全额事业 | D87: 155 | E87: 151 | F87: 4 | G87: 5 | H87: 1 | L87: 1 | M87: 幼儿教师 | N87: 幼儿园
A88: 魏县教育体育局 | B88: 魏县教育局院堡乡中心校 | C88: 全额事业 | D88: 125 | E88: 123 | F88: 2 | G88: 3 | H88: 1 | L88: 1 | M88: 幼儿教师 | N88: 幼儿园
A89: 魏县教育体育局 | B89: 魏县教育局北皋镇中心校 | C89: 全额事业 | D89: 325 | E89: 265 | F89: 60 | G89: 14 | H89: 23 | L89: 1 | M89: 幼儿教师 | N89: 幼儿园
L90: 2 | M90: 小学教师 | N90: 语文 | O90: 不限 | P90: 具有小学及以上教师资格证，教师资格证书任教学科与招聘岗位学科要一致；教师资格证任教学科是小学教育或初中教育的，可以报考小学阶段所有学科。
L91: 3 | M91: 小学教师 | N91: 数学
L92: 4 | M92: 小学教师 | N92: 英语
L93: 1 | M93: 小学教师 | N93: 音乐
L94: 1 | M94: 小学教师 | N94: 体育
L95: 2 | M95: 小学教师 | N95: 品德与社会
L96: 2 | M96: 小学教师 | N96: 科学
A97: 魏县教育体育局 | B97: 魏县教育局北皋镇中心校 | C97: 全额事业 | D97: 325 | E97: 265 | F97: 60 | G97: 14 | H97: 23 | K97: 1 | M97: 初中教师 | N97: 语文 | O97: 不限 | P97: 具有初级中学及以上教师资格证，教师资格证书任教学科与招聘岗位学科要一致；教师资格证任教学科是初中教育的可以报考初中阶段所有学科。 | Q97: 18周岁以上，35周岁及以下。 | R97: 不限 | S97: 普通全日制本科及以上学历并取得相应学位证书。 | T97: 普通话水平必须取得国家语言文字工作委员会颁发的二级乙等及其以上《普通话水平测试等级证书》，语文岗位应取得二级甲等及其以上《普通话水平测试等级证书》 | U97: 录用后须在魏县教育教学岗位服务满3年，服务不足3年的，视为失信，记录失信档案。 | V97: 统一招聘
K98: 1 | M98: 初中教师 | N98: 数学
K99: 1 | M99: 初中教师 | N99: 英语
K100: 1 | M100: 初中教师 | N100: 物理
K101: 1 | M101: 初中教师 | N101: 化学
K102: 1 | M102: 初中教师 | N102: 音乐
K103: 1 | M103: 初中教师 | N103: 体育
A104: 魏县教育体育局 | B104: 魏县教育局北台头乡中心校 | C104: 全额事业 | D104: 90 | E104: 77 | F104: 13 | G104: 5 | H104: 1 | L104: 1 | M104: 幼儿教师 | N104: 幼儿园 | O104: 具有的教师资格证非幼儿教育或学前教育学科的，要求规定学历所学专业须是幼儿教育或学前教育专业。 | P104: 具有教师资格证且教师资格证任教学科非幼儿教育或学前教育的，规定学历所学专业须是幼儿教育或学前教育专业；具有幼儿教育或学前教育教师资格证的。 | R104: 本科及以上学历的不限户籍；专科学历的，必须是魏县户籍，或配偶或父母是魏县户籍；2020年应届毕业生不限户籍。 | S104: 普通全日制专科及以上学历。
A105: 魏县教育体育局 | B105: 魏县教育局车往镇中心校 | C105: 全额事业 | D105: 185 | E105: 137 | F105: 48 | G105: 8 | H105: 7 | L105: 1 | M105: 幼儿教师 | N105: 幼儿园
A106: 魏县教育体育局 | B106: 魏县教育局车往镇中心校 | C106: 全额事业 | D106: 185 | E106: 137 | F106: 48 | G106: 8 | H106: 7 | L106: 1 | M106: 小学教师 | N106: 语文 | O106: 不限 | P106: 具有小学及以上教师资格证，教师资格证书任教学科与招聘岗位学科要一致；教师资格证任教学科是小学教育或初中教育的，可以报考小学阶段所有学科。 | Q106: 18周岁以上，35周岁及以下。 | R106: 本科及以上学历的不限户籍；专科学历的，必须是魏县户籍，或配偶或父母是魏县户籍；2020年应届毕业生不限户籍。 | S106: 普通全日制专科及以上学历。 | T106: 普通话水平必须取得国家语言文字工作委员会颁发的二级乙等及其以上《普通话水平测试等级证书》，语文岗位应取得二级甲等及其以上《普通话水平测试等级证书》 | U106: 录用后须在魏县教育教学岗位服务满3年，服务不足3年的，视为失信，记录失信档案。 | V106: 统一招聘
L107: 1 | M107: 小学教师 | N107: 数学
L108: 1 | M108: 小学教师 | N108: 英语
L109: 1 | M109: 小学教师 | N109: 音乐
L110: 1 | M110: 小学教师 | N110: 体育
L111: 1 | M111: 小学教师 | N111: 品德与社会
A112: 魏县教育体育局 | B112: 魏县教育局回隆镇中心校 | C112: 全额事业 | D112: 164 | E112: 154 | F112: 10 | G112: 9 | H112: 13 | L112: 2 | M112: 小学教师 | N112: 语文
L113: 2 | M113: 小学教师 | N113: 数学
L114: 1 | M114: 小学教师 | N114: 英语
L115: 1 | M115: 小学教师 | N115: 音乐
L116: 1 | M116: 小学教师 | N116: 体育
K117: 1 | M117: 初中教师 | N117: 语文 | P117: 具有初级中学及以上教师资格证，教师资格证书任教学科与招聘岗位学科要一致；教师资格证任教学科是初中教育的可以报考初中阶段所有学科。 | R117: 不限 | S117: 普通全日制本科及以上学历并取得相应学位证书。
K118: 1 | M118: 初中教师 | N118: 物理
K119: 1 | M119: 初中教师 | N119: 生物
K120: 1 | M120: 初中教师 | N120: 历史
K121: 1 | M121: 初中教师 | N121: 地理
A122: 魏县教育体育局 | B122: 魏县教育局回隆镇中心校 | C122: 全额事业 | D122: 164 | E122: 154 | F122: 10 | G122: 9 | H122: 13 | L122: 1 | M122: 幼儿教师 | N122: 幼儿园 | O122: 具有的教师资格证非幼儿教育或学前教育学科的，要求规定学历所学专业须是幼儿教育或学前教育专业。 | P122: 具有教师资格证且教师资格证任教学科非幼儿教育或学前教育的，规定学历所学专业须是幼儿教育或学前教育专业；具有幼儿教育或学前教育教师资格证的。 | Q122: 18周岁以上，35周岁及以下。 | R122: 本科及以上学历的不限户籍；专科学历的，必须是魏县户籍，或配偶或父母是魏县户籍；2020年应届毕业生不限户籍。 | S122: 普通全日制专科及以上学历。 | T122: 普通话水平必须取得国家语言文字工作委员会颁发的二级乙等及其以上《普通话水平测试等级证书》，语文岗位应取得二级甲等及其以上《普通话水平测试等级证书》 | U122: 录用后须在魏县教育教学岗位服务满3年，服务不足3年的，视为失信，记录失信档案。 | V122: 统一招聘
A123: 魏县教育体育局 | B123: 魏县教育局双庙乡中心校 | C123: 全额事业 | D123: 110 | E123: 105 | F123: 5 | G123: 3 | H123: 1 | L123: 1 | M123: 幼儿教师 | N123: 幼儿园
A124: 魏县教育体育局 | B124: 魏县教育局泊口乡中心校 | C124: 全额事业 | D124: 99 | E124: 85 | F124: 14 | G124: 6 | H124: 11 | L124: 1 | M124: 幼儿教师 | N124: 幼儿园
L125: 2 | M125: 小学教师 | N125: 语文 | O125: 不限 | P125: 具有小学及以上教师资格证，教师资格证书任教学科与招聘岗位学科要一致；教师资格证任教学科是小学教育或初中教育的，可以报考小学阶段所有学科。
L126: 1 | M126: 小学教师 | N126: 数学
L127: 1 | M127: 小学教师 | N127: 英语
L128: 1 | M128: 小学教师 | N128: 音乐
L129: 1 | M129: 小学教师 | N129: 体育
L130: 1 | M130: 小学教师 | N130: 美术
L131: 1 | M131: 小学教师 | N131: 品德与社会
L132: 2 | M132: 小学教师 | N132: 科学
A133: 魏县教育体育局 | B133: 魏县教育局边马乡中心校 | C133: 全额事业 | D133: 185 | E133: 152 | F133: 33 | G133: 7 | H133: 22 | K133: 1 | M133: 初中教师 | N133: 语文 | O133: 不限 | P133: 具有初级中学及以上教师资格证，教师资格证书任教学科与招聘岗位学科要一致；教师资格证任教学科是初中教育的可以报考初中阶段所有学科。 | Q133: 18周岁以上，35周岁及以下。 | R133: 不限 | S133: 普通全日制本科及以上学历,并取得相应学位证书。 | T133: 普通话水平必须取得国家语言文字工作委员会颁发的二级乙等及其以上《普通话水平测试等级证书》，语文岗位应取得二级甲等及其以上《普通话水平测试等级证书》 | U133: 录用后须在魏县教育教学岗位服务满3年，服务不足3年的，视为失信，记录失信档案。 | V133: 统一招聘
K134: 1 | M134: 初中教师 | N134: 数学
K135: 1 | M135: 初中教师 | N135: 英语
K136: 1 | M136: 初中教师 | N136: 物理
L137: 6 | M137: 小学教师 | N137: 语文 | P137: 具有小学及以上教师资格证，教师资格证书任教学科与招聘岗位学科要一致；教师资格证任教学科是小学教育或初中教育的，可以报考小学阶段所有学科。 | R137: 本科及以上学历的不限户籍；专科学历的，必须是魏县户籍，或配偶或父母是魏县户籍；2020年应届毕业生不限户籍。 | S137: 普通全日制专科及以上学历。
L138: 6 | M138: 小学教师 | N138: 数学
L139: 4 | M139: 小学教师 | N139: 英语
L140: 1 | M140: 小学教师 | N140: 音乐
L141: 1 | M141: 幼儿教师 | N141: 幼儿园 | O141: 具有的教师资格证非幼儿教育或学前教育学科的，要求规定学历所学专业须是幼儿教育或学前教育专业。 | P141: 具有教师资格证且教师资格证任教学科非幼儿教育或学前教育的，规定学历所学专业须是幼儿教育或学前教育专业；具有幼儿教育或学前教育教师资格证的。
A142: 魏县教育体育局 | B142: 魏县教育局大辛庄乡中心校 | C142: 全额事业 | D142: 120 | E142: 118 | F142: 2 | G142: 4 | H142: 6 | L142: 1 | M142: 幼儿教师 | N142: 幼儿园
A143: 魏县教育体育局 | B143: 魏县教育局大辛庄乡中心校 | C143: 全额事业 | D143: 120 | E143: 118 | F143: 2 | G143: 4 | H143: 6 | L143: 1 | M143: 小学教师 | N143: 语文 | O143: 不限 | P143: 具有小学及以上教师资格证，教师资格证书任教学科与招聘岗位学科要一致；教师资格证任教学科是小学教育或初中教育的，可以报考小学阶段所有学科。 | Q143: 18周岁以上，35周岁及以下。 | R143: 本科及以上学历的不限户籍；专科学历的，必须是魏县户籍，或配偶或父母是魏县户籍；2020年应届毕业生不限户籍。 | S143: 普通全日制专科及以上学历。 | T143: 普通话水平必须取得国家语言文字工作委员会颁发的二级乙等及其以上《普通话水平测试等级证书》，语文岗位应取得二级甲等及其以上《普通话水平测试等级证书》 | U143: 录用后须在魏县教育教学岗位服务满3年，服务不足3年的，视为失信，记录失信档案。 | V143: 统一招聘
L144: 1 | M144: 小学教师 | N144: 数学
L145: 1 | M145: 小学教师 | N145: 英语
L146: 2 | M146: 小学教师 | N146: 科学
A147: 魏县教育体育局 | B147: 魏县教育局大马村乡中心校 | C147: 全额事业 | D147: 75 | E147: 67 | F147: 8 | G147: 3 | H147: 11 | L147: 2 | M147: 小学教师 | N147: 语文
L148: 2 | M148: 小学教师 | N148: 数学
L149: 2 | M149: 小学教师 | N149: 英语
L150: 1 | M150: 小学教师 | N150: 体育
L151: 1 | M151: 小学教师 | N151: 美术
K152: 1 | M152: 初中教师 | N152: 数学 | P152: 具有初级中学及以上教师资格证，教师资格证书任教学科与招聘岗位学科要一致；教师资格证任教学科是初中教育的可以报考初中阶段所有学科。 | R152: 不限 | S152: 普通全日制本科及以上学历,并取得相应学位证书。
K153: 1 | M153: 初中教师 | N153: 英语
L154: 1 | M154: 幼儿教师 | N154: 幼儿园 | O154: 具有的教师资格证非幼儿教育或学前教育学科的，要求规定学历所学专业须是幼儿教育或学前教育专业。 | P154: 具有教师资格证且教师资格证任教学科非幼儿教育或学前教育的，规定学历所学专业须是幼儿教育或学前教育专业；具有幼儿教育或学前教育教师资格证的。 | R154: 本科及以上学历的不限户籍；专科学历的，必须是魏县户籍，或配偶或父母是魏县户籍；2020年应届毕业生不限户籍。 | S154: 普通全日制专科及以上学历。
A155: 魏县教育体育局 | B155: 魏县教育局牙里镇中心校 | C155: 全额事业 | D155: 145 | E155: 128 | F155: 17 | G155: 8 | H155: 16 | L155: 1 | M155: 幼儿教师 | N155: 幼儿园
A156: 魏县教育体育局 | B156: 魏县教育局牙里镇中心校 | C156: 全额事业 | D156: 145 | E156: 128 | F156: 17 | G156: 8 | H156: 16 | L156: 3 | M156: 小学教师 | N156: 语文 | O156: 不限 | P156: 具有小学及以上教师资格证，教师资格证书任教学科与招聘岗位学科要一致；教师资格证任教学科是小学教育或初中教育的，可以报考小学阶段所有学科。 | Q156: 18周岁以上，35周岁及以下。 | R156: 本科及以上学历的不限户籍；专科学历的，必须是魏县户籍，或配偶或父母是魏县户籍；2020年应届毕业生不限户籍。 | S156: 普通全日制专科及以上学历。 | T156: 普通话水平必须取得国家语言文字工作委员会颁发的二级乙等及其以上《普通话水平测试等级证书》，语文岗位应取得二级甲等及其以上《普通话水平测试等级证书》 | U156: 录用后须在魏县教育教学岗位服务满3年，服务不足3年的，视为失信，记录失信档案。 | V156: 统一招聘
L157: 2 | M157: 小学教师 | N157: 数学
L158: 2 | M158: 小学教师 | N158: 英语
L159: 1 | M159: 小学教师 | N159: 音乐
L160: 1 | M160: 小学教师 | N160: 体育
L161: 1 | M161: 小学教师 | N161: 美术
L162: 3 | M162: 小学教师 | N162: 品德与社会
L163: 2 | M163: 小学教师 | N163: 科学
A164: 魏县教育体育局 | B164: 魏县教育局张二庄镇中心校 | C164: 全额事业 | D164: 175 | E164: 155 | F164: 20 | G164: 9 | H164: 18 | L164: 5 | M164: 小学教师 | N164: 语文
L165: 6 | M165: 小学教师 | N165: 数学
L166: 4 | M166: 小学教师 | N166: 英语
L167: 1 | M167: 小学教师 | N167: 音乐
L168: 1 | M168: 小学教师 | N168: 体育
L169: 1 | M169: 幼儿教师 | N169: 幼儿园 | O169: 具有的教师资格证非幼儿教育或学前教育学科的，要求规定学历所学专业须是幼儿教育或学前教育专业。 | P169: 具有教师资格证且教师资格证任教学科非幼儿教育或学前教育的，规定学历所学专业须是幼儿教育或学前教育专业；具有幼儿教育或学前教育教师资格证的。
A170: 注：1、单位名称写全称；2、单位性质分：全额事业、差额事业、自收自支事业，一个单位多种编制性质的，应写明招聘岗位所占编制；3、专业及条件要符合政策和规范；4、招聘方式为选聘或统一招聘，选聘条件要符合公开招聘有关规定；5、报表一式两份，加盖单位公章。各县（市、区）申报计划要征求当地编制部门意见并盖章。

Sheet 总表-2稿+卫生 (hidden)
A1: 2020年邯郸市事业单位公开招聘工作人员岗位条件申报表
A2: 单位名称（盖章）：魏县教育体育局 填报时间：2020年3月23日
A3: 主管部门名称 | B3: 单位名称 | C3: 单位性质 | D3: 编制数 | E3: 实有人数 | F3: 空编数 | G3: 预计2020年度自然减员人数 | H3: 申报招聘计划数 | I3: 学历（学位）人数 | M3: 招聘岗位条件
I4: 博士 | J4: 硕士 | K4: 本科 | L4: 专科 | M4: 招聘岗位 | N4: 招聘学科 | O4: 专业 | P4: 其它条件 | V4: 招聘方式 | W4: 公开选聘院校范围 | X4: 备注
A5: 合计 | D5: =SUM(D198,D196,D191,D190,D189,D188,D187,D186,D185,D184,D182,D180,D178,D176,D174,D171,D164,D155,D147,D142,D133,D124,D123,D112,D105,D104,D89,D88,D87,D86,D85,D82,D79,D75,D63,D54,D45,D42,D33,D24,D12,D6,) -> 6519 | E5: =SUM(E198,E196,E191,E190,E189,E188,E187,E186,E185,E184,E182,E180,E178,E176,E174,E171,E164,E155,E147,E142,E133,E124,E123,E112,E105,E104,E89,E88,E87,E86,E85,E82,E79,E75,E63,E54,E45,E42,E33,E24,E12,E6,) -> 6023 | F5: =SUM(F198,F196,F191,F190,F189,F188,F187,F186,F185,F184,F182,F180,F178,F176,F174,F171,F164,F155,F147,F142,F133,F124,F123,F112,F105,F104,F89,F88,F87,F86,F85,F82,F79,F75,F63,F54,F45,F42,F33,F24,F12,F6,) -> 496 | G5: =SUM(G198,G196,G191,G190,G189,G188,G187,G186,G185,G184,G182,G180,G178,G176,G174,G171,G164,G155,G147,G142,G133,G124,G123,G112,G105,G104,G89,G88,G87,G86,G85,G82,G79,G75,G63,G54,G45,G42,G33,G24,G12,G6,) -> 167 | H5: =SUM(H6,H12,H24,H33,H42,H45,H54,H63,H75,H79,H82,H85,H86,H87,H88,H89,H104,H105,H112,H123,H124,H133,H142,H147,H155,H164,H170:H198) -> 330 | K5: =SUM(K6:K198) -> 185 | L5: =SUM(L6:L198) -> 145 | P5: 资格证条件要求 | Q5: 年龄 | R5: 户籍 | S5: 学历 | T5: 普通话等级 | U5: 服务年限
A6: 魏县教育体育局 | B6: 魏县第一中学 | C6: 全额事业 | D6: 470 | E6: 466 | F6: 4 | G6: 10 | H6: 12 | K6: 3 | M6: 高中教师 | N6: 语文 | O6: 不限 | P6: 具有高级中学及以上教师资格证，教师资格证书任教学科与招聘岗位学科要一致。 | Q6: 18周岁以上，35周岁及以下。 | R6: 不限 | S6: 普通全日制本科及以上学历,并取得相应学位证书。 | T6: 普通话水平必须取得国家语言文字工作委员会颁发的二级乙等及其以上《普通话水平测试等级证书》，语文岗位应取得二级甲等及其以上《普通话水平测试等级证书》 | U6: 录用后须在魏县教育教学岗位服务满3年，服务不足3年的，视为失信，记录失信档案。 | V6: 公开选聘 统一招聘 | W6: 统招全日制普通高校硕士研究生及以上学历，并取得相应学位证书的毕业生；教育部直属的北京师范大学等六所师范院校全日制本科学历，并取得相应学位证书的毕业生；“名校英才入冀”计划引进范围的普通高等院校和科研院所的全日制本科及以上学历，并取得相应学位证书的毕业生；河北师范大学统招全日制本科学历，并取得相应学位证书的毕业生。 以上院校均不含独立学院。
K7: 2 | M7: 高中教师 | N7: 数学
K8: 2 | M8: 高中教师 | N8: 英语
K9: 1 | M9: 高中教师 | N9: 物理
K10: 3 | M10: 高中教师 | N10: 生物
K11: 1 | M11: 高中教师 | N11: 地理
A12: 魏县教育体育局 | B12: 魏县第三中学 | C12: 全额事业 | D12: 180 | E12: 83 | F12: 97 | G12: 1 | H12: 42 | K12: 5 | M12: 高中教师 | N12: 语文
K13: 5 | M13: 高中教师 | N13: 数学
K14: 5 | M14: 高中教师 | N14: 英语
K15: 2 | M15: 高中教师 | N15: 物理
K16: 4 | M16: 高中教师 | N16: 化学
K17: 4 | M17: 高中教师 | N17: 生物
K18: 5 | M18: 高中教师 | N18: 历史
K19: 2 | M19: 高中教师 | N19: 地理
K20: 3 | M20: 高中教师 | N20: 政治
K21: 2 | M21: 高中教师 | N21: 信息技术
K22: 2 | M22: 高中教师 | N22: 体育
K23: 3 | M23: 高中教师 | N23: 美术
A24: 魏县教育体育局 | B24: 魏县第五中学 | C24: 全额事业 | D24: 240 | E24: 230 | F24: 10 | G24: 6 | H24: 14 | K24: 3 | M24: 高中教师 | N24: 语文 | O24: 不限 | P24: 具有高级中学及以上教师资格证，教师资格证书任教学科与招聘岗位学科要一致。 | Q24: 18周岁以上，35周岁及以下。 | R24: 不限 | S24: 普通全日制本科及以上学历,并取得相应学位证书。 | T24: 普通话水平必须取得国家语言文字工作委员会颁发的二级乙等及其以上《普通话水平测试等级证书》，语文岗位应取得二级甲等及其以上《普通话水平测试等级证书》 | U24: 录用后须在魏县教育教学岗位服务满3年，服务不足3年的，视为失信，记录失信档案。 | V24: 公开选聘 统一招聘 | W24: 统招全日制普通高校硕士研究生及以上学历，并取得相应学位证书的毕业生；教育部直属的北京师范大学等六所师范院校全日制本科学历，并取得相应学位证书的毕业生；“名校英才入冀”计划引进范围的普通高等院校和科研院所的全日制本科及以上学历，并取得相应学位证书的毕业生；河北师范大学统招全日制本科学历，并取得相应学位证书的毕业生。 以上院校均不含独立学院。
K25: 1 | M25: 高中教师 | N25: 数学
K26: 2 | M26: 高中教师 | N26: 英语
K27: 1 | M27: 高中教师 | N27: 物理
K28: 1 | M28: 高中教师 | N28: 化学
K29: 1 | M29: 高中教师 | N29: 生物
K30: 2 | M30: 高中教师 | N30: 历史
K31: 2 | M31: 高中教师 | N31: 地理
K32: 1 | M32: 高中教师 | N32: 政治
A33: 魏县教育体育局 | B33: 魏县第六中学 | C33: 全额事业 | D33: 220 | E33: 186 | F33: 34 | H33: 32 | K33: 1 | M33: 高中教师 | N33: 语文
K34: 2 | M34: 高中教师 | N34: 数学
K35: 3 | M35: 高中教师 | N35: 英语
K36: 6 | M36: 高中教师 | N36: 物理
K37: 2 | M37: 高中教师 | N37: 化学
K38: 5 | M38: 高中教师 | N38: 生物
K39: 5 | M39: 高中教师 | N39: 历史
K40: 6 | M40: 高中教师 | N40: 地理
K41: 2 | M41: 高中教师 | N41: 政治
A42: 魏县教育体育局 | B42: 魏县综合职业技术教育中心 | C42: 全额事业 | D42: 150 | E42: 320 | F42: -170 | G42: 4 | H42: 15 | K42: 1 | M42: 职教教师 | N42: 职教会计 | P42: 具有中等职业学校及以上教师资格证，教师资格证书任教学科与招聘岗位学科要一致。
K43: 5 | M43: 职教教师 | N43: 职教学前教育
K44: 9 | M44: 职教教师 | N44: 职教计算机科学与技术
A45: 魏县教育体育局 | B45: 魏县第八中学 | C45: 全额事业 | D45: 180 | E45: 155 | F45: 25 | H45: 20 | K45: 3 | M45: 初中教师 | N45: 语文 | O45: 不限 | P45: 具有初级中学及以上教师资格证，教师资格证书任教学科与招聘岗位学科要一致；教师资格证任教学科是初中教育的可以报考初中阶段所有学科。 | Q45: 18周岁以上，35周岁及以下。 | R45: 不限 | S45: 普通全日制本科及以上学历并取得相应学位证书。 | T45: 普通话水平必须取得国家语言文字工作委员会颁发的二级乙等及其以上《普通话水平测试等级证书》，语文岗位应取得二级甲等及其以上《普通话水平测试等级证书》 | U45: 录用后须在魏县教育教学岗位服务满3年，服务不足3年的，视为失信，记录失信档案。 | V45: 统一招聘
K46: 3 | M46: 初中教师 | N46: 数学
K47: 2 | M47: 初中教师 | N47: 英语
K48: 4 | M48: 初中教师 | N48: 物理
K49: 4 | M49: 初中教师 | N49: 化学
K50: 1 | M50: 初中教师 | N50: 生物
K51: 1 | M51: 初中教师 | N51: 历史
K52: 1 | M52: 初中教师 | N52: 地理
K53: 1 | M53: 初中教师 | N53: 政治
A54: 魏县教育体育局 | B54: 魏县大辛庄中学 | C54: 全额事业 | D54: 70 | E54: 53 | F54: 17 | G54: 2 | H54: 10 | K54: 2 | M54: 初中教师 | N54: 语文
K55: 1 | M55: 初中教师 | N55: 数学
K56: 1 | M56: 初中教师 | N56: 英语
K57: 1 | M57: 初中教师 | N57: 物理
K58: 1 | M58: 初中教师 | N58: 化学
K59: 1 | M59: 初中教师 | N59: 生物
K60: 1 | M60: 初中教师 | N60: 地理
K61: 1 | M61: 初中教师 | N61: 体育
K62: 1 | M62: 初中教师 | N62: 信息技术
A63: 魏县教育体育局 | B63: 魏县张二庄镇第一中学 | C63: 全额事业 | D63: 35 | E63: 20 | F63: 15 | H63: 12 | K63: 1 | M63: 初中教师 | N63: 语文 | O63: 不限 | P63: 具有初级中学及以上教师资格证，教师资格证书任教学科与招聘岗位学科要一致；教师资格证任教学科是初中教育的可以报考初中阶段所有学科。 | Q63: 18周岁以上，35周岁及以下。 | R63: 不限 | S63: 普通全日制本科及以上学历并取得相应学位证书。 | T63: 普通话水平必须取得国家语言文字工作委员会颁发的二级乙等及其以上《普通话水平测试等级证书》，语文岗位应取得二级甲等及其以上《普通话水平测试等级证书》 | U63: 录用后须在魏县教育教学岗位服务满3年，服务不足3年的，视为失信，记录失信档案。 | V63: 统一招聘
K64: 1 | M64: 初中教师 | N64: 数学
K65: 1 | M65: 初中教师 | N65: 英语
K66: 1 | M66: 初中教师 | N66: 物理
K67: 1 | M67: 初中教师 | N67: 化学
K68: 1 | M68: 初中教师 | N68: 生物
K69: 1 | M69: 初中教师 | N69: 历史
K70: 1 | M70: 初中教师 | N70: 地理
K71: 1 | M71: 初中教师 | N71: 政治
K72: 1 | M72: 初中教师 | N72: 信息技术
K73: 1 | M73: 初中教师 | N73: 音乐
K74: 1 | M74: 初中教师 | N74: 体育
A75: 魏县教育体育局 | B75: 魏县车往中学 | C75: 全额事业 | D75: 115 | E75: 107 | F75: 8 | G75: 1 | H75: 4 | K75: 1 | M75: 初中教师 | N75: 语文
K76: 1 | M76: 初中教师 | N76: 数学
K77: 1 | M77: 初中教师 | N77: 英语
K78: 1 | M78: 初中教师 | N78: 物理
A79: 魏县教育体育局 | B79: 魏县泊口乡中学 | C79: 全额事业 | D79: 29 | E79: 21 | F79: 8 | H79: 3 | K79: 1 | M79: 初中教师 | N79: 语文
K80: 1 | M80: 初中教师 | N80: 数学
K81: 1 | M81: 初中教师 | N81: 英语
A82: 魏县教育体育局 | B82: 魏县北皋联合中学 | C82: 全额事业 | D82: 78 | E82: 65 | F82: 13 | G82: 2 | H82: 3 | K82: 1 | M82: 初中教师 | N82: 语文
K83: 1 | M83: 初中教师 | N83: 数学
K84: 1 | M84: 初中教师 | N84: 物理
A85: 魏县教育体育局 | B85: 魏县教育局沙口集乡中心校 | C85: 全额事业 | D85: 150 | E85: 129 | F85: 21 | G85: 6 | H85: 1 | L85: 1 | M85: 幼儿教师 | N85: 幼儿园 | O85: 具有的教师资格证非幼儿教育或学前教育学科的，要求规定学历所学专业须是幼儿教育或学前教育专业。 | P85: 具有教师资格证且教师资格证任教学科非幼儿教育或学前教育的，规定学历所学专业须是幼儿教育或学前教育专业；具有幼儿教育或学前教育教师资格证的。 | Q85: 18周岁以上，35周岁及以下。 | R85: 本科及以上学历的不限户籍；专科学历的，必须是魏县户籍，或配偶或父母是魏县户籍；2020年应届毕业生不限户籍。 | S85: 普通全日制专科及以上学历。 | T85: 普通话水平必须取得国家语言文字工作委员会颁发的二级乙等及其以上《普通话水平测试等级证书》，语文岗位应取得二级甲等及其以上《普通话水平测试等级证书》 | U85: 录用后须在魏县教育教学岗位服务满3年，服务不足3年的，视为失信，记录失信档案。 | V85: 统一招聘
A86: 魏县教育体育局 | B86: 魏县教育局野胡拐中心校 | C86: 全额事业 | D86: 76 | E86: 76 | G86: 1 | H86: 1 | L86: 1 | M86: 幼儿教师 | N86: 幼儿园
A87: 魏县教育体育局 | B87: 魏县教育局前大磨中心校 | C87: 全额事业 | D87: 155 | E87: 151 | F87: 4 | G87: 5 | H87: 1 | L87: 1 | M87: 幼儿教师 | N87: 幼儿园
A88: 魏县教育体育局 | B88: 魏县教育局院堡乡中心校 | C88: 全额事业 | D88: 125 | E88: 123 | F88: 2 | G88: 3 | H88: 1 | L88: 1 | M88: 幼儿教师 | N88: 幼儿园
A89: 魏县教育体育局 | B89: 魏县教育局北皋镇中心校 | C89: 全额事业 | D89: 325 | E89: 265 | F89: 60 | G89: 14 | H89: 23 | L89: 1 | M89: 幼儿教师 | N89: 幼儿园
L90: 2 | M90: 小学教师 | N90: 语文 | O90: 不限 | P90: 具有小学及以上教师资格证，教师资格证书任教学科与招聘岗位学科要一致；教师资格证任教学科是小学教育或初中教育的，可以报考小学阶段所有学科。
L91: 3 | M91: 小学教师 | N91: 数学
L92: 4 | M92: 小学教师 | N92: 英语
L93: 1 | M93: 小学教师 | N93: 音乐
L94: 1 | M94: 小学教师 | N94: 体育
L95: 2 | M95: 小学教师 | N95: 品德与社会
L96: 2 | M96: 小学教师 | N96: 科学
A97: 魏县教育体育局 | B97: 魏县教育局北皋镇中心校 | C97: 全额事业 | D97: 325 | E97: 265 | F97: 60 | G97: 14 | H97: 23 | K97: 1 | M97: 初中教师 | N97: 语文 | O97: 不限 | P97: 具有初级中学及以上教师资格证，教师资格证书任教学科与招聘岗位学科要一致；教师资格证任教学科是初中教育的可以报考初中阶段所有学科。 | Q97: 18周岁以上，35周岁及以下。 | R97: 不限 | S97: 普通全日制本科及以上学历并取得相应学位证书。 | T97: 普通话水平必须取得国家语言文字工作委员会颁发的二级乙等及其以上《普通话水平测试等级证书》，语文岗位应取得二级甲等及其以上《普通话水平测试等级证书》 | U97: 录用后须在魏县教育教学岗位服务满3年，服务不足3年的，视为失信，记录失信档案。 | V97: 统一招聘
K98: 1 | M98: 初中教师 | N98: 数学
K99: 1 | M99: 初中教师 | N99: 英语
K100: 1 | M100: 初中教师 | N100: 物理
K101: 1 | M101: 初中教师 | N101: 化学
K102: 1 | M102: 初中教师 | N102: 音乐
K103: 1 | M103: 初中教师 | N103: 体育
A104: 魏县教育体育局 | B104: 魏县教育局北台头乡中心校 | C104: 全额事业 | D104: 90 | E104: 77 | F104: 13 | G104: 5 | H104: 1 | L104: 1 | M104: 幼儿教师 | N104: 幼儿园 | O104: 具有的教师资格证非幼儿教育或学前教育学科的，要求规定学历所学专业须是幼儿教育或学前教育专业。 | P104: 具有教师资格证且教师资格证任教学科非幼儿教育或学前教育的，规定学历所学专业须是幼儿教育或学前教育专业；具有幼儿教育或学前教育教师资格证的。 | R104: 本科及以上学历的不限户籍；专科学历的，必须是魏县户籍，或配偶或父母是魏县户籍；2020年应届毕业生不限户籍。 | S104: 普通全日制专科及以上学历。
A105: 魏县教育体育局 | B105: 魏县教育局车往镇中心校 | C105: 全额事业 | D105: 185 | E105: 137 | F105: 48 | G105: 8 | H105: 7 | L105: 1 | M105: 幼儿教师 | N105: 幼儿园
A106: 魏县教育体育局 | B106: 魏县教育局车往镇中心校 | C106: 全额事业 | D106: 185 | E106: 137 | F106: 48 | G106: 8 | H106: 7 | L106: 1 | M106: 小学教师 | N106: 语文 | O106: 不限 | P106: 具有小学及以上教师资格证，教师资格证书任教学科与招聘岗位学科要一致；教师资格证任教学科是小学教育或初中教育的，可以报考小学阶段所有学科。 | Q106: 18周岁以上，35周岁及以下。 | R106: 本科及以上学历的不限户籍；专科学历的，必须是魏县户籍，或配偶或父母是魏县户籍；2020年应届毕业生不限户籍。 | S106: 普通全日制专科及以上学历。 | T106: 普通话水平必须取得国家语言文字工作委员会颁发的二级乙等及其以上《普通话水平测试等级证书》，语文岗位应取得二级甲等及其以上《普通话水平测试等级证书》 | U106: 录用后须在魏县教育教学岗位服务满3年，服务不足3年的，视为失信，记录失信档案。 | V106: 统一招聘
L107: 1 | M107: 小学教师 | N107: 数学
L108: 1 | M108: 小学教师 | N108: 英语
L109: 1 | M109: 小学教师 | N109: 音乐
L110: 1 | M110: 小学教师 | N110: 体育
L111: 1 | M111: 小学教师 | N111: 品德与社会
A112: 魏县教育体育局 | B112: 魏县教育局回隆镇中心校 | C112: 全额事业 | D112: 164 | E112: 154 | F112: 10 | G112: 9 | H112: 13 | L112: 2 | M112: 小学教师 | N112: 语文
L113: 2 | M113: 小学教师 | N113: 数学
L114: 1 | M114: 小学教师 | N114: 英语
L115: 1 | M115: 小学教师 | N115: 音乐
L116: 1 | M116: 小学教师 | N116: 体育
K117: 1 | M117: 初中教师 | N117: 语文 | P117: 具有初级中学及以上教师资格证，教师资格证书任教学科与招聘岗位学科要一致；教师资格证任教学科是初中教育的可以报考初中阶段所有学科。 | R117: 不限 | S117: 普通全日制本科及以上学历并取得相应学位证书。
K118: 1 | M118: 初中教师 | N118: 物理
K119: 1 | M119: 初中教师 | N119: 生物
K120: 1 | M120: 初中教师 | N120: 历史
K121: 1 | M121: 初中教师 | N121: 地理
A122: 魏县教育体育局 | B122: 魏县教育局回隆镇中心校 | C122: 全额事业 | D122: 164 | E122: 154 | F122: 10 | G122: 9 | H122: 13 | L122: 1 | M122: 幼儿教师 | N122: 幼儿园 | O122: 具有的教师资格证非幼儿教育或学前教育学科的，要求规定学历所学专业须是幼儿教育或学前教育专业。 | P122: 具有教师资格证且教师资格证任教学科非幼儿教育或学前教育的，规定学历所学专业须是幼儿教育或学前教育专业；具有幼儿教育或学前教育教师资格证的。 | Q122: 18周岁以上，35周岁及以下。 | R122: 本科及以上学历的不限户籍；专科学历的，必须是魏县户籍，或配偶或父母是魏县户籍；2020年应届毕业生不限户籍。 | S122: 普通全日制专科及以上学历。 | T122: 普通话水平必须取得国家语言文字工作委员会颁发的二级乙等及其以上《普通话水平测试等级证书》，语文岗位应取得二级甲等及其以上《普通话水平测试等级证书》 | U122: 录用后须在魏县教育教学岗位服务满3年，服务不足3年的，视为失信，记录失信档案。 | V122: 统一招聘
A123: 魏县教育体育局 | B123: 魏县教育局双庙乡中心校 | C123: 全额事业 | D123: 110 | E123: 105 | F123: 5 | G123: 3 | H123: 1 | L123: 1 | M123: 幼儿教师 | N123: 幼儿园
A124: 魏县教育体育局 | B124: 魏县教育局泊口乡中心校 | C124: 全额事业 | D124: 99 | E124: 85 | F124: 14 | G124: 6 | H124: 11 | L124: 1 | M124: 幼儿教师 | N124: 幼儿园
L125: 2 | M125: 小学教师 | N125: 语文 | O125: 不限 | P125: 具有小学及以上教师资格证，教师资格证书任教学科与招聘岗位学科要一致；教师资格证任教学科是小学教育或初中教育的，可以报考小学阶段所有学科。
L126: 1 | M126: 小学教师 | N126: 数学
L127: 1 | M127: 小学教师 | N127: 英语
L128: 1 | M128: 小学教师 | N128: 音乐
L129: 1 | M129: 小学教师 | N129: 体育
L130: 1 | M130: 小学教师 | N130: 美术
L131: 1 | M131: 小学教师 | N131: 品德与社会
L132: 2 | M132: 小学教师 | N132: 科学
A133: 魏县教育体育局 | B133: 魏县教育局边马乡中心校 | C133: 全额事业 | D133: 185 | E133: 152 | F133: 33 | G133: 7 | H133: 22 | K133: 1 | M133: 初中教师 | N133: 语文 | O133: 不限 | P133: 具有初级中学及以上教师资格证，教师资格证书任教学科与招聘岗位学科要一致；教师资格证任教学科是初中教育的可以报考初中阶段所有学科。 | Q133: 18周岁以上，35周岁及以下。 | R133: 不限 | S133: 普通全日制本科及以上学历,并取得相应学位证书。 | T133: 普通话水平必须取得国家语言文字工作委员会颁发的二级乙等及其以上《普通话水平测试等级证书》，语文岗位应取得二级甲等及其以上《普通话水平测试等级证书》 | U133: 录用后须在魏县教育教学岗位服务满3年，服务不足3年的，视为失信，记录失信档案。 | V133: 统一招聘
K134: 1 | M134: 初中教师 | N134: 数学
K135: 1 | M135: 初中教师 | N135: 英语
K136: 1 | M136: 初中教师 | N136: 物理
L137: 6 | M137: 小学教师 | N137: 语文 | P137: 具有小学及以上教师资格证，教师资格证书任教学科与招聘岗位学科要一致；教师资格证任教学科是小学教育或初中教育的，可以报考小学阶段所有学科。 | R137: 本科及以上学历的不限户籍；专科学历的，必须是魏县户籍，或配偶或父母是魏县户籍；2020年应届毕业生不限户籍。 | S137: 普通全日制专科及以上学历。
L138: 6 | M138: 小学教师 | N138: 数学
L139: 4 | M139: 小学教师 | N139: 英语
L140: 1 | M140: 小学教师 | N140: 音乐
L141: 1 | M141: 幼儿教师 | N141: 幼儿园 | O141: 具有的教师资格证非幼儿教育或学前教育学科的，要求规定学历所学专业须是幼儿教育或学前教育专业。 | P141: 具有教师资格证且教师资格证任教学科非幼儿教育或学前教育的，规定学历所学专业须是幼儿教育或学前教育专业；具有幼儿教育或学前教育教师资格证的。
A142: 魏县教育体育局 | B142: 魏县教育局大辛庄乡中心校 | C142: 全额事业 | D142: 120 | E142: 118 | F142: 2 | G142: 4 | H142: 6 | L142: 1 | M142: 幼儿教师 | N142: 幼儿园
A143: 魏县教育体育局 | B143: 魏县教育局大辛庄乡中心校 | C143: 全额事业 | D143: 120 | E143: 118 | F143: 2 | G143: 4 | H143: 6 | L143: 1 | M143: 小学教师 | N143: 语文 | O143: 不限 | P143: 具有小学及以上教师资格证，教师资格证书任教学科与招聘岗位学科要一致；教师资格证任教学科是小学教育或初中教育的，可以报考小学阶段所有学科。 | Q143: 18周岁以上，35周岁及以下。 | R143: 本科及以上学历的不限户籍；专科学历的，必须是魏县户籍，或配偶或父母是魏县户籍；2020年应届毕业生不限户籍。 | S143: 普通全日制专科及以上学历。 | T143: 普通话水平必须取得国家语言文字工作委员会颁发的二级乙等及其以上《普通话水平测试等级证书》，语文岗位应取得二级甲等及其以上《普通话水平测试等级证书》 | U143: 录用后须在魏县教育教学岗位服务满3年，服务不足3年的，视为失信，记录失信档案。 | V143: 统一招聘
L144: 1 | M144: 小学教师 | N144: 数学
L145: 1 | M145: 小学教师 | N145: 英语
L146: 2 | M146: 小学教师 | N146: 科学
A147: 魏县教育体育局 | B147: 魏县教育局大马村乡中心校 | C147: 全额事业 | D147: 75 | E147: 67 | F147: 8 | G147: 3 | H147: 11 | L147: 2 | M147: 小学教师 | N147: 语文
L148: 2 | M148: 小学教师 | N148: 数学
L149: 2 | M149: 小学教师 | N149: 英语
L150: 1 | M150: 小学教师 | N150: 体育
L151: 1 | M151: 小学教师 | N151: 美术
K152: 1 | M152: 初中教师 | N152: 数学 | P152: 具有初级中学及以上教师资格证，教师资格证书任教学科与招聘岗位学科要一致；教师资格证任教学科是初中教育的可以报考初中阶段所有学科。 | R152: 不限 | S152: 普通全日制本科及以上学历,并取得相应学位证书。
K153: 1 | M153: 初中教师 | N153: 英语
L154: 1 | M154: 幼儿教师 | N154: 幼儿园 | O154: 具有的教师资格证非幼儿教育或学前教育学科的，要求规定学历所学专业须是幼儿教育或学前教育专业。 | P154: 具有教师资格证且教师资格证任教学科非幼儿教育或学前教育的，规定学历所学专业须是幼儿教育或学前教育专业；具有幼儿教育或学前教育教师资格证的。 | R154: 本科及以上学历的不限户籍；专科学历的，必须是魏县户籍，或配偶或父母是魏县户籍；2020年应届毕业生不限户籍。 | S154: 普通全日制专科及以上学历。
A155: 魏县教育体育局 | B155: 魏县教育局牙里镇中心校 | C155: 全额事业 | D155: 145 | E155: 128 | F155: 17 | G155: 8 | H155: 16 | L155: 1 | M155: 幼儿教师 | N155: 幼儿园
A156: 魏县教育体育局 | B156: 魏县教育局牙里镇中心校 | C156: 全额事业 | D156: 145 | E156: 128 | F156: 17 | G156: 8 | H156: 16 | L156: 3 | M156: 小学教师 | N156: 语文 | O156: 不限 | P156: 具有小学及以上教师资格证，教师资格证书任教学科与招聘岗位学科要一致；教师资格证任教学科是小学教育或初中教育的，可以报考小学阶段所有学科。 | Q156: 18周岁以上，35周岁及以下。 | R156: 本科及以上学历的不限户籍；专科学历的，必须是魏县户籍，或配偶或父母是魏县户籍；2020年应届毕业生不限户籍。 | S156: 普通全日制专科及以上学历。 | T156: 普通话水平必须取得国家语言文字工作委员会颁发的二级乙等及其以上《普通话水平测试等级证书》，语文岗位应取得二级甲等及其以上《普通话水平测试等级证书》 | U156: 录用后须在魏县教育教学岗位服务满3年，服务不足3年的，视为失信，记录失信档案。 | V156: 统一招聘
L157: 2 | M157: 小学教师 | N157: 数学
L158: 2 | M158: 小学教师 | N158: 英语
L159: 1 | M159: 小学教师 | N159: 音乐
L160: 1 | M160: 小学教师 | N160: 体育
L161: 1 | M161: 小学教师 | N161: 美术
L162: 3 | M162: 小学教师 | N162: 品德与社会
L163: 2 | M163: 小学教师 | N163: 科学
A164: 魏县教育体育局 | B164: 魏县教育局张二庄镇中心校 | C164: 全额事业 | D164: 175 | E164: 155 | F164: 20 | G164: 9 | H164: 18 | L164: 5 | M164: 小学教师 | N164: 语文
L165: 6 | M165: 小学教师 | N165: 数学
L166: 4 | M166: 小学教师 | N166: 英语
L167: 1 | M167: 小学教师 | N167: 音乐
L168: 1 | M168: 小学教师 | N168: 体育
L169: 1 | M169: 幼儿教师 | N169: 幼儿园 | O169: 具有的教师资格证非幼儿教育或学前教育学科的，要求规定学历所学专业须是幼儿教育或学前教育专业。 | P169: 具有教师资格证且教师资格证任教学科非幼儿教育或学前教育的，规定学历所学专业须是幼儿教育或学前教育专业；具有幼儿教育或学前教育教师资格证的。
A170: 魏县教育体育局 | B170: 魏县第一中学 | C170: 全额事业 | D170: 470 | E170: 466 | F170: 4 | G170: 10 | H170: 1 | L170: 1 | M170: 卫生专业技术人员 | N170: 不限 | O170: 不限 | P170: 持有卫生专业执业资格证书 | Q170: 18周岁以上，35周岁及以下。 | R170: 本科及以上学历的不限户籍；专科学历的，必须是魏县户籍，或配偶或父母是魏县户籍；2020年应届毕业生不限户籍。 | S170: 普通全日制专科及以上学历。 | T170: 不限 | U170: 录用后须在魏县教育系统服务满3年，服务不足3年的，视为失信，记录失信档案。 | V170: 统一招聘
B171: 魏县第二中学 | C171: 全额事业 | D171: 317 | E171: 317 | G171: 5 | H171: 1 | L171: 1 | M171: 卫生专业技术人员 | N171: 不限
B172: 魏县第三中学 | C172: 全额事业 | D172: 180 | E172: 83 | F172: 97 | G172: 1 | H172: 1 | L172: 1 | M172: 卫生专业技术人员 | N172: 不限
B173: 魏县综合职业技术教育中心 | C173: 全额事业 | D173: 150 | E173: 320 | F173: -170 | G173: 4 | H173: 1 | L173: 1 | M173: 卫生专业技术人员 | N173: 不限
B174: 魏县第四中学 | C174: 全额事业 | D174: 279 | E174: 269 | F174: 10 | G174: 2 | H174: 1 | L174: 1 | M174: 卫生专业技术人员 | N174: 不限
B175: 魏县第五中学 | C175: 全额事业 | D175: 240 | E175: 230 | F175: 10 | G175: 6 | H175: 1 | L175: 1 | M175: 卫生专业技术人员 | N175: 不限
B176: 魏县第五中学分校 | C176: 全额事业 | D176: 120 | E176: 103 | F176: 17 | G176: 1 | H176: 1 | L176: 1 | M176: 卫生专业技术人员 | N176: 不限
B177: 魏县第六中学 | C177: 全额事业 | D177: 220 | E177: 186 | F177: 34 | H177: 1 | L177: 1 | M177: 卫生专业技术人员 | N177: 不限
B178: 魏县第七中学 | C178: 全额事业 | D178: 80 | E178: 74 | F178: 6 | H178: 1 | L178: 1 | M178: 卫生专业技术人员 | N178: 不限
B179: 魏县第八中学 | C179: 全额事业 | D179: 180 | E179: 155 | F179: 25 | H179: 1 | L179: 1 | M179: 卫生专业技术人员 | N179: 不限
B180: 魏县德政中学 | C180: 全额事业 | D180: 70 | E180: 63 | F180: 7 | H180: 1 | L180: 1 | M180: 卫生专业技术人员 | N180: 不限
B181: 魏县大辛庄中学 | C181: 全额事业 | D181: 70 | E181: 53 | F181: 17 | G181: 2 | H181: 1 | L181: 1 | M181: 卫生专业技术人员 | N181: 不限
A182: 魏县教育体育局 | B182: 魏县牙里中学 | C182: 全额事业 | D182: 106 | E182: 100 | F182: 6 | G182: 4 | H182: 1 | L182: 1 | M182: 卫生专业技术人员 | N182: 不限 | O182: 不限 | P182: 持有卫生专业执业资格证书 | Q182: 18周岁以上，35周岁及以下。 | R182: 本科及以上学历的不限户籍；专科学历的，必须是魏县户籍，或配偶或父母是魏县户籍；2020年应届毕业生不限户籍。 | S182: 普通全日制专科及以上学历。 | T182: 不限 | U182: 录用后须在魏县教育系统服务满3年，服务不足3年的，视为失信，记录失信档案。 | V182: 统一招聘
B183: 魏县车往中学 | C183: 全额事业 | D183: 115 | E183: 107 | F183: 8 | G183: 1 | H183: 1 | L183: 1 | M183: 卫生专业技术人员 | N183: 不限
B184: 魏县特殊教育学校 | C184: 全额事业 | D184: 26 | E184: 23 | F184: 3 | G184: 1 | H184: 1 | L184: 1 | M184: 卫生专业技术人员 | N184: 不限
B185: 魏县第一小学 | C185: 全额事业 | D185: 270 | E185: 268 | F185: 2 | G185: 8 | H185: 1 | L185: 1 | M185: 卫生专业技术人员 | N185: 不限 | Y185: 293
B186: 魏县第二小学 | C186: 全额事业 | D186: 176 | E186: 175 | F186: 1 | G186: 7 | H186: 1 | L186: 1 | M186: 卫生专业技术人员 | N186: 不限 | Y186: 186
B187: 魏县第三小学 | C187: 全额事业 | D187: 246 | E187: 241 | F187: 5 | G187: 2 | H187: 1 | L187: 1 | M187: 卫生专业技术人员 | N187: 不限 | Y187: 265
B188: 魏县第四小学 | C188: 全额事业 | D188: 113 | E188: 111 | F188: 2 | G188: 2 | H188: 1 | L188: 1 | M188: 卫生专业技术人员 | N188: 不限
B189: 魏县第五小学 | C189: 全额事业 | D189: 120 | E189: 114 | F189: 6 | G189: 1 | H189: 1 | L189: 1 | M189: 卫生专业技术人员 | N189: 不限
B190: 魏县第六小学 | C190: 全额事业 | D190: 90 | E190: 65 | F190: 25 | H190: 1 | L190: 1 | M190: 卫生专业技术人员 | N190: 不限
B191: 魏县教育局魏城镇中心校 | C191: 全额事业 | D191: 361 | E191: 291 | F191: 70 | G191: 17 | H191: 1 | L191: 1 | M191: 卫生专业技术人员 | N191: 不限 | W191: 魏县第七小学
B192: 魏县教育局沙口集乡中心校 | C192: 全额事业 | D192: 150 | E192: 129 | F192: 21 | G192: 6 | H192: 1 | L192: 1 | M192: 卫生专业技术人员 | N192: 不限 | W192: 魏县沙口集乡杜二庄小学
B193: 魏县教育局北皋镇中心校 | C193: 全额事业 | D193: 325 | E193: 265 | F193: 60 | G193: 14 | H193: 2 | L193: 2 | M193: 卫生专业技术人员 | N193: 不限 | W193: 魏县北皋镇北刘岗小学/康町中学
A194: 魏县教育体育局 | B194: 魏县教育局车往镇中心校 | C194: 全额事业 | D194: 185 | E194: 137 | F194: 48 | G194: 8 | H194: 1 | L194: 1 | M194: 卫生专业技术人员 | N194: 不限 | O194: 不限 | P194: 持有卫生专业执业资格证书 | Q194: 18周岁以上，35周岁及以下。 | R194: 本科及以上学历的不限户籍；专科学历的，必须是魏县户籍，或配偶或父母是魏县户籍；2020年应届毕业生不限户籍。 | S194: 普通全日制专科及以上学历。 | T194: 不限 | U194: 录用后须在魏县教育系统服务满3年，服务不足3年的，视为失信，记录失信档案。 | V194: 统一招聘 | W194: 魏县车往镇东仓口小学
B195: 魏县教育局双庙乡中心校 | C195: 全额事业 | D195: 110 | E195: 105 | F195: 5 | G195: 3 | H195: 1 | L195: 1 | M195: 卫生专业技术人员 | N195: 不限 | W195: 魏县双庙乡王村联小
B196: 魏县教育局双井镇中心校 | C196: 全额事业 | D196: 150 | E196: 135 | F196: 15 | H196: 1 | L196: 1 | M196: 卫生专业技术人员 | N196: 不限 | W196: 魏县双井镇双南小学
B197: 魏县教育局张二庄镇中心校 | C197: 全额事业 | D197: 175 | E197: 155 | F197: 20 | G197: 9 | H197: 1 | L197: 1 | M197: 卫生专业技术人员 | N197: 不限 | W197: 魏县张二庄镇联合小学
B198: 魏县县直幼儿园 | C198: 全额事业 | D198: 49 | E198: 46 | F198: 3 | H198: 1 | L198: 1 | M198: 卫生专业技术人员 | N198: 不限 | Y198: 51
A199: 注：1、单位名称写全称；2、单位性质分：全额事业、差额事业、自收自支事业，一个单位多种编制性质的，应写明招聘岗位所占编制；3、专业及条件要符合政策和规范；4、招聘方式为选聘或统一招聘，选聘条件要符合公开招聘有关规定；5、报表一式两份，加盖单位公章。各县（市、区）申报计划要征求当地编制部门意见并盖章。

Sheet 总表-3稿+卫生 (职中调整) (hidden)
A1: 2020年邯郸市事业单位公开招聘工作人员岗位条件申报表
A2: 单位名称（盖章）：魏县教育体育局 填报时间：2020年3月26日
A3: 主管部门名称 | B3: 单位名称 | C3: 单位性质 | D3: 编制数 | E3: 实有人数 | F3: 空编数 | G3: 预计2020年度自然减员人数 | H3: 申报招聘计划数 | I3: 学历（学位）人数 | M3: 招聘岗位条件
I4: 博士 | J4: 硕士 | K4: 本科 | L4: 专科 | M4: 招聘岗位 | N4: 招聘学科 | O4: 专业 | P4: 其它条件 | V4: 招聘方式 | W4: 公开选聘院校范围 | X4: 备注
A5: 合计 | D5: =SUM(D198,D196,D191,D190,D189,D188,D187,D186,D185,D184,D182,D180,D178,D176,D174,D171,D164,D155,D147,D142,D133,D124,D123,D112,D105,D104,D89,D88,D87,D86,D85,D82,D79,D75,D63,D54,D45,D42,D33,D24,D12,D6,) -> 6519 | E5: 5839 | F5: 680 | G5: 167 | H5: =SUM(H6,H12,H24,H33,H42,H45,H54,H63,H75,H79,H82,H85,H86,H87,H88,H89,H104,H105,H112,H123,H124,H133,H142,H147,H155,H164,H170:H198) -> 330 | K5: =SUM(K6:K198) -> 185 | L5: =SUM(L6:L198) -> 145 | P5: 资格证条件要求 | Q5: 年龄 | R5: 户籍 | S5: 学历 | T5: 普通话等级 | U5: 服务年限
A6: 魏县教育体育局 | B6: 魏县第一中学 | C6: 全额事业 | D6: 470 | E6: 466 | F6: 4 | G6: 10 | H6: 12 | K6: 3 | M6: 高中教师 | N6: 语文 | O6: 不限 | P6: 具有高级中学及以上教师资格证，教师资格证书任教学科与招聘岗位学科要一致。 | Q6: 18周岁以上，35周岁及以下。 | R6: 不限 | S6: 普通全日制本科及以上学历,并取得相应学位证书。 | T6: 普通话水平必须取得国家语言文字工作委员会颁发的二级乙等及其以上《普通话水平测试等级证书》，语文岗位应取得二级甲等及其以上《普通话水平测试等级证书》 | U6: 录用后须在魏县教育教学岗位服务满3年，服务不足3年的，视为失信，记录失信档案。 | V6: 公开选聘 统一招聘 | W6: 统招全日制普通高校硕士研究生及以上学历，并取得相应学位证书的毕业生；教育部直属的北京师范大学等六所师范院校全日制本科学历，并取得相应学位证书的毕业生；“名校英才入冀”计划引进范围的普通高等院校和科研院所的全日制本科及以上学历，并取得相应学位证书的毕业生；河北师范大学统招全日制本科学历，并取得相应学位证书的毕业生。 以上院校均不含独立学院。
K7: 2 | M7: 高中教师 | N7: 数学
K8: 2 | M8: 高中教师 | N8: 英语
K9: 1 | M9: 高中教师 | N9: 物理
K10: 3 | M10: 高中教师 | N10: 生物
K11: 1 | M11: 高中教师 | N11: 地理
A12: 魏县教育体育局 | B12: 魏县第三中学 | C12: 全额事业 | D12: 180 | E12: 83 | F12: 97 | G12: 1 | H12: 42 | K12: 5 | M12: 高中教师 | N12: 语文
K13: 5 | M13: 高中教师 | N13: 数学
K14: 5 | M14: 高中教师 | N14: 英语
K15: 2 | M15: 高中教师 | N15: 物理
K16: 4 | M16: 高中教师 | N16: 化学
K17: 4 | M17: 高中教师 | N17: 生物
K18: 5 | M18: 高中教师 | N18: 历史
K19: 2 | M19: 高中教师 | N19: 地理
K20: 3 | M20: 高中教师 | N20: 政治
K21: 2 | M21: 高中教师 | N21: 信息技术
K22: 2 | M22: 高中教师 | N22: 体育
K23: 3 | M23: 高中教师 | N23: 美术
A24: 魏县教育体育局 | B24: 魏县第五中学 | C24: 全额事业 | D24: 240 | E24: 230 | F24: 10 | G24: 6 | H24: 14 | K24: 3 | M24: 高中教师 | N24: 语文 | O24: 不限 | P24: 具有高级中学及以上教师资格证，教师资格证书任教学科与招聘岗位学科要一致。 | Q24: 18周岁以上，35周岁及以下。 | R24: 不限 | S24: 普通全日制本科及以上学历,并取得相应学位证书。 | T24: 普通话水平必须取得国家语言文字工作委员会颁发的二级乙等及其以上《普通话水平测试等级证书》，语文岗位应取得二级甲等及其以上《普通话水平测试等级证书》 | U24: 录用后须在魏县教育教学岗位服务满3年，服务不足3年的，视为失信，记录失信档案。 | V24: 公开选聘 统一招聘 | W24: 统招全日制普通高校硕士研究生及以上学历，并取得相应学位证书的毕业生；教育部直属的北京师范大学等六所师范院校全日制本科学历，并取得相应学位证书的毕业生；“名校英才入冀”计划引进范围的普通高等院校和科研院所的全日制本科及以上学历，并取得相应学位证书的毕业生；河北师范大学统招全日制本科学历，并取得相应学位证书的毕业生。 以上院校均不含独立学院。
K25: 1 | M25: 高中教师 | N25: 数学
K26: 2 | M26: 高中教师 | N26: 英语
K27: 1 | M27: 高中教师 | N27: 物理
K28: 1 | M28: 高中教师 | N28: 化学
K29: 1 | M29: 高中教师 | N29: 生物
K30: 2 | M30: 高中教师 | N30: 历史
K31: 2 | M31: 高中教师 | N31: 地理
K32: 1 | M32: 高中教师 | N32: 政治
A33: 魏县教育体育局 | B33: 魏县第六中学 | C33: 全额事业 | D33: 220 | E33: 186 | F33: 34 | H33: 32 | K33: 1 | M33: 高中教师 | N33: 语文
K34: 2 | M34: 高中教师 | N34: 数学
K35: 3 | M35: 高中教师 | N35: 英语
K36: 6 | M36: 高中教师 | N36: 物理
K37: 2 | M37: 高中教师 | N37: 化学
K38: 5 | M38: 高中教师 | N38: 生物
K39: 5 | M39: 高中教师 | N39: 历史
K40: 6 | M40: 高中教师 | N40: 地理
K41: 2 | M41: 高中教师 | N41: 政治
A42: 魏县教育体育局 | B42: 魏县综合职业技术教育中心 | C42: 全额事业 | D42: 150 | E42: 136 | F42: =D42-E42 -> 14 | G42: 4 | H42: 15 | K42: 1 | M42: 职教教师 | N42: 职教会计 | P42: 具有中等职业学校及以上教师资格证，教师资格证书任教学科与招聘岗位学科要一致。
K43: 5 | M43: 职教教师 | N43: 职教学前教育
K44: 9 | M44: 职教教师 | N44: 职教计算机科学与技术
A45: 魏县教育体育局 | B45: 魏县第八中学 | C45: 全额事业 | D45: 180 | E45: 155 | F45: 25 | H45: 20 | K45: 3 | M45: 初中教师 | N45: 语文 | O45: 不限 | P45: 具有初级中学及以上教师资格证，教师资格证书任教学科与招聘岗位学科要一致；教师资格证任教学科是初中教育的可以报考初中阶段所有学科。 | Q45: 18周岁以上，35周岁及以下。 | R45: 不限 | S45: 普通全日制本科及以上学历并取得相应学位证书。 | T45: 普通话水平必须取得国家语言文字工作委员会颁发的二级乙等及其以上《普通话水平测试等级证书》，语文岗位应取得二级甲等及其以上《普通话水平测试等级证书》 | U45: 录用后须在魏县教育教学岗位服务满3年，服务不足3年的，视为失信，记录失信档案。 | V45: 统一招聘
K46: 3 | M46: 初中教师 | N46: 数学
K47: 2 | M47: 初中教师 | N47: 英语
K48: 4 | M48: 初中教师 | N48: 物理
K49: 4 | M49: 初中教师 | N49: 化学
K50: 1 | M50: 初中教师 | N50: 生物
K51: 1 | M51: 初中教师 | N51: 历史
K52: 1 | M52: 初中教师 | N52: 地理
K53: 1 | M53: 初中教师 | N53: 政治
A54: 魏县教育体育局 | B54: 魏县大辛庄中学 | C54: 全额事业 | D54: 70 | E54: 53 | F54: 17 | G54: 2 | H54: 10 | K54: 2 | M54: 初中教师 | N54: 语文
K55: 1 | M55: 初中教师 | N55: 数学
K56: 1 | M56: 初中教师 | N56: 英语
K57: 1 | M57: 初中教师 | N57: 物理
K58: 1 | M58: 初中教师 | N58: 化学
K59: 1 | M59: 初中教师 | N59: 生物
K60: 1 | M60: 初中教师 | N60: 地理
K61: 1 | M61: 初中教师 | N61: 体育
K62: 1 | M62: 初中教师 | N62: 信息技术
A63: 魏县教育体育局 | B63: 魏县张二庄镇第一中学 | C63: 全额事业 | D63: 35 | E63: 20 | F63: 15 | H63: 12 | K63: 1 | M63: 初中教师 | N63: 语文 | O63: 不限 | P63: 具有初级中学及以上教师资格证，教师资格证书任教学科与招聘岗位学科要一致；教师资格证任教学科是初中教育的可以报考初中阶段所有学科。 | Q63: 18周岁以上，35周岁及以下。 | R63: 不限 | S63: 普通全日制本科及以上学历并取得相应学位证书。 | T63: 普通话水平必须取得国家语言文字工作委员会颁发的二级乙等及其以上《普通话水平测试等级证书》，语文岗位应取得二级甲等及其以上《普通话水平测试等级证书》 | U63: 录用后须在魏县教育教学岗位服务满3年，服务不足3年的，视为失信，记录失信档案。 | V63: 统一招聘
K64: 1 | M64: 初中教师 | N64: 数学
K65: 1 | M65: 初中教师 | N65: 英语
K66: 1 | M66: 初中教师 | N66: 物理
K67: 1 | M67: 初中教师 | N67: 化学
K68: 1 | M68: 初中教师 | N68: 生物
K69: 1 | M69: 初中教师 | N69: 历史
K70: 1 | M70: 初中教师 | N70: 地理
K71: 1 | M71: 初中教师 | N71: 政治
K72: 1 | M72: 初中教师 | N72: 信息技术
K73: 1 | M73: 初中教师 | N73: 音乐
K74: 1 | M74: 初中教师 | N74: 体育
A75: 魏县教育体育局 | B75: 魏县车往中学 | C75: 全额事业 | D75: 115 | E75: 107 | F75: 8 | G75: 1 | H75: 4 | K75: 1 | M75: 初中教师 | N75: 语文
K76: 1 | M76: 初中教师 | N76: 数学
K77: 1 | M77: 初中教师 | N77: 英语
K78: 1 | M78: 初中教师 | N78: 物理
A79: 魏县教育体育局 | B79: 魏县泊口乡中学 | C79: 全额事业 | D79: 29 | E79: 21 | F79: 8 | H79: 3 | K79: 1 | M79: 初中教师 | N79: 语文
K80: 1 | M80: 初中教师 | N80: 数学
K81: 1 | M81: 初中教师 | N81: 英语
A82: 魏县教育体育局 | B82: 魏县北皋联合中学 | C82: 全额事业 | D82: 78 | E82: 65 | F82: 13 | G82: 2 | H82: 3 | K82: 1 | M82: 初中教师 | N82: 语文
K83: 1 | M83: 初中教师 | N83: 数学
K84: 1 | M84: 初中教师 | N84: 物理
A85: 魏县教育体育局 | B85: 魏县教育局沙口集乡中心校 | C85: 全额事业 | D85: 150 | E85: 129 | F85: 21 | G85: 6 | H85: 1 | L85: 1 | M85: 幼儿教师 | N85: 幼儿园 | O85: 具有的教师资格证非幼儿教育或学前教育学科的，要求规定学历所学专业须是幼儿教育或学前教育专业。 | P85: 具有教师资格证且教师资格证任教学科非幼儿教育或学前教育的，规定学历所学专业须是幼儿教育或学前教育专业；具有幼儿教育或学前教育教师资格证的。 | Q85: 18周岁以上，35周岁及以下。 | R85: 本科及以上学历的不限户籍；专科学历的，必须是魏县户籍，或配偶或父母是魏县户籍；2020年应届毕业生不限户籍。 | S85: 普通全日制专科及以上学历。 | T85: 普通话水平必须取得国家语言文字工作委员会颁发的二级乙等及其以上《普通话水平测试等级证书》，语文岗位应取得二级甲等及其以上《普通话水平测试等级证书》 | U85: 录用后须在魏县教育教学岗位服务满3年，服务不足3年的，视为失信，记录失信档案。 | V85: 统一招聘
A86: 魏县教育体育局 | B86: 魏县教育局野胡拐中心校 | C86: 全额事业 | D86: 76 | E86: 76 | G86: 1 | H86: 1 | L86: 1 | M86: 幼儿教师 | N86: 幼儿园
A87: 魏县教育体育局 | B87: 魏县教育局前大磨中心校 | C87: 全额事业 | D87: 155 | E87: 151 | F87: 4 | G87: 5 | H87: 1 | L87: 1 | M87: 幼儿教师 | N87: 幼儿园
A88: 魏县教育体育局 | B88: 魏县教育局院堡乡中心校 | C88: 全额事业 | D88: 125 | E88: 123 | F88: 2 | G88: 3 | H88: 1 | L88: 1 | M88: 幼儿教师 | N88: 幼儿园
A89: 魏县教育体育局 | B89: 魏县教育局北皋镇中心校 | C89: 全额事业 | D89: 325 | E89: 265 | F89: 60 | G89: 14 | H89: 23 | L89: 1 | M89: 幼儿教师 | N89: 幼儿园
L90: 2 | M90: 小学教师 | N90: 语文 | O90: 不限 | P90: 具有小学及以上教师资格证，教师资格证书任教学科与招聘岗位学科要一致；教师资格证任教学科是小学教育或初中教育的，可以报考小学阶段所有学科。
L91: 3 | M91: 小学教师 | N91: 数学
L92: 4 | M92: 小学教师 | N92: 英语
L93: 1 | M93: 小学教师 | N93: 音乐
L94: 1 | M94: 小学教师 | N94: 体育
L95: 2 | M95: 小学教师 | N95: 品德与社会
L96: 2 | M96: 小学教师 | N96: 科学
A97: 魏县教育体育局 | B97: 魏县教育局北皋镇中心校 | C97: 全额事业 | D97: 325 | E97: 265 | F97: 60 | G97: 14 | H97: 23 | K97: 1 | M97: 初中教师 | N97: 语文 | O97: 不限 | P97: 具有初级中学及以上教师资格证，教师资格证书任教学科与招聘岗位学科要一致；教师资格证任教学科是初中教育的可以报考初中阶段所有学科。 | Q97: 18周岁以上，35周岁及以下。 | R97: 不限 | S97: 普通全日制本科及以上学历并取得相应学位证书。 | T97: 普通话水平必须取得国家语言文字工作委员会颁发的二级乙等及其以上《普通话水平测试等级证书》，语文岗位应取得二级甲等及其以上《普通话水平测试等级证书》 | U97: 录用后须在魏县教育教学岗位服务满3年，服务不足3年的，视为失信，记录失信档案。 | V97: 统一招聘
K98: 1 | M98: 初中教师 | N98: 数学
K99: 1 | M99: 初中教师 | N99: 英语
K100: 1 | M100: 初中教师 | N100: 物理
K101: 1 | M101: 初中教师 | N101: 化学
K102: 1 | M102: 初中教师 | N102: 音乐
K103: 1 | M103: 初中教师 | N103: 体育
A104: 魏县教育体育局 | B104: 魏县教育局北台头乡中心校 | C104: 全额事业 | D104: 90 | E104: 77 | F104: 13 | G104: 5 | H104: 1 | L104: 1 | M104: 幼儿教师 | N104: 幼儿园 | O104: 具有的教师资格证非幼儿教育或学前教育学科的，要求规定学历所学专业须是幼儿教育或学前教育专业。 | P104: 具有教师资格证且教师资格证任教学科非幼儿教育或学前教育的，规定学历所学专业须是幼儿教育或学前教育专业；具有幼儿教育或学前教育教师资格证的。 | R104: 本科及以上学历的不限户籍；专科学历的，必须是魏县户籍，或配偶或父母是魏县户籍；2020年应届毕业生不限户籍。 | S104: 普通全日制专科及以上学历。
A105: 魏县教育体育局 | B105: 魏县教育局车往镇中心校 | C105: 全额事业 | D105: 185 | E105: 137 | F105: 48 | G105: 8 | H105: 7 | L105: 1 | M105: 幼儿教师 | N105: 幼儿园
A106: 魏县教育体育局 | B106: 魏县教育局车往镇中心校 | C106: 全额事业 | D106: 185 | E106: 137 | F106: 48 | G106: 8 | H106: 7 | L106: 1 | M106: 小学教师 | N106: 语文 | O106: 不限 | P106: 具有小学及以上教师资格证，教师资格证书任教学科与招聘岗位学科要一致；教师资格证任教学科是小学教育或初中教育的，可以报考小学阶段所有学科。 | Q106: 18周岁以上，35周岁及以下。 | R106: 本科及以上学历的不限户籍；专科学历的，必须是魏县户籍，或配偶或父母是魏县户籍；2020年应届毕业生不限户籍。 | S106: 普通全日制专科及以上学历。 | T106: 普通话水平必须取得国家语言文字工作委员会颁发的二级乙等及其以上《普通话水平测试等级证书》，语文岗位应取得二级甲等及其以上《普通话水平测试等级证书》 | U106: 录用后须在魏县教育教学岗位服务满3年，服务不足3年的，视为失信，记录失信档案。 | V106: 统一招聘
L107: 1 | M107: 小学教师 | N107: 数学
L108: 1 | M108: 小学教师 | N108: 英语
L109: 1 | M109: 小学教师 | N109: 音乐
L110: 1 | M110: 小学教师 | N110: 体育
L111: 1 | M111: 小学教师 | N111: 品德与社会
A112: 魏县教育体育局 | B112: 魏县教育局回隆镇中心校 | C112: 全额事业 | D112: 164 | E112: 154 | F112: 10 | G112: 9 | H112: 13 | L112: 2 | M112: 小学教师 | N112: 语文
L113: 2 | M113: 小学教师 | N113: 数学
L114: 1 | M114: 小学教师 | N114: 英语
L115: 1 | M115: 小学教师 | N115: 音乐
L116: 1 | M116: 小学教师 | N116: 体育
K117: 1 | M117: 初中教师 | N117: 语文 | P117: 具有初级中学及以上教师资格证，教师资格证书任教学科与招聘岗位学科要一致；教师资格证任教学科是初中教育的可以报考初中阶段所有学科。 | R117: 不限 | S117: 普通全日制本科及以上学历并取得相应学位证书。
K118: 1 | M118: 初中教师 | N118: 物理
K119: 1 | M119: 初中教师 | N119: 生物
K120: 1 | M120: 初中教师 | N120: 历史
K121: 1 | M121: 初中教师 | N121: 地理
A122: 魏县教育体育局 | B122: 魏县教育局回隆镇中心校 | C122: 全额事业 | D122: 164 | E122: 154 | F122: 10 | G122: 9 | H122: 13 | L122: 1 | M122: 幼儿教师 | N122: 幼儿园 | O122: 具有的教师资格证非幼儿教育或学前教育学科的，要求规定学历所学专业须是幼儿教育或学前教育专业。 | P122: 具有教师资格证且教师资格证任教学科非幼儿教育或学前教育的，规定学历所学专业须是幼儿教育或学前教育专业；具有幼儿教育或学前教育教师资格证的。 | Q122: 18周岁以上，35周岁及以下。 | R122: 本科及以上学历的不限户籍；专科学历的，必须是魏县户籍，或配偶或父母是魏县户籍；2020年应届毕业生不限户籍。 | S122: 普通全日制专科及以上学历。 | T122: 普通话水平必须取得国家语言文字工作委员会颁发的二级乙等及其以上《普通话水平测试等级证书》，语文岗位应取得二级甲等及其以上《普通话水平测试等级证书》 | U122: 录用后须在魏县教育教学岗位服务满3年，服务不足3年的，视为失信，记录失信档案。 | V122: 统一招聘
A123: 魏县教育体育局 | B123: 魏县教育局双庙乡中心校 | C123: 全额事业 | D123: 110 | E123: 105 | F123: 5 | G123: 3 | H123: 1 | L123: 1 | M123: 幼儿教师 | N123: 幼儿园
A124: 魏县教育体育局 | B124: 魏县教育局泊口乡中心校 | C124: 全额事业 | D124: 99 | E124: 85 | F124: 14 | G124: 6 | H124: 11 | L124: 1 | M124: 幼儿教师 | N124: 幼儿园
L125: 2 | M125: 小学教师 | N125: 语文 | O125: 不限 | P125: 具有小学及以上教师资格证，教师资格证书任教学科与招聘岗位学科要一致；教师资格证任教学科是小学教育或初中教育的，可以报考小学阶段所有学科。
L126: 1 | M126: 小学教师 | N126: 数学
L127: 1 | M127: 小学教师 | N127: 英语
L128: 1 | M128: 小学教师 | N128: 音乐
L129: 1 | M129: 小学教师 | N129: 体育
L130: 1 | M130: 小学教师 | N130: 美术
L131: 1 | M131: 小学教师 | N131: 品德与社会
L132: 2 | M132: 小学教师 | N132: 科学
A133: 魏县教育体育局 | B133: 魏县教育局边马乡中心校 | C133: 全额事业 | D133: 185 | E133: 152 | F133: 33 | G133: 7 | H133: 22 | K133: 1 | M133: 初中教师 | N133: 语文 | O133: 不限 | P133: 具有初级中学及以上教师资格证，教师资格证书任教学科与招聘岗位学科要一致；教师资格证任教学科是初中教育的可以报考初中阶段所有学科。 | Q133: 18周岁以上，35周岁及以下。 | R133: 不限 | S133: 普通全日制本科及以上学历,并取得相应学位证书。 | T133: 普通话水平必须取得国家语言文字工作委员会颁发的二级乙等及其以上《普通话水平测试等级证书》，语文岗位应取得二级甲等及其以上《普通话水平测试等级证书》 | U133: 录用后须在魏县教育教学岗位服务满3年，服务不足3年的，视为失信，记录失信档案。 | V133: 统一招聘
K134: 1 | M134: 初中教师 | N134: 数学
K135: 1 | M135: 初中教师 | N135: 英语
K136: 1 | M136: 初中教师 | N136: 物理
L137: 6 | M137: 小学教师 | N137: 语文 | P137: 具有小学及以上教师资格证，教师资格证书任教学科与招聘岗位学科要一致；教师资格证任教学科是小学教育或初中教育的，可以报考小学阶段所有学科。 | R137: 本科及以上学历的不限户籍；专科学历的，必须是魏县户籍，或配偶或父母是魏县户籍；2020年应届毕业生不限户籍。 | S137: 普通全日制专科及以上学历。
L138: 6 | M138: 小学教师 | N138: 数学
L139: 4 | M139: 小学教师 | N139: 英语
L140: 1 | M140: 小学教师 | N140: 音乐
L141: 1 | M141: 幼儿教师 | N141: 幼儿园 | O141: 具有的教师资格证非幼儿教育或学前教育学科的，要求规定学历所学专业须是幼儿教育或学前教育专业。 | P141: 具有教师资格证且教师资格证任教学科非幼儿教育或学前教育的，规定学历所学专业须是幼儿教育或学前教育专业；具有幼儿教育或学前教育教师资格证的。
A142: 魏县教育体育局 | B142: 魏县教育局大辛庄乡中心校 | C142: 全额事业 | D142: 120 | E142: 118 | F142: 2 | G142: 4 | H142: 6 | L142: 1 | M142: 幼儿教师 | N142: 幼儿园
A143: 魏县教育体育局 | B143: 魏县教育局大辛庄乡中心校 | C143: 全额事业 | D143: 120 | E143: 118 | F143: 2 | G143: 4 | H143: 6 | L143: 1 | M143: 小学教师 | N143: 语文 | O143: 不限 | P143: 具有小学及以上教师资格证，教师资格证书任教学科与招聘岗位学科要一致；教师资格证任教学科是小学教育或初中教育的，可以报考小学阶段所有学科。 | Q143: 18周岁以上，35周岁及以下。 | R143: 本科及以上学历的不限户籍；专科学历的，必须是魏县户籍，或配偶或父母是魏县户籍；2020年应届毕业生不限户籍。 | S143: 普通全日制专科及以上学历。 | T143: 普通话水平必须取得国家语言文字工作委员会颁发的二级乙等及其以上《普通话水平测试等级证书》，语文岗位应取得二级甲等及其以上《普通话水平测试等级证书》 | U143: 录用后须在魏县教育教学岗位服务满3年，服务不足3年的，视为失信，记录失信档案。 | V143: 统一招聘
L144: 1 | M144: 小学教师 | N144: 数学
L145: 1 | M145: 小学教师 | N145: 英语
L146: 2 | M146: 小学教师 | N146: 科学
A147: 魏县教育体育局 | B147: 魏县教育局大马村乡中心校 | C147: 全额事业 | D147: 75 | E147: 67 | F147: 8 | G147: 3 | H147: 11 | L147: 2 | M147: 小学教师 | N147: 语文
L148: 2 | M148: 小学教师 | N148: 数学
L149: 2 | M149: 小学教师 | N149: 英语
L150: 1 | M150: 小学教师 | N150: 体育
L151: 1 | M151: 小学教师 | N151: 美术
K152: 1 | M152: 初中教师 | N152: 数学 | P152: 具有初级中学及以上教师资格证，教师资格证书任教学科与招聘岗位学科要一致；教师资格证任教学科是初中教育的可以报考初中阶段所有学科。 | R152: 不限 | S152: 普通全日制本科及以上学历,并取得相应学位证书。
K153: 1 | M153: 初中教师 | N153: 英语
L154: 1 | M154: 幼儿教师 | N154: 幼儿园 | O154: 具有的教师资格证非幼儿教育或学前教育学科的，要求规定学历所学专业须是幼儿教育或学前教育专业。 | P154: 具有教师资格证且教师资格证任教学科非幼儿教育或学前教育的，规定学历所学专业须是幼儿教育或学前教育专业；具有幼儿教育或学前教育教师资格证的。 | R154: 本科及以上学历的不限户籍；专科学历的，必须是魏县户籍，或配偶或父母是魏县户籍；2020年应届毕业生不限户籍。 | S154: 普通全日制专科及以上学历。
A155: 魏县教育体育局 | B155: 魏县教育局牙里镇中心校 | C155: 全额事业 | D155: 145 | E155: 128 | F155: 17 | G155: 8 | H155: 16 | L155: 1 | M155: 幼儿教师 | N155: 幼儿园
A156: 魏县教育体育局 | B156: 魏县教育局牙里镇中心校 | C156: 全额事业 | D156: 145 | E156: 128 | F156: 17 | G156: 8 | H156: 16 | L156: 3 | M156: 小学教师 | N156: 语文 | O156: 不限 | P156: 具有小学及以上教师资格证，教师资格证书任教学科与招聘岗位学科要一致；教师资格证任教学科是小学教育或初中教育的，可以报考小学阶段所有学科。 | Q156: 18周岁以上，35周岁及以下。 | R156: 本科及以上学历的不限户籍；专科学历的，必须是魏县户籍，或配偶或父母是魏县户籍；2020年应届毕业生不限户籍。 | S156: 普通全日制专科及以上学历。 | T156: 普通话水平必须取得国家语言文字工作委员会颁发的二级乙等及其以上《普通话水平测试等级证书》，语文岗位应取得二级甲等及其以上《普通话水平测试等级证书》 | U156: 录用后须在魏县教育教学岗位服务满3年，服务不足3年的，视为失信，记录失信档案。 | V156: 统一招聘
L157: 2 | M157: 小学教师 | N157: 数学
L158: 2 | M158: 小学教师 | N158: 英语
L159: 1 | M159: 小学教师 | N159: 音乐
L160: 1 | M160: 小学教师 | N160: 体育
L161: 1 | M161: 小学教师 | N161: 美术
L162: 3 | M162: 小学教师 | N162: 品德与社会
L163: 2 | M163: 小学教师 | N163: 科学
A164: 魏县教育体育局 | B164: 魏县教育局张二庄镇中心校 | C164: 全额事业 | D164: 175 | E164: 155 | F164: 20 | G164: 9 | H164: 18 | L164: 5 | M164: 小学教师 | N164: 语文
L165: 6 | M165: 小学教师 | N165: 数学
L166: 4 | M166: 小学教师 | N166: 英语
L167: 1 | M167: 小学教师 | N167: 音乐
L168: 1 | M168: 小学教师 | N168: 体育
L169: 1 | M169: 幼儿教师 | N169: 幼儿园 | O169: 具有的教师资格证非幼儿教育或学前教育学科的，要求规定学历所学专业须是幼儿教育或学前教育专业。 | P169: 具有教师资格证且教师资格证任教学科非幼儿教育或学前教育的，规定学历所学专业须是幼儿教育或学前教育专业；具有幼儿教育或学前教育教师资格证的。
A170: 魏县教育体育局 | B170: 魏县第一中学 | C170: 全额事业 | D170: 470 | E170: 466 | F170: 4 | G170: 10 | H170: 1 | L170: 1 | M170: 卫生专业技术人员 | N170: 不限 | O170: 不限 | P170: 持有卫生专业执业资格证书 | Q170: 18周岁以上，35周岁及以下。 | R170: 本科及以上学历的不限户籍；专科学历的，必须是魏县户籍，或配偶或父母是魏县户籍；2020年应届毕业生不限户籍。 | S170: 普通全日制专科及以上学历。 | T170: 不限 | U170: 录用后须在魏县教育系统服务满3年，服务不足3年的，视为失信，记录失信档案。 | V170: 统一招聘
B171: 魏县第二中学 | C171: 全额事业 | D171: 317 | E171: 317 | G171: 5 | H171: 1 | L171: 1 | M171: 卫生专业技术人员 | N171: 不限
B172: 魏县第三中学 | C172: 全额事业 | D172: 180 | E172: 83 | F172: 97 | G172: 1 | H172: 1 | L172: 1 | M172: 卫生专业技术人员 | N172: 不限
B173: 魏县综合职业技术教育中心 | C173: 全额事业 | D173: 150 | E173: 136 | F173: 14 | G173: 4 | H173: 1 | L173: 1 | M173: 卫生专业技术人员 | N173: 不限
B174: 魏县第四中学 | C174: 全额事业 | D174: 279 | E174: 269 | F174: 10 | G174: 2 | H174: 1 | L174: 1 | M174: 卫生专业技术人员 | N174: 不限
B175: 魏县第五中学 | C175: 全额事业 | D175: 240 | E175: 230 | F175: 10 | G175: 6 | H175: 1 | L175: 1 | M175: 卫生专业技术人员 | N175: 不限
B176: 魏县第五中学分校 | C176: 全额事业 | D176: 120 | E176: 103 | F176: 17 | G176: 1 | H176: 1 | L176: 1 | M176: 卫生专业技术人员 | N176: 不限
B177: 魏县第六中学 | C177: 全额事业 | D177: 220 | E177: 186 | F177: 34 | H177: 1 | L177: 1 | M177: 卫生专业技术人员 | N177: 不限
B178: 魏县第七中学 | C178: 全额事业 | D178: 80 | E178: 74 | F178: 6 | H178: 1 | L178: 1 | M178: 卫生专业技术人员 | N178: 不限
B179: 魏县第八中学 | C179: 全额事业 | D179: 180 | E179: 155 | F179: 25 | H179: 1 | L179: 1 | M179: 卫生专业技术人员 | N179: 不限
B180: 魏县德政中学 | C180: 全额事业 | D180: 70 | E180: 63 | F180: 7 | H180: 1 | L180: 1 | M180: 卫生专业技术人员 | N180: 不限
B181: 魏县大辛庄中学 | C181: 全额事业 | D181: 70 | E181: 53 | F181: 17 | G181: 2 | H181: 1 | L181: 1 | M181: 卫生专业技术人员 | N181: 不限
A182: 魏县教育体育局 | B182: 魏县牙里中学 | C182: 全额事业 | D182: 106 | E182: 100 | F182: 6 | G182: 4 | H182: 1 | L182: 1 | M182: 卫生专业技术人员 | N182: 不限 | O182: 不限 | P182: 持有卫生专业执业资格证书 | Q182: 18周岁以上，35周岁及以下。 | R182: 本科及以上学历的不限户籍；专科学历的，必须是魏县户籍，或配偶或父母是魏县户籍；2020年应届毕业生不限户籍。 | S182: 普通全日制专科及以上学历。 | T182: 不限 | U182: 录用后须在魏县教育系统服务满3年，服务不足3年的，视为失信，记录失信档案。 | V182: 统一招聘
B183: 魏县车往中学 | C183: 全额事业 | D183: 115 | E183: 107 | F183: 8 | G183: 1 | H183: 1 | L183: 1 | M183: 卫生专业技术人员 | N183: 不限
B184: 魏县特殊教育学校 | C184: 全额事业 | D184: 26 | E184: 23 | F184: 3 | G184: 1 | H184: 1 | L184: 1 | M184: 卫生专业技术人员 | N184: 不限
B185: 魏县第一小学 | C185: 全额事业 | D185: 270 | E185: 268 | F185: 2 | G185: 8 | H185: 1 | L185: 1 | M185: 卫生专业技术人员 | N185: 不限
B186: 魏县第二小学 | C186: 全额事业 | D186: 176 | E186: 175 | F186: 1 | G186: 7 | H186: 1 | L186: 1 | M186: 卫生专业技术人员 | N186: 不限
B187: 魏县第三小学 | C187: 全额事业 | D187: 246 | E187: 241 | F187: 5 | G187: 2 | H187: 1 | L187: 1 | M187: 卫生专业技术人员 | N187: 不限
B188: 魏县第四小学 | C188: 全额事业 | D188: 113 | E188: 111 | F188: 2 | G188: 2 | H188: 1 | L188: 1 | M188: 卫生专业技术人员 | N188: 不限
B189: 魏县第五小学 | C189: 全额事业 | D189: 120 | E189: 114 | F189: 6 | G189: 1 | H189: 1 | L189: 1 | M189: 卫生专业技术人员 | N189: 不限
B190: 魏县第六小学 | C190: 全额事业 | D190: 90 | E190: 65 | F190: 25 | H190: 1 | L190: 1 | M190: 卫生专业技术人员 | N190: 不限
B191: 魏县教育局魏城镇中心校 | C191: 全额事业 | D191: 361 | E191: 291 | F191: 70 | G191: 17 | H191: 1 | L191: 1 | M191: 卫生专业技术人员 | N191: 不限
B192: 魏县教育局沙口集乡中心校 | C192: 全额事业 | D192: 150 | E192: 129 | F192: 21 | G192: 6 | H192: 1 | L192: 1 | M192: 卫生专业技术人员 | N192: 不限
B193: 魏县教育局北皋镇中心校 | C193: 全额事业 | D193: 325 | E193: 265 | F193: 60 | G193: 14 | H193: 2 | L193: 2 | M193: 卫生专业技术人员 | N193: 不限
A194: 魏县教育体育局 | B194: 魏县教育局车往镇中心校 | C194: 全额事业 | D194: 185 | E194: 137 | F194: 48 | G194: 8 | H194: 1 | L194: 1 | M194: 卫生专业技术人员 | N194: 不限 | O194: 不限 | P194: 持有卫生专业执业资格证书 | Q194: 18周岁以上，35周岁及以下。 | R194: 本科及以上学历的不限户籍；专科学历的，必须是魏县户籍，或配偶或父母是魏县户籍；2020年应届毕业生不限户籍。 | S194: 普通全日制专科及以上学历。 | T194: 不限 | U194: 录用后须在魏县教育系统服务满3年，服务不足3年的，视为失信，记录失信档案。 | V194: 统一招聘
B195: 魏县教育局双庙乡中心校 | C195: 全额事业 | D195: 110 | E195: 105 | F195: 5 | G195: 3 | H195: 1 | L195: 1 | M195: 卫生专业技术人员 | N195: 不限
B196: 魏县教育局双井镇中心校 | C196: 全额事业 | D196: 150 | E196: 135 | F196: 15 | H196: 1 | L196: 1 | M196: 卫生专业技术人员 | N196: 不限
B197: 魏县教育局张二庄镇中心校 | C197: 全额事业 | D197: 175 | E197: 155 | F197: 20 | G197: 9 | H197: 1 | L197: 1 | M197: 卫生专业技术人员 | N197: 不限
B198: 魏县县直幼儿园 | C198: 全额事业 | D198: 49 | E198: 46 | F198: 3 | H198: 1 | L198: 1 | M198: 卫生专业技术人员 | N198: 不限
A199: 注：1、单位名称写全称；2、单位性质分：全额事业、差额事业、自收自支事业，一个单位多种编制性质的，应写明招聘岗位所占编制；3、专业及条件要符合政策和规范；4、招聘方式为选聘或统一招聘，选聘条件要符合公开招聘有关规定；5、报表一式两份，加盖单位公章。各县（市、区）申报计划要征求当地编制部门意见并盖章。

Sheet 岗位信息表
A1: 附件1
A2: 魏县2020年公开招聘教师、校医、职业教育专业指导岗位信息表
T3: 2020-07-20
A4: 主管单位 | B4: 学段层次 | C4: 合计 | D4: 招聘学科岗位人数
D5: 教师岗位 | W5: 专业指导岗位 | Y5: 校医岗位 | Z5: 备注
D6: 语文 | E6: 数学 | F6: 英语 | G6: 物理 | H6: 化学 | I6: 生物 | J6: 历史 | K6: 地理 | L6: 政治 | M6: 音乐 | N6: 体育 | O6: 美术 | P6: 科学 | Q6: 品德与社会 | R6: 信息技术 | S6: 计算机科学与技术 | T6: 学前教育 | U6: 会计 | V6: 幼儿教师 | W6: 应急安全协调员 | X6: 物流管理员
A7: 魏县教育体育局 | B7: 高中教师 | C7: =SUM(D7:Y7) ->  | D7: =SUMIFS(#REF!,#REF!,$B7,#REF!,D$6) ->  | E7: =SUMIFS(#REF!,#REF!,$B7,#REF!,E$6) ->  | F7: =SUMIFS(#REF!,#REF!,$B7,#REF!,F$6) ->  | G7: =SUMIFS(#REF!,#REF!,$B7,#REF!,G$6) ->  | H7: =SUMIFS(#REF!,#REF!,$B7,#REF!,H$6) ->  | I7: =SUMIFS(#REF!,#REF!,$B7,#REF!,I$6) ->  | J7: =SUMIFS(#REF!,#REF!,$B7,#REF!,J$6) ->  | K7: =SUMIFS(#REF!,#REF!,$B7,#REF!,K$6) ->  | L7: =SUMIFS(#REF!,#REF!,$B7,#REF!,L$6) ->  | M7: =SUMIFS(#REF!,#REF!,$B7,#REF!,M$6) ->  | N7: =SUMIFS(#REF!,#REF!,$B7,#REF!,N$6) ->  | O7: =SUMIFS(#REF!,#REF!,$B7,#REF!,O$6) ->  | P7: =SUMIFS(#REF!,#REF!,$B7,#REF!,P$6) ->  | Q7: =SUMIFS(#REF!,#REF!,$B7,#REF!,Q$6) ->  | R7: =SUMIFS(#REF!,#REF!,$B7,#REF!,R$6) ->  | S7: =SUMIFS(#REF!,#REF!,$B7,#REF!,S$6) ->  | T7: =SUMIFS(#REF!,#REF!,$B7,#REF!,T$6) ->  | U7: =SUMIFS(#REF!,#REF!,$B7,#REF!,U$6) ->  | V7: =SUMIFS(#REF!,#REF!,$B7,#REF!,V$6) ->  | W7: =SUMIFS(#REF!,#REF!,$B7,#REF!,W$6) ->  | X7: =SUMIFS(#REF!,#REF!,$B7,#REF!,X$6) ->  | Y7: =SUMIFS(#REF!,#REF!,$B7,#REF!,Y$5) -> 
B8: 高中A | C8: =SUM(D8:Y8) -> 78 | D8: 10 | E8: 8 | F8: 9 | G8: 8 | H8: 5 | I8: 11 | J8: 10 | K8: 9 | L8: 4 | N8: 1 | O8: 2 | R8: 1 | Z8: 限高校毕业生报考
B9: 高中B | C9: 22 | D9: 2 | E9: 2 | F9: 3 | G9: 2 | H9: 2 | I9: 2 | J9: 2 | K9: 2 | L9: 2 | M9: 0 | N9: 1 | O9: 1 | P9: 0 | Q9: 0 | R9: 1 | S9: 0 | T9: 0 | U9: 0 | V9: 0 | W9: 0 | X9: 0 | Y9: 0
B10: 职教教师 | C10: =SUM(D10:Y10) ->  | D10: =SUMIFS(#REF!,#REF!,$B10,#REF!,D$6) ->  | S10: 6 | T10: 5 | U10: 1
B11: 职业教育A | C11: =SUM(D11:Y11) -> 9 | S11: 5 | T11: 4 | Z11: 限高校毕业生报考
B12: 职业教育B | C12: =SUM(D12:Y12) -> 3 | S12: 1 | T12: 1 | U12: 1
B13: 职业教育专业指导B | C13: 3 | W13: 2 | X13: 1
B14: 初中教师 | C14: =SUM(D14:Y14) ->  | D14: =SUMIFS(#REF!,#REF!,$B14,#REF!,D$6) ->  | E14: =SUMIFS(#REF!,#REF!,$B14,#REF!,E$6) ->  | F14: =SUMIFS(#REF!,#REF!,$B14,#REF!,F$6) ->  | G14: =SUMIFS(#REF!,#REF!,$B14,#REF!,G$6) ->  | H14: =SUMIFS(#REF!,#REF!,$B14,#REF!,H$6) ->  | I14: =SUMIFS(#REF!,#REF!,$B14,#REF!,I$6) ->  | J14: =SUMIFS(#REF!,#REF!,$B14,#REF!,J$6) ->  | K14: =SUMIFS(#REF!,#REF!,$B14,#REF!,K$6) ->  | L14: =SUMIFS(#REF!,#REF!,$B14,#REF!,L$6) ->  | M14: =SUMIFS(#REF!,#REF!,$B14,#REF!,M$6) ->  | N14: =SUMIFS(#REF!,#REF!,$B14,#REF!,N$6) ->  | O14: =SUMIFS(#REF!,#REF!,$B14,#REF!,O$6) ->  | P14: =SUMIFS(#REF!,#REF!,$B14,#REF!,P$6) ->  | Q14: =SUMIFS(#REF!,#REF!,$B14,#REF!,Q$6) ->  | R14: =SUMIFS(#REF!,#REF!,$B14,#REF!,R$6) ->  | S14: =SUMIFS(#REF!,#REF!,$B14,#REF!,S$6) ->  | T14: =SUMIFS(#REF!,#REF!,$B14,#REF!,T$6) ->  | U14: =SUMIFS(#REF!,#REF!,$B14,#REF!,U$6) ->  | V14: =SUMIFS(#REF!,#REF!,$B14,#REF!,V$6) ->  | W14: =SUMIFS(#REF!,#REF!,$B14,#REF!,W$6) ->  | X14: =SUMIFS(#REF!,#REF!,$B14,#REF!,X$6) ->  | Y14: =SUMIFS(#REF!,#REF!,$B14,#REF!,Y$5) -> 
B15: 初中A | C15: =SUM(D15:Y15) -> 38 | D15: 7 | E15: 7 | F15: 5 | G15: 6 | H15: 4 | I15: 2 | J15: 1 | K15: 1 | L15: 1 | M15: 1 | N15: 1 | O15: 1 | R15: 1 | Z15: 限高校毕业生报考
B16: 初中B | C16: =SUM(D16:Y16) -> 14 | D16: 2 | E16: 1 | F16: 1 | G16: 1 | H16: 1 | I16: 1 | J16: 1 | K16: 1 | L16: 1 | M16: 1 | N16: 1 | O16: 1 | P16: 0 | Q16: 0 | R16: 1 | S16: 0 | T16: 0 | U16: 0
B17: 小学教师 | C17: =SUM(D17:Y17) ->  | D17: =SUMIFS(#REF!,#REF!,$B17,#REF!,D$6) ->  | E17: =SUMIFS(#REF!,#REF!,$B17,#REF!,E$6) ->  | F17: =SUMIFS(#REF!,#REF!,$B17,#REF!,F$6) ->  | G17: =SUMIFS(#REF!,#REF!,$B17,#REF!,G$6) ->  | H17: =SUMIFS(#REF!,#REF!,$B17,#REF!,H$6) ->  | I17: =SUMIFS(#REF!,#REF!,$B17,#REF!,I$6) ->  | J17: =SUMIFS(#REF!,#REF!,$B17,#REF!,J$6) ->  | K17: =SUMIFS(#REF!,#REF!,$B17,#REF!,K$6) ->  | L17: =SUMIFS(#REF!,#REF!,$B17,#REF!,L$6) ->  | M17: =SUMIFS(#REF!,#REF!,$B17,#REF!,M$6) ->  | N17: =SUMIFS(#REF!,#REF!,$B17,#REF!,N$6) ->  | O17: =SUMIFS(#REF!,#REF!,$B17,#REF!,O$6) ->  | P17: =SUMIFS(#REF!,#REF!,$B17,#REF!,P$6) ->  | Q17: =SUMIFS(#REF!,#REF!,$B17,#REF!,Q$6) ->  | R17: =SUMIFS(#REF!,#REF!,$B17,#REF!,R$6) ->  | S17: =SUMIFS(#REF!,#REF!,$B17,#REF!,S$6) ->  | T17: =SUMIFS(#REF!,#REF!,$B17,#REF!,T$6) ->  | U17: =SUMIFS(#REF!,#REF!,$B17,#REF!,U$6) ->  | V17: =SUMIFS(#REF!,#REF!,$B17,#REF!,V$6) ->  | W17: =SUMIFS(#REF!,#REF!,$B17,#REF!,W$6) ->  | X17: =SUMIFS(#REF!,#REF!,$B17,#REF!,X$6) ->  | Y17: =SUMIFS(#REF!,#REF!,$B17,#REF!,Y$5) -> 
B18: 小学A | C18: =SUM(D18:Y18) -> 34 | D18: 8 | E18: 8 | F18: 8 | M18: 2 | N18: 2 | O18: 2 | P18: 2 | Q18: 2 | Z18: 限高校毕业生报考
B19: 小学B | C19: 24 | D19: 5 | E19: 5 | F19: 5 | G19: 0 | H19: 0 | I19: 0 | J19: 0 | K19: 0 | L19: 0 | M19: 2 | N19: 2 | O19: 2 | P19: 1 | Q19: 2 | R19: 0 | S19: 0 | T19: 0 | U19: 0 | V19: 0 | W19: 0 | X19: 0
B20: 幼儿教师 | C20: =SUM(D20:Y20) ->  | D20: =SUMIFS(#REF!,#REF!,$B20,#REF!,D$6) ->  | E20: =SUMIFS(#REF!,#REF!,$B20,#REF!,E$6) ->  | F20: =SUMIFS(#REF!,#REF!,$B20,#REF!,F$6) ->  | G20: =SUMIFS(#REF!,#REF!,$B20,#REF!,G$6) ->  | H20: =SUMIFS(#REF!,#REF!,$B20,#REF!,H$6) ->  | I20: =SUMIFS(#REF!,#REF!,$B20,#REF!,I$6) ->  | J20: =SUMIFS(#REF!,#REF!,$B20,#REF!,J$6) ->  | K20: =SUMIFS(#REF!,#REF!,$B20,#REF!,K$6) ->  | L20: =SUMIFS(#REF!,#REF!,$B20,#REF!,L$6) ->  | M20: =SUMIFS(#REF!,#REF!,$B20,#REF!,M$6) ->  | N20: =SUMIFS(#REF!,#REF!,$B20,#REF!,N$6) ->  | O20: =SUMIFS(#REF!,#REF!,$B20,#REF!,O$6) ->  | P20: =SUMIFS(#REF!,#REF!,$B20,#REF!,P$6) ->  | Q20: =SUMIFS(#REF!,#REF!,$B20,#REF!,Q$6) ->  | R20: =SUMIFS(#REF!,#REF!,$B20,#REF!,R$6) ->  | S20: =SUMIFS(#REF!,#REF!,$B20,#REF!,S$6) ->  | T20: =SUMIFS(#REF!,#REF!,$B20,#REF!,T$6) ->  | U20: =SUMIFS(#REF!,#REF!,$B20,#REF!,U$6) ->  | V20: 75 | W20: =SUMIFS(#REF!,#REF!,$B20,#REF!,W$6) ->  | X20: =SUMIFS(#REF!,#REF!,$B20,#REF!,X$6) -> 
B21: 幼教A | C21: 40 | V21: 40 | Z21: 限高校毕业生报考
B22: 幼教B | C22: 34 | V22: 34
B23: 幼教C | C23: 1 | V23: 1 | Z23: 定向招聘
B24: 校医 | C24: =SUM(D24:Y24) -> 30 | Y24: 30
B25: 合计 | C25: =SUM(C8,C9,C11,C12,C13,C15,C16,C18,C19,C21,C22,C23,C24) -> 330 | D25: =SUM(D8,D9,D11,D12,D13,D15,D16,D18,D19,D21,D22,D23,D24) -> 34 | E25: 31 | F25: 31 | G25: 17 | H25: 12 | I25: 16 | J25: 14 | K25: 13 | L25: 8 | M25: 6 | N25: 8 | O25: 9 | P25: 3 | Q25: 4 | R25: 4 | S25: 6 | T25: 5 | U25: 1 | V25: 75 | W25: 2 | X25: 1 | Y25: 30

Sheet 汇总表 (hidden)
E7: 招聘学段 | F7: 专业
F8: 合计 | G8: 语文 | H8: 数学 | I8: 英语 | J8: 物理 | K8: 化学 | L8: 生物 | M8: 历史 | N8: 地理 | O8: 政治 | P8: 信息技术 | Q8: 音乐 | R8: 体育 | S8: 美术 | T8: 科学 | U8: 品德与社会 | V8: 中职会计 | W8: 中职学前教育 | X8: 中职计算机科学与技术 | Y8: 幼儿园教师
E9: 小学 | F9: =SUM(G9:Y9) -> 100 | G9: 24 | H9: 24 | I9: 20 | Q9: 7 | R9: 7 | S9: 3 | T9: 8 | U9: 7
E10: 初中 | F10: 70 | G10: 12 | H10: 11 | I10: 9 | J10: 11 | K10: 7 | L10: 4 | M10: 3 | N10: 4 | O10: 2 | P10: 2 | Q10: 2 | R10: 3
E11: 高中 | F11: 100 | G11: 12 | H11: 10 | I11: 12 | J11: 10 | K11: 7 | L11: 13 | M11: 12 | N11: 11 | O11: 6 | P11: 2 | R11: 2 | S11: 3
E12: 职教 | F12: 15 | V12: 1 | W12: 5 | X12: 9
E13: 幼儿园 | F13: 15 | Y13: 15
E14: 合计 | F14: =SUM(F9:F13) -> 300 | G14: 48 | H14: 45 | I14: 41 | J14: 21 | K14: 14 | L14: 17 | M14: 15 | N14: 15 | O14: 8 | P14: 4 | Q14: 9 | R14: 12 | S14: 6 | T14: 8 | U14: 7 | V14: 1 | W14: 5 | X14: 9 | Y14: 15

Sheet Sheet1 (hidden)
A3: 序号 | B3: 招聘学科 | C3: 学历 | F3: 备注
C4: 研究生 | D4: 本科 | E4: 专科
A5: 1 | B5: 语文 | C5: 一、教育学门类：汉语国际教育 二、文学门类：中国语言文学类:文艺学、语言学及应用语言学、汉语言文字学；中国古典文献学；中国古代文学；中国现当代文学；中国少数民族语言文学；比较文学与世界文学 | D5: 一、文学门类：中国语言文学类：汉语言文学；汉语言；汉语国际教育；中国少数民族语言文学；古典文献学；应用语言学；秘书学；对外汉语；中国语言文学；中国学；文秘教育。 | E5: 一、教育学门类：语文教育 二、文学门类：汉语；文秘
A6: 2 | B6: 数学 | C6: 一、理学门类： 1、数学类：基础数学；计算数学；概率论与数理统计；应用数学；运筹学与控制论。 2、统计学 | D6: 一、理学门类： 1、数学类：数学与应用数学；信息与计算科学；数理基础科学。 2、统计学类：统计学；应用统计学。 | E6: 一、教育学门类：数学教育
A7: 3 | B7: 英语 | C7: 一、文学门类：英语语言文学；外国语言学及应用语言学；翻译 | D7: 一、文学门类：英语；翻译；商务英语；生物医学英语； | E7: 一、教育学门类：英语教育 二、文学门类：应用英语；商务英语；
A8: 4 | B8: 物理 | C8: 一、理学门类： 1、物理学类：理论物理；粒子物理与原子核物理；等离子体物理；凝聚态物理；声学；光学；无线电物理。 2、天文学类：天体物理；天体测量与天体理学。 3、海洋科学类：物理海洋学； 二、工学门类 1、力学类：一般力学与力学基础；固体力学；流体力学；工程力学 2、光学工程； 3、仪器科学与技术类：精密一起及机械；测试计量技术及仪器。 4、动力工程及工程热物理类：工程热物理；热能工程；动力机械及工程；流体机械及工程；制冷及低温工程；化工工程机械； 5、电气工程类：电机与电器；电力系统及其自动化；电力系统及其自动化；高电压与绝缘技术；电力电子与电力传动；电工理论与新技术； 6、电子科学与技术类：物理电子学；电路与系统；微电子学与固体电子学；电磁场与微波技术 7、信息与通信工程类：通信与信息系统；信号与信息处理。 8、控制科学与工程：控制理论与控制工程；检测技术与自动化装置；系统工程；模式识别与智能系统；导航、制导与控制。 9、核科学与技术类：核能科学与工程；核燃料循环与材料；核技术及应用；辐射防护及环境保护； 10、农业机械化工程；农业电气化与自动化。 | D8: 一、理学门类： 1、物理学；应用物理学；核物理；声学。 2、田文学类：天文学 3、理论与应用力学；工程力学；工程结构分析； 二、力学类： 1、理论与应用力学；工程力学；工程结构分析； 2、仪器类：测控技术与仪器；电子信息技术与仪器； 三、工学门类： 1、能源动力学：能源与动力工程；能源与环境系统工程；新能源科学与工程；热能与动力工程；能源工程及自动化；能源动力系统及自动化；能源与资源工程；风能与动力工程；核工程与核技术；工程物理。 2、电气类：电气工程及其自动化；职能电网信息工程；光源与照明；电气工程与智能控制；电气信息工程；电力工程与管理；电气技术教育；电机电器职能华。 3、电子信息类：电子信息工程；电子科学与技术；通信工程；微电子科学与技术；光电信息科学与工程；信息工程；广播电视工程；水声工程；电子封装技术；集成电路设计与集成系统；电磁场与无线技术；电波传播与天线；电子信息科学与技术；电信工程级管理；应用电子技术教育；计算机科学与技术；真空电子技术；信息与通信工程；微电子学；微电子制造工程；微电子材料与器件；光信息科学与技术；光电子技术与科学；信息显示与光电技术；光电信息工程；光电子材料与器件；信息安全；信息科学技术；信息物理工程； 4、自动化类：自动化；轨道交通信号与控制 5、核工程类：核工程与核技术；辐射防护与核安全；工程物理；核化工与核燃料工程；核技术；核反应堆工程；核安全工程； 6、农业工程类：农业机械化及其自动化；农业电气化；农业电气化与自动化； | E8: 一、教育学门类：物理教育 二、工学门类： 1、能源类：热能动力设备与应用；城市热能应用技术；农村能源与环境技术；制冷与冷藏技术。 2、电力技术类：发电厂及电力系统；电厂设备运行与维护；电厂热能动力装置；火电厂集控运行；小型水电站及电力网；供用电技术；电网监控技术；电力系统继电保护与自动化；高压输配电线路施工运行与维护；农村电气化技术；电厂化学； 3、自动化类：机电一体化技术；电气自动化技术；声场过程自动化技术；电力系统自动化技术；讲师级控制技术；工业网络技术；检测技术及应用；理化测试及质检技术；液压与气动技术； 4、机电设备类：机电设备维修与管理；数控设备应用与维护；自动化生产设备应用；医用电子仪器与维护；医学影像设备管理与维护。 6、电子信息类：电子信息工程技术；应用电子技术；电子测量技术与仪器；电子仪器仪表与维修；电子设备与运行管理；电子声像技术；电子工艺与管理；信息安全技术；图文信息技术；微电子技术；无线电技术；广播电视网络技术；有线电视工程技术。 7、通信类：通信技术；移动通信技术；计算机通信；程控交换技术；通信网络与设备；通信系统运行管理。
A9: 5 | B9: 化学 | C9: 一、理学门类： 1、无机化学；分析化学；有机化学；物理化学；高分子化学与物理 2、海洋科学类：海洋化学； 二、工学门类： 1、材料科学与工程类：材料物理与化学；材料学；材料加工工程； 2、冶金工程类：冶金物理化学；钢铁冶金；有色金属冶金 3、化学工程与技术类：化学工程；化学工艺；生物化工；应用化学；工业催化； 4、轻工技术与工程类：制浆造纸工程；制糖工程；发酵工程；皮革化学与工程。 | D9: 一、理学门类： 1、化学；应用化学；化学生物学；分子科学与工程； 二、工学门类： 1、材料类：材料科学与工程；材料物理；材料化学；冶金工程；金属材料工程；无机非金属材料工程；高分子材料与工程；复合材料与工程；粉体材料科学与工程；宝石及材料工艺学；功能材料；纳米材料与激素；新能源材料与器件；稀土工程；高分子材料加工工程；生物功能材料；再生资源科学与技术 2、化工与制药类：化学工程与工艺；制药工程；资源循环科学与工程；能源化学工程；化学工程与工业生物工程；化工与制药；再生资源科学与技术； 3、轻工类：轻化工程；包装工程；印刷工程；数字印刷。 | E9: 一、教育学门类：化学教育 二、工学门类： 1、金属材料与热处理技术；冶金技术；高分子材料应用技术；复合材料加工与应用技术；材料工程技术；建筑装饰材料及检测。 2、化工技术类：应用化工技术；有机化工生产技术；高聚物里生产技术；化纤生产技术；惊喜化学品生产技术；实有化工生产技术；炼油技术；工业分析与检验；胡奥给你设备维修技术； 3、制药技术类：生化制药技术；生物制药技术；化学制药技术；中药制药技术；药物制剂技术；药物分析技术。 4、轻化工类：染整技术；高分子材料加工技术；制浆造纸技术；香料香精工艺；表面精饰工艺；
A10: 6 | B10: 生物/科学 | C10: 一、理学门类 1、海洋科学类：海洋化学；海洋生物学； 2、生物学类：植物学；动物学；生理学；水生生物学；微生物学；神经生物学；遗传学；发育生物学；细胞生物学；生物化学与分子生物学；生物物理学；生态学； 二、工学门类： 1、生物医学工程； 2、生物工程； 三、农学门类： 1、作物学类：作物栽培学与耕作学；作物遗传育种；农业推广； 2、园艺学类：果树学；蔬菜学；茶学；风景园林； 3、农业资源与环境类：土壤学；职务营养学。 4、植物保护类：植物病理学；农业昆虫与害虫防治；农药学； 5、畜牧学类：动物遗传育种与繁殖；动物营养与磁疗科学；草业科学；特种经济动物饲养； 6、林学类：林木遗传育种；森林培育；森林保护学；森林经理学；野生动植物保护与利用；园林植物与观赏园艺；水土保持与荒漠化防治；林业； 7、水产类：水产养殖；捕捞学；渔业资源； 8、草学类：草学。 | D10: 一、教育学门类：应用生物教育 二、理学门类： 1、海洋科学类：海洋生物资源与环境；海洋生物资源与环境；军事海洋学；海洋管理； 2、生物科学类：生物科学；生物技术；生物信息学；生态学；生物化学与分子生物学；生物资源科学；生物安全；生物科学与生物技术；生物信息技术；医学信息学；动植物检疫；植物生物技术。 三、工学门类： 1、生物医学工程类：生物医学工程； 2、生物工程类：生物工程；生物制药；生物系统工程；轻工生物技术；生物医学工程。 四、农学门类： 1、植物生产类：农学；园艺；职务保护；职务科学与技术；种子科学与工程；设施农业科学与工程；草叶科学；茶学；烟草；应用生物科学；农艺教育；园艺教育；农产品储运与加工教育；职务生物技术；特用作物教育；应用生物教育。 2、自然保护与环境生态类：农业资源与环境；野生动物与自然保护区管理；水土保持与荒漠化防治；植物资源工程；森林资源保护与游憩。 3、动物生产类：动物科学；蚕学；蜂学；动物生物技术；畜禽生产教育； 4、林学类：林学；园林；森林保护； 5、水产类：水产养殖学；海洋渔业科学与技术；水族科学与技术；水产养殖教育 6、草学类：草业科学。 | E10: 一、教育学门类：生物教育 二、工学门类： 1、生物技术类：生物技术及应用；生物实验技术；生物化工工艺；微生物技术及应用； 三、农学门类： 1、农业技术类：茶叶生产加工技术；作物生产技术；中草药栽培技术；职务检疫；农产品质量检测；设施农业技术；烟草栽培技术；观光农业；园艺技术；职务保护；种子生产与经营。 2、林业技术类：林业技术；园林技术；林产化工技术；木材加工技术；森林采运工程；森林资源保护；野生植物资源开发与利用；森林生态旅游；野生动物保护；自然保护区建设与管理； 3、水产养殖类：水产养殖技术；水生动植物保护；海洋捕捞技术；渔业综合技术。
A11: 7 | B11: 历史 | C11: 一、历史学门类：考古学、中国史、世界史类（考古学及博物馆学；历史地理学；历史文献学（含敦煌学、古文字学）；史学理论及史学史；专门史；中国古代史；中国近现代诗；世界史；文物与博物馆 | D11: 一、历史学门类：历史学；世界史；考古学；文物与博物馆学；文物保护技术；外国语言与外国历史；世界历史；博物馆学；民族学。 | E11: 一、教育学门类：历史教育
A12: 8 | B12: 地理/科学 | C12: 一、理学门类： 1、地理学类：自然地理学；人文地理学；地图学与地理信息系统。 2、大气学类：气象学；大气物理学与大气环境； 3、海洋科学类：海洋地质 4、地球物理学类：固体地球物理学；空间物理学； 5、地质学类：矿物学、岩石学、矿床学；地球化学；古生物学与地层学；构造地质学；第四纪地质学； 二、工学门类： 1、测绘科学与技术类：大地测量学与测量工程；摄影测量与遥感；地图制图学与地理信息工程； 2、地质资源与地质工程类：矿产普查与勘探；地球探测与信息技术；地质工程。 3、环境儿科学与工程类：环境科学；环境工程； | D12: 一、理学门类： 1、地理科学类：地理科学；自然地理与资源环境；人文地理与城乡规划；地理信息科学；资源环境与城乡规划；地理信息系统；地球信息科学与技术。 2、大气科学类：大气科学；应用气象技术； 3、地球物理学类：地球物理学；空间科学与技术；地球与空间科学； 4、地质学类：地质学；地球化学；地球信息科学与技术；古生物学。 二、工学门类： 1、测绘类：测绘工程；遥感科学与技术；导航工程；地理国情检测；空间信息与数字技术； 2、地质类：地质工程；勘查技术与工程；资源勘查工程；地下水科学与工程；煤及煤层气工程；能源与资源工程。 3、环境科学与工程类：环境科学与工程；环境工程；环境科学；环境生态工程；环保设备工程；资源环境科学；水质科学与技术；环境监察；地球环境科学；生态学；资源科学与工程。 | E12: 一、教育学门类：地理教育； 二、理学门类：1、气象类：大气科学技术；大气探测技术；应用气象技术；防雷技术； 三、工学门类： 1、测绘类：工程测量技术；工程测量与监理；摄影测量与遥感技术；大地测量与GPS定位技术；地理信息系统与地图制图技术；地籍测绘与土地管理信息技术；矿山测量。 2、资源勘查类：国土资源调查；区域地质调查及矿产普查；煤田地质与勘查技术；油气地质与勘查技术；水文地质与勘查技术；金属矿产地质与勘查技术；铀矿地质与勘查技术；非金属矿产地质与勘查技术；岩矿分析与鉴定技术；宝玉石鉴定与加工技术； 3、地质工程与技术类：矿山地质；工程地质勘查；水文与工程地质；钻探技术；地球物理勘查技术；地球物理测井技术；地球化学勘查技术。 4、环保类：环境监测与治理技术；环境监测与评价；农业环境保护；资源环境与城市管理；城市监测与工程技术；水环境监测与保护；城市水净化技术；市内检测与控制技术；
A13: 9 | B13: 政治/品德与社会 | C13: 一、哲学类： 马克思主义哲学；中国哲学；外国哲学；逻辑学；伦理学；美学；宗教学；科学技术哲学； 二、法学门类： 1、法学类：法学理论；法律史；宪法学与行政法学；诉讼法学；经济法学；环境与资源保护法学；军事法学；法律。 2、政治学类：政治学理论；中外政治制度；科学社会主义与国际共产主义运动；中共党史；国际政治；国际关系；外交学。 3、社会学类：社会学；人口学；人类学；民俗学；社会工作。 4、民族学类：民族学；马克思主义民族理论与政策；中国少数民族经济；中国少数民族史；中国少数民族艺术。 5、马克思主义理论类：马克思主义基本原理；马克思主义发展史；马克思中国化研究；国外马克思主义研究；思想政治教育；中国近现代史基本问题研究。 | D13: 一、哲学门类：哲学；逻辑学；宗教学；伦理学。 二、法学门类： 1、法学类：法学；只是产权；监狱学；只是产权法 2、政治学类：政治学与行政学；国际政治；外交学；国际事务与国际关系；政治学、经济学；国际政治经济学；国际文化交流；欧洲事务与欧洲关系；东亚事务与东亚关系；国际事务；思想政治教育。 3、社会学类：社会学；社会工作；人类学；女性学；家政学。 4、民族学类：民族学。 5、马克思主义理论类：科学社会主义；中国共产党历史；思想政治教育；科学社会主义与国际共产主义运动；中国革命史与中国共产党党史。 | E13: 一、法学门类： 1、法律实务类：司法助理；法律文秘；司法警务；法律事务；书记官。 2、法律执行类：刑事执行；民师执行；行政执行。 司法技术类：司法鉴定技术；司法信息技术；司法信息安全。 二、教育学门类：思想政治教育
A14: 10 | B14: 信息技术 | C14: 一、教育学门类：教育技术学 | D14: 一、教育学门类：教育技术学 | E14: 一、教育学门类：现代教育急速
A15: 11 | B15: 音乐 | C15: 一、艺术学类： 1、音乐与舞蹈学类：音乐学；舞蹈学； 2、戏剧与影视学类：戏剧戏曲学；电影学；广播电视艺术学； | D15: 一、艺术学类： 1、音乐与舞蹈学类：音乐表演；音乐学；作曲与作曲技术理论；舞蹈表演；舞蹈学；舞蹈编导。 2、戏剧与影视学类：表演；戏剧学；电影学；戏剧影视文学；广播电视编导；戏剧影视导演；戏剧影视美术设计；录音艺术；播音与主持艺术；动画；影视摄影与制作；影视学；广播影视编导；导演；摄影；数字电影技术；照明艺术。 | E15: 一、教育学门类：音乐教育； 二、艺术学门类： 1、表演艺术类：表演艺术；音乐表演；舞蹈表演；服装表演；影视表演；戏曲表演；编导； 2、广播影视类：广播电视技术；摄影摄像技术；音像技术；影视多媒体技术；影视动画；影视广告；主持与波音；新闻采编与制作；电视节目制作；电视制片管理。
A16: 12 | B16: 体育 | C16: 一、教育学门类 1、体育学类：体育人文社会学；运动人体科学；体育教育训练学；民族传统体育学；体育。 | D16: 一、教育学门类： 1、体育学类：体育教育；运动训练；社会体育指导与管理；武术与民族传统体育；运动人体科学；运动康复；休闲体育；社会体育；民族传统体育。 | E16: 一、教育学门类：竞技体育；运动训练；社会体育；体育保健；体育服务与管理。
A17: 13 | B17: 美术 | C17: 一、工学门类： 1、纺织科学与工程类：服装设计与工程； 二、艺术学门类： 1、美术学； 2、设计学； | D17: 一、教育学门类：服装设计与工艺教育；装潢设计与工艺教育 二、工学门类 1、计算机类：数字媒体艺术；影视艺术技术 2、纺织类：服装设计与工程；服装设计与工艺教育 三、艺术学门类： 2、美术学类：美术学；绘画；雕塑；摄影；书法学；中国画 3、设计学类：艺术设计学；视觉传达设计；环境设计；产品设计；服装与服饰涉及；公共艺术；工艺美术；数字媒体艺术；艺术与科技；艺术设计；工业设计；装潢涉及与工艺教育；数字游戏涉及；音乐科技与艺术；会展艺术与技术。 | E17: 一、教育学门类：美术教育 二、工学门类： 1、计算机类：图形图形制作；动漫设计与制作 2、纺织服装类：服装设计；染织遗属十级；纺织品装饰艺术设计； 3、包装印刷类：包装技术与设计；印刷技术；印刷图文信息处理；印刷设备级工艺；出版于发行。 三、艺术学门类： 1、艺术设计类：艺术设计；产品造型设计；视觉传达艺术设计；电脑艺术设计；人物形象设计；装潢艺术设计；雕塑艺术设计；珠宝首饰工艺及鉴定；雕刻艺术与家具设计；旅游工艺品设计与制作；广告设计与制作；多媒体设计与制作。
A18: 14 | B18: 中职会计 | C18: 一、管理学门类 1、工商管类：会计学；会计 | D18: 一、教育学门类：财务会计教育 二、管理学门类： 1、工商管理类：亏阿基学；财务管理；财务会计教育； | E18: 一、经济学门类未录入（二类） 二、财务会计类：财务管理；财务信息管理；会计；亏阿基电算化；会计与统计核算；会计与设计；审计实务；统计实务；
A19: 15 | B19: 中职学前教育 | C19: 一、教育学门类：学前教育学 | D19: 一、教育学门类：学前教育学
A20: 16 | B20: 中职计算机科学与技术 | C20: 一、工学门类： 1、计算机科学与技术类：计算机系统结构；计算机软件与理论；计算机应用技术； 2、软件工程； | D20: 一、工学门类 1、计算机类：计算机科学与技术；软件工程；网络工程；信息安全；物联网工程；数字媒体技术；智能科学与技术；空间信息与数字技术；电子与计算机工程；仿真科学与技术；计算机软件；科技防卫；传感网技术；数字媒体艺术；影视艺术技术 | E20: 一、工学门类： 1、计算机类：计算机应用技术；计算机网络技术；计算机多媒体技术；计算机维护系统；计算机硬件与外设；计算机信息管理；网络系统管理；软件技术；图形图形制作；动漫设计与制作‘
A21: 17 | B21: 中职应急安全教育教师 | C21: 一、工学门类： 安全科学与工程； | D21: 一、工学门类： 生物工程类:安全工程；雷电防护科学与技术；灾害防治工程； 二、管理学门类： 应急管理
A22: 18 | B22: 幼儿园教师 | C22: 一、教育学门类：学前教育学 | D22: 一、教育学门类：学前教育学 | E22: 一、教育学门类：学前教育；
A23: 19 | B23: 卫生专业技术人员 | C23: 一、医学门类： 1、基础医学类； 2、临床医学类； 3、口腔医学类； 4、中医学类； 5、中西医结合类； 6、公共卫生与预防医学类； 7、药学类； 8、中药学； 9、特种医学； 10、医学技术； 11、护理学； | D23: 一、医学门类： 1、基础医学类； 2、临床医学类； 3、口腔医学类； 4、中医学类； 5、中西医结合类； 6、公共卫生与预防医学类； 7、药学类； 8、中药学类； 9、医学技术类； 10、护理学类； | E23: 一、医学门类： 1、临床医学类； 2、卫生管理类； 3、药学类； 4、医学技术类； 5、护理类； | F23: 仅按照医学类别填写，没有详细填写学科。

Sheet 总表-5稿 (hidden)
A1: 2020年邯郸市事业单位公开招聘工作人员岗位条件申报表
A2: 单位名称（盖章）：魏县教育体育局 填报时间：2020年3月27日
A3: 主管部门名称 | B3: 单位名称 | C3: 单位性质 | D3: 编制数 | E3: 实有人数 | F3: 空编数 | G3: 预计2020年度自然减员人数 | H3: 申报招聘计划数 | I3: 学历（学位）人数 | M3: 招聘岗位条件
I4: 博士 | J4: 硕士 | K4: 本科 | L4: 专科 | M4: 招聘岗位 | N4: 招聘学科 | O4: 专业 | P4: 其它条件 | V4: 招聘方式 | W4: 公开选聘院校范围 | X4: 备注
A5: 合计 | D5: =SUM(D164,D155,D147,D142,D133,D124,D123,D112,D105,D104,D89,D88,D87,D86,D85,D82,D79,D75,D63,D54,D45,D42,D33,D24,D12,D6,) -> 4215 | E5: =SUM(E164,E155,E147,E142,E133,E124,E123,E112,E105,E104,E89,E88,E87,E86,E85,E82,E79,E75,E63,E54,E45,E42,E33,E24,E12,E6,) -> 3662 | F5: =SUM(F164,F155,F147,F142,F133,F124,F123,F112,F105,F104,F89,F88,F87,F86,F85,F82,F79,F75,F63,F54,F45,F42,F33,F24,F12,F6,) -> 553 | G5: =SUM(G164,G155,G147,G142,G133,G124,G123,G112,G105,G104,G89,G88,G87,G86,G85,G82,G79,G75,G63,G54,G45,G42,G33,G24,G12,G6,) -> 117 | H5: =SUM(H6,H12,H24,H33,H42,H45,H54,H63,H75,H79,H82,H85,H86,H87,H88,H89,H104,H105,H112,H123,H124,H133,H142,H147,H155,H164) -> 300 | K5: =SUM(K6:K169) -> 185 | L5: =SUM(L6:L169) -> 115 | P5: 资格证条件要求 | Q5: 年龄 | R5: 户籍 | S5: 学历 | T5: 普通话等级 | U5: 服务年限
A6: 魏县教育体育局 | B6: 魏县第一中学 | C6: 全额事业 | D6: 470 | E6: 466 | F6: 4 | G6: 10 | H6: 12 | K6: 3 | M6: 高中教师 | N6: 语文 | O6: 不限 | P6: 具有高级中学及以上教师资格证，教师资格证书任教学科与招聘岗位学科要一致。 | Q6: 18周岁以上，35周岁及以下。 | R6: 不限 | S6: 普通全日制本科及以上学历,并取得相应学位证书。 | T6: 普通话水平必须取得国家语言文字工作委员会颁发的二级乙等及其以上《普通话水平测试等级证书》，语文岗位应取得二级甲等及其以上《普通话水平测试等级证书》。 | U6: 录用后须在魏县教育教学岗位服务满3年，服务不足3年的，视为失信，记录失信档案。 | V6: 公开选聘 统一招聘 | W6: 统招全日制普通高校硕士研究生及以上学历，并取得相应学位证书的毕业生；教育部直属的北京师范大学等六所师范院校全日制本科学历，并取得相应学位证书的毕业生；“名校英才入冀”计划引进范围的普通高等院校和科研院所的全日制本科及以上学历，并取得相应学位证书的毕业生；河北师范大学统招全日制本科学历，并取得相应学位证书的毕业生。 以上院校均不含独立学院。
K7: 2 | M7: 高中教师 | N7: 数学
K8: 2 | M8: 高中教师 | N8: 英语
K9: 1 | M9: 高中教师 | N9: 物理
K10: 3 | M10: 高中教师 | N10: 生物
K11: 1 | M11: 高中教师 | N11: 地理
A12: 魏县教育体育局 | B12: 魏县第三中学 | C12: 全额事业 | D12: 180 | E12: 83 | F12: 97 | G12: 1 | H12: 42 | K12: 5 | M12: 高中教师 | N12: 语文
K13: 5 | M13: 高中教师 | N13: 数学
K14: 5 | M14: 高中教师 | N14: 英语
K15: 2 | M15: 高中教师 | N15: 物理
K16: 4 | M16: 高中教师 | N16: 化学
K17: 4 | M17: 高中教师 | N17: 生物
K18: 5 | M18: 高中教师 | N18: 历史
K19: 2 | M19: 高中教师 | N19: 地理
K20: 3 | M20: 高中教师 | N20: 政治
K21: 2 | M21: 高中教师 | N21: 信息技术
K22: 2 | M22: 高中教师 | N22: 体育
K23: 3 | M23: 高中教师 | N23: 美术
A24: 魏县教育体育局 | B24: 魏县第五中学 | C24: 全额事业 | D24: 240 | E24: 230 | F24: 10 | G24: 6 | H24: 14 | K24: 3 | M24: 高中教师 | N24: 语文 | O24: 不限 | P24: 具有高级中学及以上教师资格证，教师资格证书任教学科与招聘岗位学科要一致。 | Q24: 18周岁以上，35周岁及以下。 | R24: 不限 | S24: 普通全日制本科及以上学历,并取得相应学位证书。 | T24: 普通话水平必须取得国家语言文字工作委员会颁发的二级乙等及其以上《普通话水平测试等级证书》，语文岗位应取得二级甲等及其以上《普通话水平测试等级证书》。 | U24: 录用后须在魏县教育教学岗位服务满3年，服务不足3年的，视为失信，记录失信档案。 | V24: 公开选聘 统一招聘 | W24: 统招全日制普通高校硕士研究生及以上学历，并取得相应学位证书的毕业生；教育部直属的北京师范大学等六所师范院校全日制本科学历，并取得相应学位证书的毕业生；“名校英才入冀”计划引进范围的普通高等院校和科研院所的全日制本科及以上学历，并取得相应学位证书的毕业生；河北师范大学统招全日制本科学历，并取得相应学位证书的毕业生。 以上院校均不含独立学院。
K25: 1 | M25: 高中教师 | N25: 数学
K26: 2 | M26: 高中教师 | N26: 英语
K27: 1 | M27: 高中教师 | N27: 物理
K28: 1 | M28: 高中教师 | N28: 化学
K29: 1 | M29: 高中教师 | N29: 生物
K30: 2 | M30: 高中教师 | N30: 历史
K31: 2 | M31: 高中教师 | N31: 地理
K32: 1 | M32: 高中教师 | N32: 政治
A33: 魏县教育体育局 | B33: 魏县第六中学 | C33: 全额事业 | D33: 220 | E33: 186 | F33: 34 | H33: 32 | K33: 1 | M33: 高中教师 | N33: 语文
K34: 2 | M34: 高中教师 | N34: 数学
K35: 3 | M35: 高中教师 | N35: 英语
K36: 6 | M36: 高中教师 | N36: 物理
K37: 2 | M37: 高中教师 | N37: 化学
K38: 5 | M38: 高中教师 | N38: 生物
K39: 5 | M39: 高中教师 | N39: 历史
K40: 6 | M40: 高中教师 | N40: 地理
K41: 2 | M41: 高中教师 | N41: 政治
A42: 魏县教育体育局 | B42: 魏县综合职业技术教育中心 | C42: 全额事业 | D42: 150 | E42: 136 | F42: =D42-E42 -> 14 | G42: 4 | H42: 15 | K42: 1 | M42: 职教教师 | N42: 职教会计 | P42: 具有中等职业学校及以上教师资格证，教师资格证书任教学科与招聘岗位学科要一致。
K43: 5 | M43: 职教教师 | N43: 职教学前教育
K44: 9 | M44: 职教教师 | N44: 职教计算机科学与技术
A45: 魏县教育体育局 | B45: 魏县第八中学 | C45: 全额事业 | D45: 180 | E45: 155 | F45: 25 | H45: 20 | K45: 3 | M45: 初中教师 | N45: 语文 | O45: 不限 | P45: 具有初级中学及以上教师资格证，教师资格证书任教学科与招聘岗位学科要一致；教师资格证任教学科是初中教育的可以报考初中阶段所有学科。 | Q45: 18周岁以上，35周岁及以下。 | R45: 不限 | S45: 普通全日制本科及以上学历并取得相应学位证书。 | T45: 普通话水平必须取得国家语言文字工作委员会颁发的二级乙等及其以上《普通话水平测试等级证书》，语文岗位应取得二级甲等及其以上《普通话水平测试等级证书》。 | U45: 录用后须在魏县教育教学岗位服务满3年，服务不足3年的，视为失信，记录失信档案。 | V45: 统一招聘
K46: 3 | M46: 初中教师 | N46: 数学
K47: 2 | M47: 初中教师 | N47: 英语
K48: 4 | M48: 初中教师 | N48: 物理
K49: 4 | M49: 初中教师 | N49: 化学
K50: 1 | M50: 初中教师 | N50: 生物
K51: 1 | M51: 初中教师 | N51: 历史
K52: 1 | M52: 初中教师 | N52: 地理
K53: 1 | M53: 初中教师 | N53: 政治
A54: 魏县教育体育局 | B54: 魏县大辛庄中学 | C54: 全额事业 | D54: 70 | E54: 53 | F54: 17 | G54: 2 | H54: 10 | K54: 2 | M54: 初中教师 | N54: 语文
K55: 1 | M55: 初中教师 | N55: 数学
K56: 1 | M56: 初中教师 | N56: 英语
K57: 1 | M57: 初中教师 | N57: 物理
K58: 1 | M58: 初中教师 | N58: 化学
K59: 1 | M59: 初中教师 | N59: 生物
K60: 1 | M60: 初中教师 | N60: 地理
K61: 1 | M61: 初中教师 | N61: 体育
K62: 1 | M62: 初中教师 | N62: 信息技术
A63: 魏县教育体育局 | B63: 魏县张二庄镇第一中学 | C63: 全额事业 | D63: 35 | E63: 20 | F63: 15 | H63: 12 | K63: 1 | M63: 初中教师 | N63: 语文 | O63: 不限 | P63: 具有初级中学及以上教师资格证，教师资格证书任教学科与招聘岗位学科要一致；教师资格证任教学科是初中教育的可以报考初中阶段所有学科。 | Q63: 18周岁以上，35周岁及以下。 | R63: 不限 | S63: 普通全日制本科及以上学历并取得相应学位证书。 | T63: 普通话水平必须取得国家语言文字工作委员会颁发的二级乙等及其以上《普通话水平测试等级证书》，语文岗位应取得二级甲等及其以上《普通话水平测试等级证书》。 | U63: 录用后须在魏县教育教学岗位服务满3年，服务不足3年的，视为失信，记录失信档案。 | V63: 统一招聘
K64: 1 | M64: 初中教师 | N64: 数学
K65: 1 | M65: 初中教师 | N65: 英语
K66: 1 | M66: 初中教师 | N66: 物理
K67: 1 | M67: 初中教师 | N67: 化学
K68: 1 | M68: 初中教师 | N68: 生物
K69: 1 | M69: 初中教师 | N69: 历史
K70: 1 | M70: 初中教师 | N70: 地理
K71: 1 | M71: 初中教师 | N71: 政治
K72: 1 | M72: 初中教师 | N72: 信息技术
K73: 1 | M73: 初中教师 | N73: 音乐
K74: 1 | M74: 初中教师 | N74: 体育
A75: 魏县教育体育局 | B75: 魏县车往中学 | C75: 全额事业 | D75: 115 | E75: 107 | F75: 8 | G75: 1 | H75: 4 | K75: 1 | M75: 初中教师 | N75: 语文
K76: 1 | M76: 初中教师 | N76: 数学
K77: 1 | M77: 初中教师 | N77: 英语
K78: 1 | M78: 初中教师 | N78: 物理
A79: 魏县教育体育局 | B79: 魏县泊口乡中学 | C79: 全额事业 | D79: 29 | E79: 21 | F79: 8 | H79: 3 | K79: 1 | M79: 初中教师 | N79: 语文
K80: 1 | M80: 初中教师 | N80: 数学
K81: 1 | M81: 初中教师 | N81: 英语
A82: 魏县教育体育局 | B82: 魏县北皋联合中学 | C82: 全额事业 | D82: 78 | E82: 65 | F82: 13 | G82: 2 | H82: 3 | K82: 1 | M82: 初中教师 | N82: 语文
K83: 1 | M83: 初中教师 | N83: 数学
K84: 1 | M84: 初中教师 | N84: 物理
A85: 魏县教育体育局 | B85: 魏县教育局沙口集乡中心校 | C85: 全额事业 | D85: 210 | E85: 171 | F85: =D85-E85 -> 39 | G85: 6 | H85: 1 | L85: 1 | M85: 幼儿教师 | N85: 幼儿园 | O85: 具有的教师资格证非幼儿教育或学前教育学科的，要求规定学历所学专业须是幼儿教育或学前教育专业。 | P85: 具有教师资格证且教师资格证任教学科非幼儿教育或学前教育的，规定学历所学专业须是幼儿教育或学前教育专业；具有幼儿教育或学前教育教师资格证的。 | Q85: 18周岁以上，35周岁及以下。 | R85: 本科及以上学历的不限户籍；专科学历的，必须是魏县户籍，或配偶或父母是魏县户籍；2020年应届毕业生不限户籍。 | S85: 普通全日制专科及以上学历。 | T85: 普通话水平必须取得国家语言文字工作委员会颁发的二级乙等及其以上《普通话水平测试等级证书》，语文岗位应取得二级甲等及其以上《普通话水平测试等级证书》。 | U85: 录用后须在魏县教育教学岗位服务满3年，服务不足3年的，视为失信，记录失信档案。 | V85: 统一招聘
A86: 魏县教育体育局 | B86: 魏县教育局野胡拐乡中心校 | C86: 全额事业 | D86: 196 | E86: 190 | F86: 6 | G86: 1 | H86: 1 | L86: 1 | M86: 幼儿教师 | N86: 幼儿园
A87: 魏县教育体育局 | B87: 魏县教育局前大磨乡中心校 | C87: 全额事业 | D87: 155 | E87: 151 | F87: 4 | G87: 5 | H87: 1 | L87: 1 | M87: 幼儿教师 | N87: 幼儿园
A88: 魏县教育体育局 | B88: 魏县教育局院堡乡中心校 | C88: 全额事业 | D88: 188 | E88: 164 | F88: 24 | G88: 3 | H88: 1 | L88: 1 | M88: 幼儿教师 | N88: 幼儿园
A89: 魏县教育体育局 | B89: 魏县教育局北皋镇中心校 | C89: 全额事业 | D89: 325 | E89: 265 | F89: 60 | G89: 14 | H89: 23 | L89: 1 | M89: 幼儿教师 | N89: 幼儿园
L90: 2 | M90: 小学教师 | N90: 语文 | O90: 不限 | P90: 具有小学及以上教师资格证，教师资格证书任教学科与招聘岗位学科要一致；教师资格证任教学科是小学教育或初中教育的，可以报考小学阶段所有学科。
L91: 3 | M91: 小学教师 | N91: 数学
L92: 4 | M92: 小学教师 | N92: 英语
L93: 1 | M93: 小学教师 | N93: 音乐
L94: 1 | M94: 小学教师 | N94: 体育
L95: 2 | M95: 小学教师 | N95: 品德与社会
L96: 2 | M96: 小学教师 | N96: 科学
A97: 魏县教育体育局 | B97: 魏县教育局北皋镇中心校 | C97: 全额事业 | D97: 325 | E97: 265 | F97: 60 | G97: 14 | H97: 23 | K97: 1 | M97: 初中教师 | N97: 语文 | O97: 不限 | P97: 具有初级中学及以上教师资格证，教师资格证书任教学科与招聘岗位学科要一致；教师资格证任教学科是初中教育的可以报考初中阶段所有学科。 | Q97: 18周岁以上，35周岁及以下。 | R97: 不限 | S97: 普通全日制本科及以上学历并取得相应学位证书。 | T97: 普通话水平必须取得国家语言文字工作委员会颁发的二级乙等及其以上《普通话水平测试等级证书》，语文岗位应取得二级甲等及其以上《普通话水平测试等级证书》。 | U97: 录用后须在魏县教育教学岗位服务满3年，服务不足3年的，视为失信，记录失信档案。 | V97: 统一招聘
K98: 1 | M98: 初中教师 | N98: 数学
K99: 1 | M99: 初中教师 | N99: 英语
K100: 1 | M100: 初中教师 | N100: 物理
K101: 1 | M101: 初中教师 | N101: 化学
K102: 1 | M102: 初中教师 | N102: 音乐
K103: 1 | M103: 初中教师 | N103: 体育
A104: 魏县教育体育局 | B104: 魏县教育局北台头乡中心校 | C104: 全额事业 | D104: 116 | E104: 98 | F104: =D104-E104 -> 18 | G104: 5 | H104: 1 | L104: 1 | M104: 幼儿教师 | N104: 幼儿园 | O104: 具有的教师资格证非幼儿教育或学前教育学科的，要求规定学历所学专业须是幼儿教育或学前教育专业。 | P104: 具有教师资格证且教师资格证任教学科非幼儿教育或学前教育的，规定学历所学专业须是幼儿教育或学前教育专业；具有幼儿教育或学前教育教师资格证的。 | R104: 本科及以上学历的不限户籍；专科学历的，必须是魏县户籍，或配偶或父母是魏县户籍；2020年应届毕业生不限户籍。 | S104: 普通全日制专科及以上学历。
A105: 魏县教育体育局 | B105: 魏县教育局车往镇中心校 | C105: 全额事业 | D105: 185 | E105: 137 | F105: 48 | G105: 8 | H105: 7 | L105: 1 | M105: 幼儿教师 | N105: 幼儿园
A106: 魏县教育体育局 | B106: 魏县教育局车往镇中心校 | C106: 全额事业 | D106: 185 | E106: 137 | F106: 48 | G106: 8 | H106: 7 | L106: 1 | M106: 小学教师 | N106: 语文 | O106: 不限 | P106: 具有小学及以上教师资格证，教师资格证书任教学科与招聘岗位学科要一致；教师资格证任教学科是小学教育或初中教育的，可以报考小学阶段所有学科。 | Q106: 18周岁以上，35周岁及以下。 | R106: 本科及以上学历的不限户籍；专科学历的，必须是魏县户籍，或配偶或父母是魏县户籍；2020年应届毕业生不限户籍。 | S106: 普通全日制专科及以上学历。 | T106: 普通话水平必须取得国家语言文字工作委员会颁发的二级乙等及其以上《普通话水平测试等级证书》，语文岗位应取得二级甲等及其以上《普通话水平测试等级证书》。 | U106: 录用后须在魏县教育教学岗位服务满3年，服务不足3年的，视为失信，记录失信档案。 | V106: 统一招聘
L107: 1 | M107: 小学教师 | N107: 数学
L108: 1 | M108: 小学教师 | N108: 英语
L109: 1 | M109: 小学教师 | N109: 音乐
L110: 1 | M110: 小学教师 | N110: 体育
L111: 1 | M111: 小学教师 | N111: 品德与社会
A112: 魏县教育体育局 | B112: 魏县教育局回隆镇中心校 | C112: 全额事业 | D112: 164 | E112: 154 | F112: 10 | G112: 9 | H112: 13 | L112: 2 | M112: 小学教师 | N112: 语文
L113: 2 | M113: 小学教师 | N113: 数学
L114: 1 | M114: 小学教师 | N114: 英语
L115: 1 | M115: 小学教师 | N115: 音乐
L116: 1 | M116: 小学教师 | N116: 体育
K117: 1 | M117: 初中教师 | N117: 语文 | P117: 具有初级中学及以上教师资格证，教师资格证书任教学科与招聘岗位学科要一致；教师资格证任教学科是初中教育的可以报考初中阶段所有学科。 | R117: 不限 | S117: 普通全日制本科及以上学历并取得相应学位证书。
K118: 1 | M118: 初中教师 | N118: 物理
K119: 1 | M119: 初中教师 | N119: 生物
K120: 1 | M120: 初中教师 | N120: 历史
K121: 1 | M121: 初中教师 | N121: 地理
A122: 魏县教育体育局 | B122: 魏县教育局回隆镇中心校 | C122: 全额事业 | D122: 164 | E122: 154 | F122: 10 | G122: 9 | H122: 13 | L122: 1 | M122: 幼儿教师 | N122: 幼儿园 | O122: 具有的教师资格证非幼儿教育或学前教育学科的，要求规定学历所学专业须是幼儿教育或学前教育专业。 | P122: 具有教师资格证且教师资格证任教学科非幼儿教育或学前教育的，规定学历所学专业须是幼儿教育或学前教育专业；具有幼儿教育或学前教育教师资格证的。 | Q122: 18周岁以上，35周岁及以下。 | R122: 本科及以上学历的不限户籍；专科学历的，必须是魏县户籍，或配偶或父母是魏县户籍；2020年应届毕业生不限户籍。 | S122: 普通全日制专科及以上学历。 | T122: 普通话水平必须取得国家语言文字工作委员会颁发的二级乙等及其以上《普通话水平测试等级证书》，语文岗位应取得二级甲等及其以上《普通话水平测试等级证书》。 | U122: 录用后须在魏县教育教学岗位服务满3年，服务不足3年的，视为失信，记录失信档案。 | V122: 统一招聘
A123: 魏县教育体育局 | B123: 魏县教育局双庙乡中心校 | C123: 全额事业 | D123: 110 | E123: 105 | F123: 5 | G123: 3 | H123: 1 | L123: 1 | M123: 幼儿教师 | N123: 幼儿园
A124: 魏县教育体育局 | B124: 魏县教育局泊口乡中心校 | C124: 全额事业 | D124: 99 | E124: 85 | F124: 14 | G124: 6 | H124: 11 | L124: 1 | M124: 幼儿教师 | N124: 幼儿园
L125: 2 | M125: 小学教师 | N125: 语文 | O125: 不限 | P125: 具有小学及以上教师资格证，教师资格证书任教学科与招聘岗位学科要一致；教师资格证任教学科是小学教育或初中教育的，可以报考小学阶段所有学科。
L126: 1 | M126: 小学教师 | N126: 数学
L127: 1 | M127: 小学教师 | N127: 英语
L128: 1 | M128: 小学教师 | N128: 音乐
L129: 1 | M129: 小学教师 | N129: 体育
L130: 1 | M130: 小学教师 | N130: 美术
L131: 1 | M131: 小学教师 | N131: 品德与社会
L132: 2 | M132: 小学教师 | N132: 科学
A133: 魏县教育体育局 | B133: 魏县教育局边马乡中心校 | C133: 全额事业 | D133: 185 | E133: 152 | F133: 33 | G133: 7 | H133: 22 | K133: 1 | M133: 初中教师 | N133: 语文 | O133: 不限 | P133: 具有初级中学及以上教师资格证，教师资格证书任教学科与招聘岗位学科要一致；教师资格证任教学科是初中教育的可以报考初中阶段所有学科。 | Q133: 18周岁以上，35周岁及以下。 | R133: 不限 | S133: 普通全日制本科及以上学历,并取得相应学位证书。 | T133: 普通话水平必须取得国家语言文字工作委员会颁发的二级乙等及其以上《普通话水平测试等级证书》，语文岗位应取得二级甲等及其以上《普通话水平测试等级证书》。 | U133: 录用后须在魏县教育教学岗位服务满3年，服务不足3年的，视为失信，记录失信档案。 | V133: 统一招聘
K134: 1 | M134: 初中教师 | N134: 数学
K135: 1 | M135: 初中教师 | N135: 英语
K136: 1 | M136: 初中教师 | N136: 物理
L137: 6 | M137: 小学教师 | N137: 语文 | P137: 具有小学及以上教师资格证，教师资格证书任教学科与招聘岗位学科要一致；教师资格证任教学科是小学教育或初中教育的，可以报考小学阶段所有学科。 | R137: 本科及以上学历的不限户籍；专科学历的，必须是魏县户籍，或配偶或父母是魏县户籍；2020年应届毕业生不限户籍。 | S137: 普通全日制专科及以上学历。
L138: 6 | M138: 小学教师 | N138: 数学
L139: 4 | M139: 小学教师 | N139: 英语
L140: 1 | M140: 小学教师 | N140: 音乐
L141: 1 | M141: 幼儿教师 | N141: 幼儿园 | O141: 具有的教师资格证非幼儿教育或学前教育学科的，要求规定学历所学专业须是幼儿教育或学前教育专业。 | P141: 具有教师资格证且教师资格证任教学科非幼儿教育或学前教育的，规定学历所学专业须是幼儿教育或学前教育专业；具有幼儿教育或学前教育教师资格证的。
A142: 魏县教育体育局 | B142: 魏县教育局大辛庄乡中心校 | C142: 全额事业 | D142: 120 | E142: 118 | F142: 2 | G142: 4 | H142: 6 | L142: 1 | M142: 幼儿教师 | N142: 幼儿园
A143: 魏县教育体育局 | B143: 魏县教育局大辛庄乡中心校 | C143: 全额事业 | D143: 120 | E143: 118 | F143: 2 | G143: 4 | H143: 6 | L143: 1 | M143: 小学教师 | N143: 语文 | O143: 不限 | P143: 具有小学及以上教师资格证，教师资格证书任教学科与招聘岗位学科要一致；教师资格证任教学科是小学教育或初中教育的，可以报考小学阶段所有学科。 | Q143: 18周岁以上，35周岁及以下。 | R143: 本科及以上学历的不限户籍；专科学历的，必须是魏县户籍，或配偶或父母是魏县户籍；2020年应届毕业生不限户籍。 | S143: 普通全日制专科及以上学历。 | T143: 普通话水平必须取得国家语言文字工作委员会颁发的二级乙等及其以上《普通话水平测试等级证书》，语文岗位应取得二级甲等及其以上《普通话水平测试等级证书》。 | U143: 录用后须在魏县教育教学岗位服务满3年，服务不足3年的，视为失信，记录失信档案。 | V143: 统一招聘
L144: 1 | M144: 小学教师 | N144: 数学
L145: 1 | M145: 小学教师 | N145: 英语
L146: 2 | M146: 小学教师 | N146: 科学
A147: 魏县教育体育局 | B147: 魏县教育局大马村乡中心校 | C147: 全额事业 | D147: 75 | E147: 67 | F147: 8 | G147: 3 | H147: 11 | L147: 2 | M147: 小学教师 | N147: 语文
L148: 2 | M148: 小学教师 | N148: 数学
L149: 2 | M149: 小学教师 | N149: 英语
L150: 1 | M150: 小学教师 | N150: 体育
L151: 1 | M151: 小学教师 | N151: 美术
K152: 1 | M152: 初中教师 | N152: 数学 | P152: 具有初级中学及以上教师资格证，教师资格证书任教学科与招聘岗位学科要一致；教师资格证任教学科是初中教育的可以报考初中阶段所有学科。 | R152: 不限 | S152: 普通全日制本科及以上学历,并取得相应学位证书。
K153: 1 | M153: 初中教师 | N153: 英语
L154: 1 | M154: 幼儿教师 | N154: 幼儿园 | O154: 具有的教师资格证非幼儿教育或学前教育学科的，要求规定学历所学专业须是幼儿教育或学前教育专业。 | P154: 具有教师资格证且教师资格证任教学科非幼儿教育或学前教育的，规定学历所学专业须是幼儿教育或学前教育专业；具有幼儿教育或学前教育教师资格证的。 | R154: 本科及以上学历的不限户籍；专科学历的，必须是魏县户籍，或配偶或父母是魏县户籍；2020年应届毕业生不限户籍。 | S154: 普通全日制专科及以上学历。
A155: 魏县教育体育局 | B155: 魏县教育局牙里镇中心校 | C155: 全额事业 | D155: 145 | E155: 128 | F155: 17 | G155: 8 | H155: 16 | L155: 1 | M155: 幼儿教师 | N155: 幼儿园
A156: 魏县教育体育局 | B156: 魏县教育局牙里镇中心校 | C156: 全额事业 | D156: 145 | E156: 128 | F156: 17 | G156: 8 | H156: 16 | L156: 3 | M156: 小学教师 | N156: 语文 | O156: 不限 | P156: 具有小学及以上教师资格证，教师资格证书任教学科与招聘岗位学科要一致；教师资格证任教学科是小学教育或初中教育的，可以报考小学阶段所有学科。 | Q156: 18周岁以上，35周岁及以下。 | R156: 本科及以上学历的不限户籍；专科学历的，必须是魏县户籍，或配偶或父母是魏县户籍；2020年应届毕业生不限户籍。 | S156: 普通全日制专科及以上学历。 | T156: 普通话水平必须取得国家语言文字工作委员会颁发的二级乙等及其以上《普通话水平测试等级证书》，语文岗位应取得二级甲等及其以上《普通话水平测试等级证书》。 | U156: 录用后须在魏县教育教学岗位服务满3年，服务不足3年的，视为失信，记录失信档案。 | V156: 统一招聘
L157: 2 | M157: 小学教师 | N157: 数学
L158: 2 | M158: 小学教师 | N158: 英语
L159: 1 | M159: 小学教师 | N159: 音乐
L160: 1 | M160: 小学教师 | N160: 体育
L161: 1 | M161: 小学教师 | N161: 美术
L162: 3 | M162: 小学教师 | N162: 品德与社会
L163: 2 | M163: 小学教师 | N163: 科学
A164: 魏县教育体育局 | B164: 魏县教育局张二庄镇中心校 | C164: 全额事业 | D164: 175 | E164: 155 | F164: 20 | G164: 9 | H164: 18 | L164: 5 | M164: 小学教师 | N164: 语文
L165: 6 | M165: 小学教师 | N165: 数学
L166: 4 | M166: 小学教师 | N166: 英语
L167: 1 | M167: 小学教师 | N167: 音乐
L168: 1 | M168: 小学教师 | N168: 体育
L169: 1 | M169: 幼儿教师 | N169: 幼儿园 | O169: 具有的教师资格证非幼儿教育或学前教育学科的，要求规定学历所学专业须是幼儿教育或学前教育专业。 | P169: 具有教师资格证且教师资格证任教学科非幼儿教育或学前教育的，规定学历所学专业须是幼儿教育或学前教育专业；具有幼儿教育或学前教育教师资格证的。
A170: 注：1、单位名称写全称；2、单位性质分：全额事业、差额事业、自收自支事业，一个单位多种编制性质的，应写明招聘岗位所占编制；3、专业及条件要符合政策和规范；4、招聘方式为选聘或统一招聘，选聘条件要符合公开招聘有关规定；5、报表一式两份，加盖单位公章。各县（市、区）申报计划要征求当地编制部门意见并盖章。

Sheet 总表原 (hidden)
A1: 2019年度邯郸市事业单位公开招聘（选聘）工作人员计划和岗位条件申报表
A2: 单位名称： | P2: 2019-05-25
A3: 主管部门名称 | B3: 单位名称 | C3: 单位性质 | D3: 编制数 | E3: 实有人数 | F3: 空编数 | G3: 预计2019年度自然减员人数 | H3: 申报计划小计 | I3: 学历（学位）人数 | M3: 招聘岗位条件
I4: 博士 | J4: 硕士 | K4: 本科 | L4: 专科 | M4: 招聘岗位 | N4: 招聘学科 | O4: 专业 | P4: 其它条件 | V4: 招聘方式 | W4: 公开选聘院校范围 | X4: 备注
A5: 合计 | D5: 3462 | E5: 2821 | F5: 641 | G5: 109 | H5: 300 | K5: 210 | L5: 90 | P5: 教师资格证条件要求 | Q5: 年龄 | R5: 户籍 | S5: 学历 | T5: 普通话等级 | U5: 服务年限
A6: 魏县教育体育局 | B6: 魏县第一中学 | C6: 全额事业 | D6: 460 | E6: 433 | F6: 27 | G6: 3 | H6: 20 | K6: 3 | M6: 高中教师 | N6: 语文 | O6: 不限 | P6: 具有高级中学及以上教师资格证，教师资格证书任教学科与招聘岗位学科要一致 | Q6: 18周岁以上35周岁及以下 | R6: 不限 | S6: 普通全日制本科及以上学历并取得相应学位证书 | T6: 必须取得国家语言文字工作委员会颁发的二级乙等及其以上《普通话水平测试等级证书》，语文岗位应取得二级甲等及其以上《普通话水平测试等级证书》 | U6: 录用后须在魏县教育教学岗位服务满3年，服务不足3年的，视为失信，记录失信档案。 | V6: 公开选聘 统一招聘 | W6: 统招全日制普通高校硕士研究生及以上学历并取得相应学位证书、教育部直属的北京师范大学等六所师范院校及河北师范大学（均不含独立学院）毕业的全日制本科及以上学历并取得相应学位证书、“名校英才入冀”计划引进范围的普通高等院校和科研院所的全日制本科及以上学历并取得相应学位证书
K7: 3 | M7: 高中教师 | N7: 数学
K8: 3 | M8: 高中教师 | N8: 英语
K9: 2 | M9: 高中教师 | N9: 物理
K10: 2 | M10: 高中教师 | N10: 化学
K11: 1 | M11: 高中教师 | N11: 生物
K12: 1 | M12: 高中教师 | N12: 美术
K13: 2 | M13: 高中教师 | N13: 地理
K14: 1 | M14: 高中教师 | N14: 政治
K15: 1 | M15: 高中教师 | N15: 信息技术
K16: 1 | M16: 高中教师 | N16: 音乐
A17: 魏县教育体育局 | B17: 魏县综合职业技术教育中心（魏县第三中学） | C17: 全额事业 | D17: 410 | E17: 327 | F17: 83 | G17: 6 | H17: 56 | K17: 4 | M17: 高中教师 | N17: 语文
K18: 4 | M18: 高中教师 | N18: 数学
K19: 4 | M19: 高中教师 | N19: 英语
K20: 3 | M20: 高中教师 | N20: 物理
K21: 3 | M21: 高中教师 | N21: 化学
K22: 3 | M22: 高中教师 | N22: 生物
K23: 3 | M23: 高中教师 | N23: 历史
K24: 3 | M24: 高中教师 | N24: 地理
K25: 3 | M25: 高中教师 | N25: 政治
K26: 2 | M26: 高中教师 | N26: 音乐
K27: 2 | M27: 高中教师 | N27: 体育
K28: 2 | M28: 高中教师 | N28: 美术
K29: 8 | M29: 职教教师 | N29: 计算机科学与技术教师 | P29: 取得中等职业学校及以上教师资格证，教师资格证书任教学科与招聘岗位学科要一致
K30: 9 | M30: 职教教师 | N30: 职教学前教育教师
K31: 2 | M31: 职教教师 | N31: 职教现代农艺教师
K32: 1 | M32: 职教教师 | N32: 法语 | P32: 取得高级中学及以上或中等职业学校及以上教师资格证，教师资格证书任教学科与招聘岗位学科要一致
A33: 魏县教育体育局 | B33: 魏县第五中学 | C33: 全额事业 | D33: 269 | E33: 239 | F33: 30 | G33: 10 | H33: 15 | K33: 2 | M33: 高中教师 | N33: 语文 | O33: 不限 | P33: 具有高级中学及以上教师资格证，教师资格证书任教学科与招聘岗位学科要一致 | Q33: 18周岁以上35周岁及以下 | R33: 不限 | S33: 普通全日制本科及以上学历并取得相应学位证书 | T33: 必须取得国家语言文字工作委员会颁发的二级乙等及其以上《普通话水平测试等级证书》，语文岗位应取得二级甲等及其以上《普通话水平测试等级证书》 | U33: 录用后须在魏县教育教学岗位服务满3年，服务不足3年的，视为失信，记录失信档案。 | V33: 统一招聘
K34: 2 | M34: 高中教师 | N34: 数学
K35: 2 | M35: 高中教师 | N35: 英语
K36: 1 | M36: 高中教师 | N36: 物理
K37: 1 | M37: 高中教师 | N37: 化学
K38: 2 | M38: 高中教师 | N38: 生物
K39: 1 | M39: 高中教师 | N39: 历史
K40: 1 | M40: 高中教师 | N40: 地理
K41: 1 | M41: 高中教师 | N41: 政治
K42: 1 | M42: 高中教师 | N42: 音乐
K43: 1 | M43: 高中教师 | N43: 信息技术
A44: 魏县教育体育局 | B44: 魏县第六中学 | C44: 全额事业 | D44: 226 | E44: 108 | F44: 118 | G44: 2 | H44: 49 | K44: 8 | M44: 高中教师 | N44: 语文
K45: 8 | M45: 高中教师 | N45: 数学
K46: 8 | M46: 高中教师 | N46: 英语
K47: 5 | M47: 高中教师 | N47: 物理
K48: 5 | M48: 高中教师 | N48: 化学
K49: 3 | M49: 高中教师 | N49: 生物
K50: 3 | M50: 高中教师 | N50: 历史
K51: 3 | M51: 高中教师 | N51: 地理
K52: 3 | M52: 高中教师 | N52: 政治
K53: 1 | M53: 高中教师 | N53: 信息技术
K54: 1 | M54: 高中教师 | N54: 音乐
K55: 1 | M55: 高中教师 | N55: 体育
A56: 魏县教育体育局 | B56: 魏县野胡拐乡中学 | C56: 全额事业 | D56: 113 | E56: 79 | F56: 34 | H56: 8 | K56: 1 | M56: 初中教师 | N56: 语文 | P56: 具有初级中学及以上教师资格证，教师资格证书任教学科与招聘岗位学科要一致
K57: 1 | M57: 初中教师 | N57: 数学
K58: 1 | M58: 初中教师 | N58: 英语
K59: 1 | M59: 初中教师 | N59: 物理
K60: 1 | M60: 初中教师 | N60: 生物
K61: 1 | M61: 初中教师 | N61: 历史
K62: 1 | M62: 初中教师 | N62: 政治
K63: 1 | M63: 初中教师 | N63: 信息技术
A64: 魏县教育体育局 | B64: 魏县第五中学分校 | C64: 全额事业 | D64: 95 | E64: 66 | F64: 29 | H64: 8 | K64: 1 | M64: 初中教师 | N64: 语文
K65: 1 | M65: 初中教师 | N65: 数学
K66: 1 | M66: 初中教师 | N66: 英语
K67: 1 | M67: 初中教师 | N67: 物理
K68: 1 | M68: 初中教师 | N68: 生物
K69: 1 | M69: 初中教师 | N69: 历史
K70: 1 | M70: 初中教师 | N70: 政治
K71: 1 | M71: 初中教师 | N71: 地理
A72: 魏县教育体育局 | B72: 魏县北台头乡中学 | C72: 全额事业 | D72: 26 | E72: 12 | F72: 14 | H72: 7 | K72: 2 | M72: 初中教师 | N72: 语文
K73: 1 | M73: 初中教师 | N73: 数学
K74: 1 | M74: 初中教师 | N74: 英语
K75: 1 | M75: 初中教师 | N75: 物理
K76: 1 | M76: 初中教师 | N76: 化学
K77: 1 | M77: 初中教师 | N77: 生物
A78: 魏县教育体育局 | B78: 魏县泊口乡中学 | C78: 全额事业 | D78: 29 | E78: 14 | F78: 15 | H78: 7 | K78: 1 | M78: 初中教师 | N78: 语文
K79: 1 | M79: 初中教师 | N79: 数学
K80: 2 | M80: 初中教师 | N80: 英语
K81: 1 | M81: 初中教师 | N81: 历史
K82: 1 | M82: 初中教师 | N82: 地理
K83: 1 | M83: 初中教师 | N83: 政治
A84: 魏县教育体育局 | B84: 魏县教育局车往镇中学 | C84: 全额事业 | D84: 56 | E84: 46 | F84: 10 | G84: 2 | H84: 5 | K84: 1 | M84: 初中教师 | N84: 语文 | O84: 不限 | P84: 具有初级中学及以上教师资格证，教师资格证书任教学科与招聘岗位学科要一致 | Q84: 18周岁以上35周岁及以下 | R84: 不限 | S84: 普通全日制本科及以上学历并取得相应学位证书 | T84: 必须取得国家语言文字工作委员会颁发的二级乙等及其以上《普通话水平测试等级证书》，语文岗位应取得二级甲等及其以上《普通话水平测试等级证书》 | U84: 录用后须在魏县教育教学岗位服务满3年，服务不足3年的，视为失信，记录失信档案。 | V84: 统一招聘
K85: 1 | M85: 初中教师 | N85: 数学
K86: 1 | M86: 初中教师 | N86: 英语
K87: 1 | M87: 初中教师 | N87: 物理
K88: 1 | M88: 初中教师 | N88: 化学
A89: 魏县教育体育局 | B89: 魏县车往中学 | C89: 全额事业 | D89: 115 | E89: 95 | F89: 20 | G89: 3 | H89: 15 | K89: 4 | M89: 初中教师 | N89: 语文
K90: 3 | M90: 初中教师 | N90: 数学
K91: 3 | M91: 初中教师 | N91: 英语
K92: 1 | M92: 初中教师 | N92: 化学
K93: 1 | M93: 初中教师 | N93: 信息技术
K94: 2 | M94: 初中教师 | N94: 音乐
K95: 1 | M95: 初中教师 | N95: 美术
A96: 魏县教育体育局 | B96: 魏县教育局北皋镇中心校 | C96: 全额事业 | D96: 315 | E96: 266 | F96: 49 | G96: 20 | H96: 32 | K96: 3 | M96: 初中教师 | N96: 语文
K97: 3 | M97: 初中教师 | N97: 数学
K98: 3 | M98: 初中教师 | N98: 英语
K99: 2 | M99: 初中教师 | N99: 物理
K100: 1 | M100: 初中教师 | N100: 化学
K101: 2 | M101: 初中教师 | N101: 生物
K102: 2 | M102: 初中教师 | N102: 历史
K103: 2 | M103: 初中教师 | N103: 地理
K104: 2 | M104: 初中教师 | N104: 政治
A105: 魏县教育体育局 | L105: 3 | M105: 小学教师 | N105: 语文 | P105: 具有小学及以上教师资格证，教师资格证书任教学科与招聘岗位学科要相同，教师资格证任教学科是小学教育的可以报考小学阶段所有学科 | R105: 本科及以上学历的不限户籍。专科学历的，必须是魏县户籍，或配偶或父母是魏县户籍。2019年应届毕业生不限户籍 | S105: 普通全日制专科及以上学历 | T105: 必须取得国家语言文字工作委员会颁发的二级乙等及其以上《普通话水平测试等级证书》，语文岗位应取得二级甲等及其以上《普通话水平测试等级证书》
L106: 3 | M106: 小学教师 | N106: 数学
L107: 3 | M107: 小学教师 | N107: 英语
L108: 1 | M108: 小学教师 | N108: 音乐
L109: 1 | M109: 小学教师 | N109: 体育
L110: 1 | M110: 小学教师 | N110: 美术
A111: 魏县教育体育局 | B111: 魏县教育局车往镇中心校 | C111: 全额事业 | D111: 175 | E111: 139 | F111: 36 | G111: 7 | H111: 6 | L111: 1 | M111: 小学教师 | N111: 语文
L112: 1 | M112: 小学教师 | N112: 数学
L113: 1 | M113: 小学教师 | N113: 英语
L114: 1 | M114: 小学教师 | N114: 音乐
L115: 1 | M115: 小学教师 | N115: 体育
L116: 1 | M116: 小学教师 | N116: 美术
A117: 魏县教育体育局 | B117: 魏县教育局北台头乡中心校 | C117: 全额事业 | D117: 91 | E117: 76 | F117: 15 | G117: 4 | H117: 5 | L117: 1 | M117: 小学教师 | N117: 语文
L118: 1 | M118: 小学教师 | N118: 数学
L119: 1 | M119: 小学教师 | N119: 英语
L120: 1 | M120: 小学教师 | N120: 音乐
L121: 1 | M121: 小学教师 | N121: 美术
A122: 魏县教育体育局 | B122: 魏县教育局回隆镇中心校 | C122: 全额事业 | D122: 160 | E122: 147 | F122: 13 | G122: 6 | H122: 5 | L122: 1 | M122: 小学教师 | N122: 语文
L123: 1 | M123: 小学教师 | N123: 数学
L124: 1 | M124: 小学教师 | N124: 英语
L125: 1 | M125: 小学教师 | N125: 音乐
L126: 1 | M126: 小学教师 | N126: 体育
A127: 魏县教育体育局 | B127: 魏县教育局泊口乡中心校 | C127: 全额事业 | D127: 99 | E127: 84 | F127: 15 | G127: 3 | H127: 5 | L127: 1 | M127: 小学教师 | N127: 语文
L128: 1 | M128: 小学教师 | N128: 数学
L129: 1 | M129: 小学教师 | N129: 英语
L130: 1 | M130: 小学教师 | N130: 体育
L131: 1 | M131: 小学教师 | N131: 美术
A132: 魏县教育体育局 | B132: 魏县教育局边马乡中心校 | C132: 全额事业 | D132: 190 | E132: 154 | F132: 36 | G132: 11 | H132: 10 | L132: 2 | M132: 小学教师 | N132: 语文 | O132: 不限 | P132: 具有小学及以上教师资格证，教师资格证书任教学科与招聘岗位学科要相同，教师资格证任教学科是小学教育的可以报考小学阶段所有学科 | Q132: 18周岁以上35周岁及以下 | R132: 本科及以上学历的不限户籍。专科学历的，必须是魏县户籍，或配偶或父母是魏县户籍。2019年应届毕业生不限户籍 | S132: 普通全日制专科及以上学历 | T132: 必须取得国家语言文字工作委员会颁发的二级乙等及其以上《普通话水平测试等级证书》，语文岗位应取得二级甲等及其以上《普通话水平测试等级证书》 | U132: 录用后须在魏县教育教学岗位服务满3年，服务不足3年的，视为失信，记录失信档案。 | V132: 统一招聘
L133: 2 | M133: 小学教师 | N133: 数学
L134: 3 | M134: 小学教师 | N134: 英语
L135: 1 | M135: 小学教师 | N135: 音乐
L136: 1 | M136: 小学教师 | N136: 体育
L137: 1 | M137: 小学教师 | N137: 美术
A138: 魏县教育体育局 | B138: 魏县教育局大辛庄乡中心校 | C138: 全额事业 | D138: 128 | E138: 116 | F138: 12 | G138: 5 | H138: 6 | L138: 2 | M138: 小学教师 | N138: 语文
L139: 2 | M139: 小学教师 | N139: 数学
L140: 2 | M140: 小学教师 | N140: 英语
A141: 魏县教育体育局 | B141: 魏县教育局大马村乡中心校 | C141: 全额事业 | D141: 75 | E141: 72 | F141: 3 | G141: 4 | H141: 4 | L141: 1 | M141: 小学教师 | N141: 语文
L142: 1 | M142: 小学教师 | N142: 数学
L143: 2 | M143: 小学教师 | N143: 英语
A144: 魏县教育体育局 | B144: 魏县教育局牙里镇中心校 | C144: 全额事业 | D144: 165 | E144: 130 | F144: 35 | G144: 12 | H144: 10 | L144: 2 | M144: 小学教师 | N144: 语文
L145: 2 | M145: 小学教师 | N145: 数学
L146: 3 | M146: 小学教师 | N146: 英语
L147: 1 | M147: 小学教师 | N147: 音乐
L148: 1 | M148: 小学教师 | N148: 体育
L149: 1 | M149: 小学教师 | N149: 美术
A150: 魏县教育体育局 | B150: 魏县教育局张二庄镇中心校 | C150: 全额事业 | D150: 190 | E150: 160 | F150: 30 | G150: 9 | H150: 12 | L150: 3 | M150: 小学教师 | N150: 语文
L151: 3 | M151: 小学教师 | N151: 数学
L152: 3 | M152: 小学教师 | N152: 英语
L153: 1 | M153: 小学教师 | N153: 音乐
L154: 1 | M154: 小学教师 | N154: 体育
L155: 1 | M155: 小学教师 | N155: 美术
A156: 魏县教育体育局 | B156: 魏县县直幼儿园 | C156: 全额事业 | D156: 55 | E156: 51 | F156: 4 | G156: 2 | H156: 3 | L156: 3 | M156: 幼儿教师 | O156: 具有的教师资格证非幼儿教育或学前教育专业的，要求规定学历所学专业须是幼儿教育或学前教育专业毕业 | P156: 具有教师资格证且系幼儿教育或学前教育专业毕业的；其它院校毕业且取得幼儿教育或学前教育教师资格证的 | Q156: 18周岁以上35周岁及以下 | R156: 本科及以上学历的不限户籍。专科学历的，必须是魏县户籍，或配偶或父母是魏县户籍。2019年应届毕业生不限户籍 | X156: 先到乡镇幼儿园支教三年
A157: 魏县教育体育局 | B157: 魏县县直第二幼儿园 | C157: 全额事业 | D157: 20 | E157: 7 | F157: 13 | H157: 12 | L157: 12 | M157: 幼儿教师
